Workbook

Sheet EN_PL

Sheet Intro
B3: Uwaga: | J3: Please note:
B5: W niniejszym pliku zaprezentowane są dane finansowe Grupy Asseco za kwartały lat 2023, 2022, 2021, 2020, 2019 i 2018. | J5: This workbook contains financial information of the Asseco Group for the quarters of the years 2022, 2021, 2020, 2019 and 2018.
B6: Objaśnienia:
B8: Arkusze oznaczone kolorem niebieskim zawierają P&L, Bilans i Rachunek przepływów pieniężnych (w tym Rachunek przepływów pieniężnych za okres ostatnich 12 miesięcy). W arkuszu Segments, znajdują się informacje dotyczące segmentów operacyjnych grupy. Arkusz RevenuesAndCosts zawiera dane uszczegóławiające do pozycji przychodów i kosztów operacyjnych. Kursy walut funkcjonalnych zagranicznych jednostek zależnych obowiązujące na dni bilansowe oraz kursy średnie stosowane w latach 2015-2023 zamieszczone są w arkuszu Exchange rates. | J8: The sheets marked with blue colour contain P&L, statement of financial position and the statement of cash flow of the Asseco Group. The Segments sheet contains data on the groups' operating segments. The RevenuesAndCosts sheet presents details for the items of revenues and operating costs. The exchange rates of the foreign subsidiaries' functional currencies as at the balance sheet date and the average exchange rates used in years 2015-2022 are presented in the Exchange Rates sheet.

Sheet PL
A1: P&L (Grupa Asseco) | B1: P&L (Asseco Group) | C1: YE 2017 | D1: Q1 2018 | E1: Q2 2018 | F1: Q3 2018 | G1: Q4 2018 | H1: Q1 2019 | I1: Q2 2019 | J1: Q3 2019 | K1: Q4 2019 | L1: Q1 2020 | M1: Q2 2020 | N1: Q3 2020 | O1: Q4 2020 | P1: Q1 2021 | Q1: Q2 2021 | R1: Q3 2021 | S1: Q4 2021 | T1: Q1 2022 | U1: Q2 2022 | V1: Q3 2022 | W1: Q4 2022 | X1: Q1 2023 | Y1: Q2 2023
C4: mln PLN | D4: mln PLN | E4: mln PLN | F4: mln PLN | G4: mln PLN | H4: mln PLN | I4: mln PLN | J4: mln PLN | K4: mln PLN | L4: mln PLN | M4: mln PLN | N4: mln PLN | O4: mln PLN | P4: mln PLN | Q4: mln PLN | R4: mln PLN | S4: mln PLN | T4: mln PLN | U4: mln PLN | V4: mln PLN | W4: mln PLN | X4: mln PLN | Y4: mln PLN
A6: Działalność kontynuowana | B6: Continuing operations
A7: Przychody ze sprzedaży | B7: Sales revenues | C7: 7829.3 | D7: 2149 | E7: 2310.9 | F7: 2218.4 | G7: 2650.3 | H7: 2452.2 | I7: 2538.7 | J7: 2738.4 | K7: 2938.1 | L7: 2920.4 | M7: 2850.3 | N7: 2938.1 | O7: 3484 | P7: 3339.1 | Q7: 3451.9 | R7: 3502.1 | S7: 4205 | T7: 4047.5 | U7: 4202.5 | V7: 4497.1 | W7: 4561.2 | X7: 4335.4 | Y7: 4180
A9: Koszt własny sprzedaży (-) | B9: Cost of sales | C9: -6157.5 | D9: -1711.7 | E9: -1797.8 | F9: -1748.3 | G9: -2081.6 | H9: -1923.4 | I9: -1989.3 | J9: -2145.3 | K9: -2310 | L9: -2312.8 | M9: -2229.6 | N9: -2295.1 | O9: -2692 | P9: -2624.5 | Q9: -2662.8 | R9: -2691.8 | S9: -3276.2 | T9: -3157.1 | U9: -3329.5 | V9: -3546.5 | W9: -3492.6 | X9: -3394.9 | Y9: -3257.8
A11: Zysk brutto ze sprzedaży | B11: Gross profit on sales | C11: =SUM(C7:C9) -> 1671.8 | D11: =SUM(D7:D9) -> 437.3 | E11: 513.1 | F11: 470.1 | G11: 568.7 | H11: =SUM(H7:H9) -> 528.8 | I11: =SUM(I7:I9) -> 549.4 | J11: 593.1 | K11: 628.1 | L11: 607.6 | M11: 620.7 | N11: 643 | O11: 792 | P11: 714.6 | Q11: 789.1 | R11: 810.3 | S11: 928.8 | T11: =SUM(T7:T9) -> 890.4 | U11: 873 | V11: =SUM(V7:V9) -> 950.6 | W11: 1068.6 | X11: =SUM(X7:X9) -> 940.5 | Y11: 922.2
A13: Koszty sprzedaży (-) | B13: Selling costs | C13: -446.8 | D13: -118.4 | E13: -130.7 | F13: -120.3 | G13: -134.5 | H13: -130.2 | I13: -132.8 | J13: -147.3 | K13: -158 | L13: -148.1 | M13: -142.8 | N13: -145.2 | O13: -174 | P13: -175.1 | Q13: -189.6 | R13: -188.9 | S13: -244.9 | T13: -225.8 | U13: -229.3 | V13: -266.8 | W13: -282.4 | X13: -241.5 | Y13: -239.1
A14: Koszty ogólnego zarządu (-) | B14: General administrative expenses | C14: -624.9 | D14: -147.8 | E14: -176.6 | F14: -161.8 | G14: -189.9 | H14: -168.9 | I14: -185.2 | J14: -184.7 | K14: -206.4 | L14: -205.1 | M14: -170.6 | N14: -196.9 | O14: -248.9 | P14: -214 | Q14: -247.3 | R14: -248.8 | S14: -267.1 | T14: -268.4 | U14: -282.6 | V14: -279.7 | W14: -335.4 | X14: -302.3 | Y14: -284.6
A16: Zysk netto ze sprzedaży | B16: Net profit on sales | C16: =SUM(C11,C13:C14) -> 600.1 | D16: =SUM(D11,D13:D14) -> 171.1 | E16: 205.8 | F16: 188 | G16: =SUM(G11,G13:G14) -> 244.3 | H16: 229.7 | I16: 231.4 | J16: 261.1 | K16: 263.7 | L16: 254.4 | M16: 307.3 | N16: 300.9 | O16: 369.1 | P16: 325.5 | Q16: 352.2 | R16: 372.6 | S16: 416.8 | T16: =SUM(T11,T13:T14) -> 396.2 | U16: 361.1 | V16: =SUM(V11,V13:V14) -> 404.1 | W16: 450.8 | X16: =SUM(X11,X13:X14) -> 396.7 | Y16: 398.5
A18: Pozostałe przychody operacyjne* | B18: Other operating income* | C18: 41.6 | D18: 8.6 | E18: 8.1 | F18: 16.6 | G18: 5.4 | H18: 11.9 | I18: 7.1 | J18: 11.3 | K18: 10.8 | L18: 8 | M18: 3.3 | N18: 6.9 | O18: 6.4 | P18: 5.7 | Q18: 6.6 | R18: 8.8 | S18: 3.6 | T18: 15.1 | U18: 202.6 | V18: 31.6 | W18: 36.1 | X18: 15.2 | Y18: 19.6
A19: Pozostałe koszty operacyjne (-)* | B19: Other operating expenses* | C19: -56.9 | D19: -12.4 | E19: -10.1 | F19: -17 | G19: -11.6 | H19: -16.9 | I19: -9.6 | J19: -11.8 | K19: -14.1 | L19: -12.6 | M19: -6.9 | N19: -8.8 | O19: -13.4 | P19: -8.6 | Q19: -9.4 | R19: -8.8 | S19: -10.1 | T19: -24.6 | U19: -27.2 | V19: -13.5 | W19: -23.7 | X19: -14.3 | Y19: -23.2
A21: Zysk z działalności operacyjnej | B21: Operating profit | C21: =SUM(C16:C19) -> 584.8 | D21: =SUM(D16:D19) -> 167.3 | E21: 203.8 | F21: 187.6 | G21: 238.1 | H21: =SUM(H16:H19) -> 224.7 | I21: =SUM(I16:I19) -> 228.9 | J21: 260.6 | K21: 260.4 | L21: 249.8 | M21: 303.7 | N21: 299 | O21: 362.1 | P21: 322.6 | Q21: 349.4 | R21: 372.6 | S21: 410.3 | T21: =SUM(T16:T19) -> 386.7 | U21: 536.5 | V21: =SUM(V16:V19) -> 422.2 | W21: 463.2 | X21: =SUM(X16:X19) -> 397.6 | Y21: 394.9
A23: Działalność finansowa | B23: Financial activity | C23: 191.7 | D23: -6.1 | E23: -6.5 | F23: -9.6 | G23: -0.6 | H23: -24.6 | I23: -11 | J23: -29.9 | K23: -22.5 | L23: -20 | M23: -30.8 | N23: -34.4 | O23: -51.1 | P23: -24.9 | Q23: -7 | R23: -34.3 | S23: -43.4 | T23: -18.2 | U23: 15.2 | V23: -15.1 | W23: -48.5 | X23: -20.2 | Y23: -13.1
A25: Zysk przed opodatkowaniem i udziałem w wynikach jednostek stowarzyszonych i wspólnych przedsięwzięć | B25: Pre-tax profit and share in profits of associates and joint ventures | C25: =SUM(C20:C23) -> 776.5 | D25: =SUM(D20:D23) -> 161.2 | E25: 197.3 | F25: 178 | G25: 237.5 | H25: =SUM(H20:H23) -> 200.1 | I25: =SUM(I20:I23) -> 217.9 | J25: 230.7 | K25: 237.9 | L25: 229.8 | M25: 272.9 | N25: 264.6 | O25: 311 | P25: 297.7 | Q25: 342.4 | R25: 338.3 | S25: 366.9 | T25: =SUM(T20:T23) -> 368.5 | U25: 551.7 | V25: =SUM(V20:V23) -> 407.1 | W25: 414.7 | X25: =SUM(X20:X23) -> 377.4 | Y25: 381.8
A27: Podatek dochodowy | B27: Corporate income tax | C27: -122 | D27: -43.2 | E27: -45.2 | F27: -37 | G27: -56.9 | H27: -43.8 | I27: -48.2 | J27: -50.7 | K27: -47.9 | L27: -51.6 | M27: -62.1 | N27: -55.2 | O27: -46.8 | P27: -64.6 | Q27: -75.9 | R27: -72.2 | S27: -79.5 | T27: -82.4 | U27: -119.3 | V27: -80.3 | W27: -102.7 | X27: -83.5 | Y27: -77.4
A28: Udział w wynikach jednostek stowarzyszonych i wspólnych przedsięwzięć | B28: Share in profits of associates and joint ventures | C28: -37.7 | D28: -1.4 | E28: -0.7 | F28: 0.3 | G28: 3.8 | H28: 0.9 | I28: -0.3 | J28: 1.2 | K28: 4.5 | L28: -1.8 | M28: 0.8 | N28: -1.9 | O28: 7.5 | P28: -0.2 | Q28: 3 | R28: -2.4 | S28: -9.3 | T28: 1 | U28: 9.3 | V28: 1.3 | W28: -11.7 | X28: -1.4 | Y28: 1.2
A30: Zysk z działalności kontynuowanej za okres sprawozdawczy | B30: Net profit for the period from continuing operations | C30: =SUM(C25,C27:C28) -> 616.8 | D30: =SUM(D25,D27:D28) -> 116.6 | E30: 151.4 | F30: 141.3 | G30: 184.4 | H30: =SUM(H25,H27:H28) -> 157.2 | I30: =SUM(I25,I27:I28) -> 169.4 | J30: 181.2 | K30: 194.5 | L30: 176.4 | M30: 211.6 | N30: 207.5 | O30: 271.7 | P30: 232.9 | Q30: 269.5 | R30: 263.7 | S30: 278.1 | T30: =SUM(T25,T27:T28) -> 287.1 | U30: 441.7 | V30: =SUM(V25,V27:V28) -> 328.1 | W30: 300.3 | X30: =SUM(X25,X27:X28) -> 292.5 | Y30: 305.6
A32: Działalność zaniechana | B32: Discontinued operations
A33: Zysk z działalności zaniechanej za okres sprawozdawczy | B33: Net profit for the period from discontinued operations | C33: 0 | D33: 0 | E33: 0 | F33: 0 | G33: 0 | H33: 0 | I33: 0 | J33: 0 | K33: 0 | L33: 0 | M33: 0 | N33: 0 | O33: 0 | P33: 0 | Q33: 0 | R33: 0 | S33: 0 | T33: 0 | U33: 0 | V33: 0 | W33: 0 | X33: 0 | Y33: 0
A35: Zysk za okres sprawozdawczy | B35: Net profit for the reporting period | C35: =C30+C33 -> 616.8 | D35: =D30+D33 -> 116.6 | E35: 151.4 | F35: =F30+F33 -> 141.3 | G35: =G30+G33 -> 184.4 | H35: =H30+H33 -> 157.2 | I35: =I30+I33 -> 169.4 | J35: =J30+J33 -> 181.2 | K35: 194.5 | L35: 176.4 | M35: 211.6 | N35: 207.5 | O35: 271.7 | P35: 232.9 | Q35: =Q30+Q33 -> 269.5 | R35: 263.7 | S35: 278.1 | T35: =T30+T33 -> 287.1 | U35: 441.7 | V35: =V30+V33 -> 328.1 | W35: 300.3 | X35: =X30+X33 -> 292.5 | Y35: 305.6
A36: Przypadający: | B36: Attributable to:
A37: Akcjonariuszom Jednostki Dominującej | B37: Shareholders of the Parent Company | C37: =C35-C38 -> 466.6 | D37: =D35-D38 -> 68.9 | E37: 88.4 | F37: 78 | G37: 98 | H37: =H35-H38 -> 79.6 | I37: =I35-I38 -> 80.1 | J37: 78.4 | K37: =K35-K38 -> 83.8 | L37: 81.7 | M37: 95.1 | N37: 90.7 | O37: 134.1 | P37: 102.2 | Q37: =Q35-Q38 -> 139.6 | R37: 120.2 | S37: 105.6 | T37: =T35-T38 -> 107.6 | U37: 140.3 | V37: =V35-V38 -> 127.5 | W37: 126.4 | X37: =X35-X38 -> 108.1 | Y37: 122.4
A38: Udziałowcom niekontrolującym | B38: Non-controling interests | C38: 150.2 | D38: 47.7 | E38: 63 | F38: 63.3 | G38: 86.4 | H38: 77.6 | I38: 89.3 | J38: 102.8 | K38: 110.7 | L38: 94.7 | M38: 116.5 | N38: 116.8 | O38: 137.6 | P38: 130.7 | Q38: 129.9 | R38: 143.5 | S38: 172.5 | T38: 179.5 | U38: 301.4 | V38: 200.6 | W38: 173.9 | X38: 184.4 | Y38: 183.2
A40: *W ramach pozostałej działalności operacyjnej dokonano spersaldowania wyniku (przychodów i kosztów) na sprzedaży środków trwałych, wartości niematerialnych oraz aktywów z tytułu prawa do użytkowania | B40: * As part of other operating activities, the result (income and expenses) on the sale of property, plant and equipment, intangible assets and assets due to the right of use was offset.

Sheet BS
A1: Bilans (Grupa Asseco) | B1: Statement of financial position (Asseco Group) | C1: YE 2017 | D1: Q1 2018 | E1: Q2 2018 | F1: Q3 2018 | G1: Q4 2018 | H1: Q1 2019 | I1: Q2 2019 | J1: Q3 2019 | K1: Q4 2019 | L1: Q1 2020 | M1: Q2 2020 | N1: Q3 2020 | O1: Q4 2020 | P1: Q1 2021 | Q1: Q2 2021 | R1: Q3 2021 | S1: Q4 2021 | T1: Q1 2022 | U1: Q2 2022 | V1: Q3 2022 | W1: Q4 2022 | X1: Q1 2023 | Y1: Q2 2023
C4: mln PLN | D4: mln PLN | E4: mln PLN | F4: mln PLN | G4: mln PLN | H4: mln PLN | I4: mln PLN | J4: mln PLN | K4: mln PLN | L4: mln PLN | M4: mln PLN | N4: mln PLN | O4: mln PLN | P4: mln PLN | Q4: mln PLN | R4: mln PLN | S4: mln PLN | T4: mln PLN | U4: mln PLN | V4: mln PLN | W4: mln PLN | X4: mln PLN | Y4: mln PLN
A7: Aktywa trwałe | B7: Non-current assets
A8: Rzeczowe aktywa trwałe | B8: Property, plant and equipment | C8: 850.2 | D8: 832.3 | E8: 851.2 | F8: 838.4 | G8: 828.4 | H8: 767.3 | I8: 773.8 | J8: 825.9 | K8: 822.7 | L8: 863.3 | M8: 859.1 | N8: 892.5 | O8: 914.7 | P8: 908.8 | Q8: 888.4 | R8: 899.5 | S8: 905.9 | T8: 906.4 | U8: 912.7 | V8: 949.6 | W8: 993 | X8: 992.1 | Y8: 965.2
A9: Wartości niematerialne | B9: Intangible assets | C9: 2083.2 | D9: 2031.4 | E9: 2112.1 | F9: 2036.9 | G9: 1991 | H9: 2073.6 | I9: 2018.3 | J9: 2171.4 | K9: 2106.5 | L9: 2219.6 | M9: 2152.7 | N9: 2177.8 | O9: 2282.6 | P9: 2276.1 | Q9: 2317 | R9: 2456.3 | S9: 2503.8 | T9: 2564.3 | U9: 2481 | V9: 2635.3 | W9: 2383.8 | X9: 2258.6 | Y9: 2134.8
A10: Aktywa z tytułu prawa do użytkowania | B10: Right-to-use assets | C10: 0 | D10: 0 | E10: 0 | F10: 0 | G10: 0 | H10: 655.3 | I10: 716.1 | J10: 738.7 | K10: 686.6 | L10: 708.3 | M10: 731.3 | N10: 678.6 | O10: 724.7 | P10: 727.2 | Q10: 688.4 | R10: 673.7 | S10: 831.1 | T10: 806.3 | U10: 778.3 | V10: 880.2 | W10: 789.9 | X10: 787 | Y10: 748.3
A11: Nieruchomości inwestycyjne | B11: Investment property | C11: 19.7 | D11: 19.8 | E11: 20.1 | F11: 20.1 | G11: 21 | H11: 23.4 | I11: 24.2 | J11: 20.7 | K11: 20.6 | L11: 20.7 | M11: 17.4 | N11: 16.7 | O11: 18 | P11: 18 | Q11: 18 | R11: 18 | S11: 5.3 | T11: 5.3 | U11: 1.8 | V11: 1.8 | W11: 1.7 | X11: 1.7 | Y11: 1.7
A12: Wartość firmy | B12: Goodwill | C12: 4017 | D12: 4024.4 | E12: 4204.7 | F12: 4197.4 | G12: 4254 | H12: 4418.8 | I12: 4411.4 | J12: 4614.9 | K12: 4561.4 | L12: 4759.1 | M12: 4742.2 | N12: 4876.4 | O12: 5131.2 | P12: 5204.4 | Q12: 5427 | R12: 5452.4 | S12: 5572.5 | T12: 5753.8 | U12: 5971.2 | V12: 6159 | W12: 5943.9 | X12: 5931.6 | Y12: 5826.2
A13: Inwestycje wyceniane metodą praw własności | B13: Investments valued using equity method | C13: 100.5 | D13: 97.6 | E13: 105 | F13: 102.9 | G13: 111.5 | H13: 133 | I13: 131 | J13: 139.6 | K13: 145 | L13: 160 | M13: 156.6 | N13: 152.3 | O13: 162.4 | P13: 168.2 | Q13: 162.6 | R13: 166 | S13: 159.3 | T13: 162.9 | U13: 166.8 | V13: 171.3 | W13: 123.1 | X13: 117.4 | Y13: 112.2
A14: Należności długoterminowe | B14: Long-term receivables | C14: 108.3 | D14: 106.8 | E14: 118.9 | F14: 119.9 | G14: 127.5 | H14: 117.6 | I14: 107.5 | J14: 123.7 | K14: 110.3 | L14: 110.9 | M14: 90.9 | N14: 79.5 | O14: 94.2 | P14: 90.7 | Q14: 79 | R14: 71.9 | S14: 64.9 | T14: 77.3 | U14: 76.2 | V14: 80 | W14: 70.6 | X14: 81.2 | Y14: 82.8
A15: Aktywa z tytułu odroczonego pod. doch. | B15: Deferred income tax assets | C15: 87.1 | D15: 77.9 | E15: 85.5 | F15: 76.4 | G15: 84.8 | H15: 93.2 | I15: 93.4 | J15: 102.3 | K15: 177.7 | L15: 200.4 | M15: 187.8 | N15: 189.1 | O15: 202.4 | P15: 208.6 | Q15: 220.5 | R15: 231.3 | S15: 250.8 | T15: 252.3 | U15: 241.9 | V15: 271.5 | W15: 267.3 | X15: 248 | Y15: 256
A16: Inne aktywa niefinansowe | B16: Other non-financial assets | C16: 0.2 | D16: 0.1 | E16: 0.2 | F16: 0 | G16: 0.1 | H16: 0 | I16: 0 | J16: 0 | K16: 0.5 | L16: 0 | M16: 0 | N16: 0 | O16: 0 | P16: 0 | Q16: 0 | R16: 0 | S16: 0 | T16: 0 | U16: 0 | V16: 0 | W16: 0.2 | X16: 0.2 | Y16: 0.2
A17: Pozostałe długoterminowe aktywa finansowe | B17: Long-term financial assets | C17: 177.1 | D17: 169.5 | E17: 176.8 | F17: 153.8 | G17: 175.1 | H17: 162.6 | I17: 150.9 | J17: 152.9 | K17: 142.2 | L17: 145.8 | M17: 143.3 | N17: 125 | O17: 128.7 | P17: 115.8 | Q17: 112 | R17: 39.6 | S17: 43.4 | T17: 30.3 | U17: 54.2 | V17: 118.7 | W17: 103.4 | X17: 110.3 | Y17: 139.8
A18: Długoterminowe rozliczenia międzyokresowe | B18: Long-term prepayments and accrued income | C18: 46.3 | D18: 51.9 | E18: 53.4 | F18: 50.9 | G18: 59.2 | H18: 58.6 | I18: 64.1 | J18: 73.9 | K18: 68.4 | L18: 76.2 | M18: 71.7 | N18: 68.6 | O18: 101.6 | P18: 114.4 | Q18: 105.7 | R18: 99.8 | S18: 89.4 | T18: 103.5 | U18: 96.6 | V18: 108.7 | W18: 89.1 | X18: 87.6 | Y18: 88.7
C19: =SUM(C8:C18) -> 7489.6 | D19: =SUM(D8:D18) -> 7411.7 | E19: 7727.9 | F19: 7596.7 | G19: 7652.6 | H19: =SUM(H8:H18) -> 8503.4 | I19: =SUM(I8:I18) -> 8490.7 | J19: 8964 | K19: 8841.9 | L19: 9264.3 | M19: 9153 | N19: 9256.5 | O19: 9760.5 | P19: 9832.2 | Q19: 10018.6 | R19: =SUM(R8:R18) -> 10108.5 | S19: 10426.4 | T19: 10662.4 | U19: 10780.7 | V19: 11376.1 | W19: 10766 | X19: =SUM(X8:X18) -> 10615.7 | Y19: 10355.9
A20: Aktywa obrotowe | B20: Current assets
A21: Zapasy | B21: Inventories | C21: 72.9 | D21: 81.2 | E21: 76.9 | F21: 93.8 | G21: 94.3 | H21: 99.3 | I21: 111.2 | J21: 124.1 | K21: 122.6 | L21: 123.2 | M21: 136.6 | N21: 162.9 | O21: 186.9 | P21: 190.2 | Q21: 174 | R21: 181.2 | S21: 202.5 | T21: 273.8 | U21: 333.9 | V21: 376.4 | W21: 326 | X21: 346.5 | Y21: 319.7
A22: Rozliczenia międzyokresowe | B22: Prepayments and accrued income | C22: 149.8 | D22: 179.4 | E22: 182 | F22: 172.7 | G22: 168.5 | H22: 232.2 | I22: 237 | J22: 254.6 | K22: 242.9 | L22: 297.2 | M22: 277.8 | N22: 267.8 | O22: 291.5 | P22: 347.4 | Q22: 321.9 | R22: 320.8 | S22: 312.3 | T22: 374.4 | U22: 346 | V22: 340.9 | W22: 323 | X22: 363.4 | Y22: 301.2
A23: Należności z tytułu dostaw i usług | B23: Trade receivables | C23: 2372.1 | D23: 2211.7 | E23: 2116.3 | F23: 2183.5 | G23: 2432.7 | H23: 2348.7 | I23: 2448.1 | J23: 2553.1 | K23: 2632.4 | L23: 2724.6 | M23: 2517.8 | N23: 2625.5 | O23: 2890.9 | P23: 3004.5 | Q23: 3040.5 | R23: 3253.4 | S23: 3711.5 | T23: 3626.6 | U23: 3684.5 | V23: 3986.6 | W23: 3954.7 | X23: 3780.3 | Y23: 3746.9
A24: Aktywa z tytułu umów z klientami | B24: Contract assets | C24: 0 | D24: 0 | E24: 270.1 | F24: 262.9 | G24: 214.3 | H24: 279.7 | I24: 254.9 | J24: 286.4 | K24: 212.6 | L24: 278.7 | M24: 328.6 | N24: 347.9 | O24: 303.9 | P24: 374.2 | Q24: 396.1 | R24: 444.3 | S24: 501.9 | T24: 512.6 | U24: 678.8 | V24: 766.9 | W24: 763.1 | X24: 854.3 | Y24: 775.4
A25: Należności z tytułu podatku CIT | B25: Corporate income tax receivable | C25: 88.7 | D25: 77.1 | E25: 57 | F25: 56.6 | G25: 47.6 | H25: 58.8 | I25: 69.4 | J25: 66.3 | K25: 71.5 | L25: 56.8 | M25: 61 | N25: 65.2 | O25: 101 | P25: 75.8 | Q25: 76.3 | R25: 83.3 | S25: 76.5 | T25: 77.6 | U25: 101.8 | V25: 105.9 | W25: 62.8 | X25: 99.5 | Y25: 105.1
A26: Należności budżetowe | B26: Receivables from the state and local budgets | C26: 20.6 | D26: 25.6 | E26: 29.2 | F26: 32.8 | G26: 37.3 | H26: 34.6 | I26: 34.9 | J26: 35.4 | K26: 34.5 | L26: 36.4 | M26: 31.9 | N26: 30.1 | O26: 29.7 | P26: 40.7 | Q26: 34 | R26: 29.5 | S26: 26.6 | T26: 53.6 | U26: 49.6 | V26: 55.8 | W26: 43.6 | X26: 81.3 | Y26: 59.8
A27: Pozostałe należności | B27: Other receivables | C27: 38.5 | D27: 43.9 | E27: 45.1 | F27: 48.9 | G27: 39.1 | H27: 367.8 | I27: 49.1 | J27: 68.1 | K27: 73.4 | L27: 81.3 | M27: 61.5 | N27: 60.5 | O27: 59.3 | P27: 65.6 | Q27: 72.1 | R27: 88.2 | S27: 79.9 | T27: 83.4 | U27: 96.4 | V27: 79.4 | W27: 80.9 | X27: 79.6 | Y27: 89.5
A28: Inne aktywa niefinansowe | B28: Other non-financial receivables | C28: 9.1 | D28: 12.3 | E28: 9.2 | F28: 11 | G28: 9 | H28: 8 | I28: 12.3 | J28: 25.5 | K28: 12.8 | L28: 12.8 | M28: 13.9 | N28: 14.4 | O28: 7.5 | P28: 10 | Q28: 9.5 | R28: 13.2 | S28: 13.9 | T28: 13.5 | U28: 13.8 | V28: 14.4 | W28: 18 | X28: 21.3 | Y28: 12.9
A29: Pozostałe aktywa finansowe | B29: Financial assets | C29: 86 | D29: 83.5 | E29: 67.3 | F29: 84.8 | G29: 139.3 | H29: 108.1 | I29: 108.9 | J29: 105.2 | K29: 194.8 | L29: 102.8 | M29: 73 | N29: 53.7 | O29: 186.6 | P29: 203.1 | Q29: 112.5 | R29: 208.7 | S29: 142.3 | T29: 164.6 | U29: 210.5 | V29: 234.9 | W29: 120 | X29: 348.3 | Y29: 392.8
A30: Środki pieniężne i depozyty krótkoterminowe | B30: Cash and short-term deposits | C30: 1547.7 | D30: 1546.7 | E30: 1447.4 | F30: 1604 | G30: 1800.5 | H30: 1853.6 | I30: 1867.5 | J30: 1927.4 | K30: 2153.5 | L30: 2634.8 | M30: 2489.4 | N30: 2392.7 | O30: 2896 | P30: 2716.9 | Q30: 2492.4 | R30: 2714.5 | S30: 3064.2 | T30: 3451.9 | U30: 2778.9 | V30: 3334.7 | W30: 3636 | X30: 3189.2 | Y30: 2545.3
A31: Aktywa długoterm. sklas. jako przezn. do sprzedaży | B31: Non-current assets classified as held for sale | C31: 7.4 | D31: 7.4 | E31: 7.5 | F31: 9.6 | G31: 10.9 | H31: 8.4 | I31: 3.6 | J31: 1.5 | K31: 1.3 | L31: 1.3 | M31: 1.3 | N31: 1.3 | O31: 0 | P31: 0 | S31: 12.3 | T31: 3.5 | U31: 14.4 | V31: 99 | W31: 42.5 | X31: 42.5 | Y31: 41.4
C32: =SUM(C21:C31) -> 4392.8 | D32: =SUM(D21:D31) -> 4268.8 | E32: 4308 | F32: 4560.6 | G32: 4993.5 | H32: =SUM(H21:H31) -> 5399.2 | I32: =SUM(I21:I31) -> 5196.9 | J32: 5447.6 | K32: 5752.3 | L32: =SUM(L21:L31) -> 6349.9 | M32: 5992.8 | N32: 6022 | O32: 6953.3 | P32: 7028.4 | Q32: 6729.3 | R32: 7337.1 | S32: =SUM(S21:S31) -> 8143.9 | T32: 8635.5 | U32: 8308.6 | V32: =SUM(V21:V31) -> 9394.9 | W32: 9370.6 | X32: =SUM(X21:X31) -> 9206.2 | Y32: 8390
A34: SUMA AKTYWÓW | B34: TOTAL ASSETS | C34: =C32+C19 -> 11882.4 | D34: =D32+D19 -> 11680.5 | E34: 12035.9 | F34: 12157.3 | G34: 12646.1 | H34: =H32+H19 -> 13902.6 | I34: 13687.6 | J34: 14411.6 | K34: 14594.2 | L34: 15614.2 | M34: =M32+M19 -> 15145.8 | N34: 15278.5 | O34: =O32+O19 -> 16713.8 | P34: 16860.6 | Q34: =Q32+Q19 -> 16747.9 | R34: 17445.6 | S34: =S32+S19 -> 18570.3 | T34: 19297.9 | U34: 19089.3 | V34: =V32+V19 -> 20771 | W34: 20136.6 | X34: =X32+X19 -> 19821.9 | Y34: 18745.9
A36: Kapitał własny (przypisany akcjonariuszom Jednostki Dominującej) | B36: Equity (attributable to shareholders of the Parent Company) | C36: 5601.4 | D36: 5615.9 | E36: 5574.7 | F36: 5604.6 | G36: 5717.7 | H36: 5818.8 | I36: 5608.7 | J36: 5748.1 | K36: 5764.9 | L36: 5959.2 | M36: 5765.6 | N36: 5844.7 | O36: 6044.4 | P36: 6193.3 | Q36: 5992.9 | R36: 6189.7 | S36: 6282.2 | T36: 6417.6 | U36: 6338.9 | V36: 6608.4 | W36: 6549.5 | X36: 6632.9 | Y36: 6329.2
A38: Udziały niekontrolujące | B38: Non-controlling interests | C38: 1727.1 | D38: 1660.6 | E38: 1784.8 | F38: 1867.8 | G38: 1944.6 | H38: 2080.4 | I38: 2054 | J38: 2211.1 | K38: 2218.9 | L38: 2385.6 | M38: 2342.4 | N38: 2372.8 | O38: 2913 | P38: 3065.7 | Q38: 2976.6 | R38: 3169.9 | S38: 3363.2 | T38: 3465 | U38: 3630 | V38: 3878 | W38: 3663.4 | X38: 3666.2 | Y38: 3603.2
A40: Kapitał własny ogółem | B40: Total equity | C40: =SUM(C36:C38) -> 7328.5 | D40: =SUM(D36:D38) -> 7276.5 | E40: 7359.5 | F40: 7472.4 | G40: 7662.3 | H40: =SUM(H36:H38) -> 7899.2 | I40: =SUM(I36:I38) -> 7662.7 | J40: 7959.2 | K40: 7983.8 | L40: 8344.8 | M40: 8108 | N40: 8217.5 | O40: 8957.4 | P40: 9259 | Q40: 8969.5 | R40: 9359.6 | S40: 9645.4 | T40: =SUM(T36:T38) -> 9882.6 | U40: 9968.9 | V40: =SUM(V36:V38) -> 10486.4 | W40: 10212.9 | X40: =SUM(X36:X38) -> 10299.1 | Y40: 9932.4
A42: Zobowiązania długoterminowe | B42: Non-current liabilities
A43: Oprocentowane kred. bankowe, poż., dłużne pap. wart. | B43: Interest-bearing bank loans, borrowing and debt securities | C43: 1046.3 | D43: 935.9 | E43: 911.7 | F43: 889.6 | G43: 1082.9 | H43: 1276.5 | I43: 1228 | J43: 1278 | K43: 1366.2 | L43: 1564.7 | M43: 1777.7 | N43: 1644 | O43: 1552.2 | P43: 1434.7 | Q43: 1531.3 | R43: 1566.8 | S43: 1570.8 | T43: 1515.2 | U43: 1436.8 | V43: 2162.8 | W43: 2021.8 | X43: 1813.7 | Y43: 1685.1
A44: Długoterminowe zob. z tyt. leasingu | B44: Long-term lease liabilities | C44: 49.2 | D44: 45.1 | E44: 43.9 | F44: 37.4 | G44: 32.1 | H44: 478.1 | I44: 519.2 | J44: 526.2 | K44: 472.3 | L44: 506.9 | M44: 530.9 | N44: 501.2 | O44: 544.7 | P44: 552.3 | Q44: 513.8 | R44: 497.8 | S44: 610.1 | T44: 583.4 | U44: 560.5 | V44: 627 | W44: 535.6 | X44: 523 | Y44: 500.1
A45: Długoterminowe zob. finansowe | B45: Long-term financial liabilities | C45: 275.4 | D45: 320.8 | E45: 256.4 | F45: 257.5 | G45: 180.3 | H45: 248.6 | I45: 227.4 | J45: 292 | K45: 234.6 | L45: 273.9 | M45: 174 | N45: 255.4 | O45: 188.7 | P45: 173.3 | Q45: 255.6 | R45: 268.6 | S45: 305 | T45: 334.9 | U45: 337.1 | V45: 263 | W45: 221.7 | X45: 234 | Y45: 200.4
A46: Rezerwy z tytułu odroczonego pod. doch. | B46: Deferred income tax liabilities | C46: 414.2 | D46: 409.1 | E46: 424 | F46: 410.4 | G46: 410.7 | H46: 426.4 | I46: 415.3 | J46: 447.4 | K46: 479.6 | L46: 513.1 | M46: 495.3 | N46: 498.4 | O46: 531.2 | P46: 535.8 | Q46: 547.5 | R46: 587.1 | S46: 619.6 | T46: 627.9 | U46: 616.5 | V46: 665.5 | W46: 573.1 | X46: 558.4 | Y46: 523.2
A47: Zobowiązania z tytułu podatku dochodowego od osób prawnych | B47: Liabilities due to corporate income tax | C47: 0 | D47: 0 | E47: 0 | F47: 0 | G47: 0 | H47: 0 | I47: 0 | J47: 0 | K47: 0 | L47: 0 | M47: 0 | N47: 0 | O47: 37 | P47: 41.6 | Q47: 0 | R47: 0 | S47: 43.6 | T47: 45.6 | U47: 48.2 | V47: 56.7 | W47: 59 | X47: 57.7 | Y47: 54.8
A48: Długoterminowe rezerwy | B48: Long-term provisions | C48: 73.2 | D48: 64.8 | E48: 66.7 | F48: 64.1 | G48: 67.9 | H48: 72.9 | I48: 75.9 | J48: 79.8 | K48: 81.9 | L48: 93.9 | M48: 93.5 | N48: 112.5 | O48: 72.7 | P48: 67.2 | Q48: 106.8 | R48: 108.6 | S48: 63.7 | T48: 61.9 | U48: 57 | V48: 57.4 | W48: 59.5 | X48: 58.6 | Y48: 66.4
A49: Długoterminowe rozliczenia międzyok. przych. i kosztów | B49: Accruals and deferred income | C49: 78.7 | D49: 79.4 | E49: 43.4 | F49: 43.4 | G49: 43.3 | H49: 43.1 | I49: 43 | J49: 42 | K49: 41 | L49: 50.5 | M49: 54.7 | N49: 59.8 | O49: 64.7 | P49: 63.9 | Q49: 61.9 | R49: 62.4 | S49: 62.6 | T49: 61.9 | U49: 62.4 | V49: 58.2 | W49: 56.4 | X49: 55.8 | Y49: 55.5
A50: Pozostałe zobowiązania długoterminowe | B50: Other long-term liabilities | C50: 16.2 | D50: 15.1 | E50: 47.2 | F50: 44.3 | G50: 46.9 | H50: 49.3 | I50: 44.8 | J50: 51.7 | K50: 70 | L50: 90 | M50: 92 | N50: 105.9 | O50: 142.6 | P50: 151.9 | Q50: 139.7 | R50: 139.5 | S50: 127.6 | T50: 128.4 | U50: 113.7 | V50: 110.8 | W50: 95.5 | X50: 84.7 | Y50: 82.2
C51: =SUM(C43:C50) -> 1953.2 | D51: =SUM(D43:D50) -> 1870.2 | E51: 1793.3 | F51: 1746.7 | G51: 1864.1 | H51: =SUM(H43:H50) -> 2594.9 | I51: =SUM(I43:I50) -> 2553.6 | J51: 2717.1 | K51: 2745.6 | L51: 3093 | M51: 3218.1 | N51: 3177.2 | O51: =SUM(O43:O50) -> 3133.8 | P51: 3020.7 | Q51: 3156.6 | R51: 3230.8 | S51: 3403 | T51: =SUM(T43:T50) -> 3359.2 | U51: 3232.2 | V51: =SUM(V43:V50) -> 4001.4 | W51: 3622.6 | X51: =SUM(X43:X50) -> 3385.9 | Y51: 3167.7
A52: Zobowiązania krótkoterminowe | B52: Current liabilities
A53: Oprocentowane kred. bankowe, poż., dłużne pap. wart. | B53: Interest-bearing bank loans, borrowing and debt securities | C53: 395.3 | D53: 561 | E53: 724.3 | F53: 806.2 | G53: 581.6 | H53: 691.6 | I53: 786.5 | J53: 878.3 | K53: 689.4 | L53: 937 | M53: 679.7 | N53: 707.3 | O53: 703.1 | P53: 744.6 | Q53: 845.5 | R53: 1126 | S53: 1017.2 | T53: 1406.5 | U53: 1308.5 | V53: 1314.9 | W53: 1141.9 | X53: 1170.5 | Y53: 1113.1
A54: Zobowiązania z tytułu leasingu | B54: Lease liabilities | C54: 26.8 | D54: 26.8 | E54: 28.7 | F54: 28.1 | G54: 28.9 | H54: 189.8 | I54: 206.6 | J54: 224.3 | K54: 216.7 | L54: 205.7 | M54: 199.6 | N54: 178.4 | O54: 183.9 | P54: 191.9 | Q54: 184.5 | R54: 190.1 | S54: 236 | T54: 238.7 | U54: 236.6 | V54: 275.7 | W54: 264.4 | X54: 273.1 | Y54: 252
A55: Pozostałe zobowiązania finansowe | B55: Financial liabilities | C55: 114.5 | D55: 78.3 | E55: 187 | F55: 189.4 | G55: 199.3 | H55: 198 | I55: 218.7 | J55: 267 | K55: 265.1 | L55: 218.2 | M55: 296.9 | N55: 280.1 | O55: 331.5 | P55: 373.3 | Q55: 363.3 | R55: 215.5 | S55: 285.2 | T55: 444.8 | U55: 390.2 | V55: 452.1 | W55: 522.9 | X55: 532.5 | Y55: 402.2
A56: Zobowiązania z tytułu dostaw i usług | B56: Trade payables | C56: 855.8 | D56: 683.2 | E56: 692.1 | F56: 729.8 | G56: 938.2 | H56: 839.1 | I56: 792.9 | J56: 801 | K56: 983.5 | L56: 952.8 | M56: 852.9 | N56: 933.6 | O56: 1191.7 | P56: 1016.3 | Q56: 1042.7 | R56: 1080.4 | S56: 1522.1 | T56: 1358.5 | U56: 1435.4 | V56: 1556.1 | W56: 1600.1 | X56: 1386.8 | Y56: 1379.3
A57: Zobowiązania z tytułu umów z klientami | B57: Contract liabilities | C57: 0 | D57: 0 | E57: 440.2 | F57: 388 | G57: 451.1 | H57: 603.8 | I57: 584.6 | J57: 606.1 | K57: 627.3 | L57: 799.6 | M57: 733.8 | N57: 710.3 | O57: 900.1 | P57: 1039.1 | Q57: 936.8 | R57: 887.1 | S57: 985.4 | T57: 1132.3 | U57: 1048.9 | V57: 1041.2 | W57: 1126.8 | X57: 1265.8 | Y57: 1068.7
A58: Zobowiązania z tytułu podatku CIT | B58: Corporate income tax payable | C58: 73.9 | D58: 69.2 | E58: 83.3 | F58: 84.7 | G58: 73.7 | H58: 68 | I58: 63.2 | J58: 70.8 | K58: 89.5 | L58: 83.7 | M58: 81.2 | N58: 41.9 | O58: 75.3 | P58: 67.9 | Q58: 76.4 | R58: 99.9 | S58: 77.5 | T58: 105.2 | U58: 107.4 | V58: 109.1 | W58: 115.2 | X58: 120.5 | Y58: 90
A59: Zobowiązania budżetowe | B59: Liabilities to the state and local budgets | C59: 162.7 | D59: 120.6 | E59: 128 | F59: 133.7 | G59: 204.8 | H59: 155.1 | I59: 177.1 | J59: 168.8 | K59: 231 | L59: 212.8 | M59: 204.6 | N59: 243.3 | O59: 296.2 | P59: 212.2 | Q59: 215.5 | R59: 266.3 | S59: 343.8 | T59: 243.4 | U59: 233 | V59: 250.4 | W59: 322.8 | X59: 227.8 | Y59: 252.8
A60: Pozostałe zobowiązania | B60: Other liabilities | C60: 290.2 | D60: 279.4 | E60: 282.3 | F60: 267.7 | G60: 314.3 | H60: 340.9 | I60: 309.9 | J60: 338.1 | K60: 372.8 | L60: 394.3 | M60: 382.3 | N60: 384.5 | O60: 483.2 | P60: 501 | Q60: 450.9 | R60: 502.5 | S60: 557.3 | T60: 625.9 | U60: 591.8 | V60: 658.1 | W60: 646.2 | X60: 634.2 | Y60: 565.5
A61: Rezerwy | B61: Provisions | C61: 51.4 | D61: 36.2 | E61: 34.2 | F61: 35.7 | G61: 45.4 | H61: 47 | I61: 35.7 | J61: 42.9 | K61: 39.2 | L61: 48 | M61: 39.1 | N61: 36.2 | O61: 28.8 | P61: 22.4 | Q61: 33.5 | R61: 31.4 | S61: 17.2 | T61: 20.7 | U61: 18.5 | V61: 27.2 | W61: 38.4 | X61: 46 | Y61: 47.6
A62: Rozliczenia międzyokresowe przychodów | B62: Deferred income | C62: 358.1 | D62: 440.5 | E62: 16.3 | F62: 10 | G62: 7.8 | H62: 9.7 | I62: 10.9 | J62: 11.1 | K62: 9.8 | L62: 9.8 | M62: 7.1 | N62: 5.6 | O62: 7.5 | P62: 8.4 | Q62: 9.7 | R62: 8.2 | S62: 10.1 | T62: 11.7 | U62: 10.5 | V62: 10.9 | W62: 8 | X62: 8.5 | Y62: 8.1
A63: Rozliczenia międzyokresowe kosztów | B63: Accruals | C63: 272 | D63: 238.6 | E63: 266.7 | F63: 264.9 | G63: 274.6 | H63: 265.5 | I63: 285.2 | J63: 326.9 | K63: 340.5 | L63: 314.5 | M63: 342.5 | N63: 362.6 | O63: 421.3 | P63: 403.8 | Q63: 463 | R63: 447.8 | S63: =469+0.6 -> 469.6 | T63: 468.4 | U63: 504.7 | V63: 541.9 | W63: 511.3 | X63: 468.1 | Y63: 463.4
A64: Zobowiązania powiązane z aktywami przeznaczonymi do sprzedaży | B64: Liabilities related to assets held for sale | C64: 0 | D64: 0 | E64: 0 | F64: 0 | G64: 0 | H64: 0 | I64: 0 | J64: 0 | K64: 0 | L64: 0 | M64: 0 | N64: 0 | O64: 0 | P64: 0 | Q64: 0 | R64: 0 | S64: 0.5 | T64: 0 | U64: 2.7 | V64: 45.6 | W64: 3.1 | X64: 3.1 | Y64: 3.1
C65: =SUM(C53:C64) -> 2600.7 | D65: 2533.8 | E65: 2883.1 | F65: 2938.2 | G65: 3119.7 | H65: 3408.5 | I65: 3471.3 | J65: 3735.3 | K65: 3864.8 | L65: 4176.4 | M65: 3819.7 | N65: 3883.8 | O65: 4622.6 | P65: 4580.9 | Q65: 4621.8 | R65: 4855.2 | S65: 5521.9 | T65: =SUM(T53:T64) -> 6056.1 | U65: 5888.2 | V65: =SUM(V53:V64) -> 6283.2 | W65: 6301.1 | X65: =SUM(X53:X64) -> 6136.9 | Y65: 5645.8
A66: Suma zobowiązań | B66: Total liabilities | C66: =SUM(C51,C65) -> 4553.9 | D66: =SUM(D51,D65) -> 4404 | E66: 4676.4 | F66: 4684.9 | G66: 4983.8 | H66: =SUM(H51,H65) -> 6003.4 | I66: 6024.9 | J66: 6452.4 | K66: 6610.4 | L66: 7269.4 | M66: =SUM(M51,M65) -> 7037.8 | N66: 7061 | O66: =SUM(O51,O65) -> 7756.4 | P66: 7601.6 | Q66: =SUM(Q51,Q65) -> 7778.4 | R66: 8086 | S66: =SUM(S51,S65) -> 8924.9 | T66: 9415.3 | U66: =SUM(U51,U65) -> 9120.4 | V66: 10284.6 | W66: =SUM(W51,W65) -> 9923.7 | X66: 9522.8 | Y66: =SUM(Y51,Y65) -> 8813.5
A68: SUMA PASYWÓW | B68: TOTAL EQUITY AND LIABILITIES | C68: =SUM(C66,C40) -> 11882.4 | D68: =SUM(D66,D40) -> 11680.5 | E68: 12035.9 | F68: 12157.3 | G68: 12646.1 | H68: =SUM(H66,H40) -> 13902.6 | I68: =SUM(I66,I40) -> 13687.6 | J68: 14411.6 | K68: 14594.2 | L68: 15614.2 | M68: =SUM(M66,M40) -> 15145.8 | N68: 15278.5 | O68: =SUM(O66,O40) -> 16713.8 | P68: 16860.6 | Q68: =SUM(Q66,Q40) -> 16747.9 | R68: 17445.6 | S68: =SUM(S66,S40) -> 18570.3 | T68: 19297.9 | U68: =SUM(U66,U40) -> 19089.3 | V68: 20771 | W68: =SUM(W66,W40) -> 20136.6 | X68: 19821.9 | Y68: =SUM(Y66,Y40) -> 18745.9
C69: =C68-C34 -> 0 | D69: =D68-D34 -> 0 | E69: =E68-E34 -> 0 | F69: 0 | G69: 0 | H69: 0 | I69: 0 | J69: 0 | K69: 0 | L69: 0 | M69: 0 | N69: 0 | O69: 0 | P69: 0 | Q69: 0 | R69: 0 | S69: =S68-S34 -> 0 | T69: 0 | U69: =U68-U34 -> 0 | V69: 0 | W69: =W68-W34 -> 0 | X69: 0 | Y69: =Y68-Y34 -> 0

Sheet CF
A1: Rachunek przepływów pieniężnych (Grupa Asseco) | B1: Statement of cash flows (Asseco Group)
C2: YE 2017 | D2: Q1 2018 | E2: Q2 2018 | F2: Q3 2018 | G2: Q4 2018 | H2: Q1 2019 | I2: Q2 2019 | J2: Q3 2019 | K2: Q4 2019 | L2: Q1 2020 | M2: Q2 2020 | N2: Q3 2020 | O2: Q4 2020 | P2: Q1 2021 | Q2: Q2 2021 | R2: Q3 2021 | S2: Q4 2021 | T2: Q1 2022 | U2: Q2 2022 | V2: Q3 2022 | W2: Q4 2022 | X2: Q1 2023 | Y2: Q2 2023
C4: mln PLN | D4: mln PLN | E4: mln PLN | F4: mln PLN | G4: mln PLN | H4: mln PLN | I4: mln PLN | J4: mln PLN | K4: mln PLN | L4: mln PLN | M4: mln PLN | N4: mln PLN | O4: mln PLN | P4: mln PLN | Q4: mln PLN | R4: mln PLN | S4: mln PLN | T4: mln PLN | U4: mln PLN | V4: mln PLN | W4: mln PLN | X4: mln PLN | Y4: mln PLN
A6: Przepływy środków pieniężnych z działalności operacyjnej | B6: Cash flows - operating activities
A7: Zysk przed opodatkowaniem i udziałem w wynikach jednostek stowarzyszonych i wspólnych przedsięwzięć | B7: Profit before tax and share of profits of associates and joint ventures | C7: 776.5 | D7: 161.2 | E7: 197.3 | F7: 178 | G7: 237.5 | H7: 200.1 | I7: 217.9 | J7: 230.7 | K7: 237.9 | L7: 229.8 | M7: 272.9 | N7: 264.6 | O7: 311 | P7: 297.7 | Q7: 342.4 | R7: =338.7-0.4 -> 338.3 | S7: 366.9 | T7: 368.5 | U7: 553.3 | V7: 407.1 | W7: 414.7 | X7: 377.4 | Y7: 381.8
A9: Korekty o pozycje: | B9: Total adjustments: | C9: =SUM(C10:C26) -> 86.6 | D9: =SUM(D10:D26) -> 21.2 | E9: 10.9 | F9: 17.8 | G9: 353.9 | H9: 166.9 | I9: -12.9 | J9: =SUM(J10:J26) -> 170.6 | K9: 558.5 | L9: =SUM(L10:L26) -> 157.9 | M9: 209.4 | N9: 219 | O9: 566.7 | P9: -155.6 | Q9: 109.4 | R9: 83.9 | S9: 503 | T9: =SUM(T10:T26) -> 80 | U9: -249.1 | V9: =SUM(V10:V26) -> 120.2 | W9: 555.6 | X9: =SUM(X10:X26) -> 30 | Y9: 155.2
A10: Amortyzacja | B10: Depreciation and amortization | C10: 337.1 | D10: 117.2 | E10: 112.5 | F10: 113.7 | G10: 116.1 | H10: 144.4 | I10: 158.8 | J10: 164.2 | K10: 169.6 | L10: 170.3 | M10: 172.8 | N10: 177.9 | O10: 186.5 | P10: 175.2 | Q10: 186.3 | R10: =189.9+0.4 -> 190.3 | S10: 238.5 | T10: 214.3 | U10: 213.5 | V10: 236.2 | W10: 228.3 | X10: 224.9 | Y10: 217.2
A11: Zmiany stanu kapitału pracującego (szczegóły poniżej) | B11: Changes in working capital (see below) | C11: -70.8 | D11: -101.2 | E11: -104.9 | F11: -115.2 | G11: 238.1 | H11: 3.1 | I11: -198.9 | J11: -28.5 | K11: 354.6 | L11: -51.1 | M11: 14.4 | N11: -1 | O11: 314.1 | P11: -361.9 | Q11: -101.6 | R11: -148.9 | S11: 195 | T11: -161.8 | U11: -322 | V11: -107.1 | W11: 264.5 | X11: -231.6 | Y11: -118.9
A12: Przychody/koszty z tytułu odsetek | B12: Interest income/expenses | C12: 43.1 | D12: 7.2 | E12: 13.2 | F12: -1 | G12: 7.2 | H12: 15 | I12: 24.5 | J12: 24.8 | K12: 19.4 | L12: 13 | M12: 24.4 | N12: 22.8 | O12: 15.7 | P12: 17.2 | Q12: 19.1 | R12: 20 | S12: 27.4 | T12: 13.5 | U12: 7.4 | V12: 34.5 | W12: 42.6 | X12: 28.6 | Y12: 32.5
A13: Przychody/koszty z różnic kursowych | B13: Gain/loss on foreign exchange differences | C13: 44.4 | D13: -3.2 | E13: -26.8 | F13: 8 | G13: -3.6 | H13: 4.2 | I13: -9.6 | J13: -7.1 | K13: 15.7 | L13: -7.1 | M13: 2.5 | N13: 1.9 | O13: 21.7 | P13: -8.3 | Q13: 8.5 | R13: -3.3 | S13: 5.6 | T13: -8.1 | U13: -7.5 | V13: -11.8 | W13: 3.8 | X13: -4.9 | Y13: -4.2
A14: Przychody/koszty z tytułu aktywów finansowych | B14: Gain/loss on financial assets [1] | C14: -71.1 | D14: 0 | E14: 0 | F14: 0 | G14: 0 | H14: 0 | I14: 0 | J14: 0 | K14: 0 | L14: 0 | M14: 0 | N14: 0 | O14: 0 | P14: 0 | Q14: 0 | R14: 0 | S14: 0 | T14: 0 | U14: 0 | V14: 0 | W14: 0 | X14: 0 | Y14: 0
A15: Pozostałe przychody/koszty finansowe | B15: Other financial income/expenses | C15: 27 | D15: 0.2 | E15: 10.6 | F15: 5.6 | G15: -4.6 | H15: -4.3 | I15: 8.1 | J15: 10.6 | K15: -3.5 | L15: 18.7 | M15: -4.6 | N15: 9.8 | O15: 3.4 | P15: 8.7 | Q15: -16.9 | R15: 14.6 | S15: 13.9 | T15: 3.6 | U15: 16.3 | V15: -10.3 | W15: 0.5 | X15: 12 | Y15: 0.5
A16: Zysk na utracie kontroli nad spółkami zależnymi | B16: Gain on lose of control over subsidiaries | C16: -359.2 | D16: 0 | E16: 0 | F16: 0 | G16: 0 | H16: 0 | I16: 0 | J16: 0 | K16: 0 | L16: 0 | M16: 0 | N16: 0 | O16: 0 | P16: 0 | Q16: 0 | R16: 0 | S16: 0 | T16: 0 | U16: 0 | V16: 0 | W16: 0 | X16: -0.3 | Y16: -2.2
A17: Odpis z tytułu utraty wartości firmy | B17: Write-off of consolidated goodwill | C17: 100.1 | D17: 0 | E17: 0 | F17: 0 | G17: 0 | H17: 0 | I17: 0 | J17: 0 | K17: 0 | L17: 0 | M17: 0 | N17: 0 | O17: 0 | P17: 0 | Q17: 0 | R17: 0 | S17: 0 | T17: 0 | U17: 12.7 | V17: 0.1 | W17: 5 | X17: 0 | Y17: 4.9
A18: Zyski/straty na sprzedaży rzeczowych AT, WN oraz nieruchomości inwestycyjnych[1] | B18: Gain/loss on disposal of PPE, IA and investment properties[1] | C18: -5.5 | D18: -0.7 | E18: -0.4 | F18: -0.8 | G18: -2.1 | H18: -0.6 | I18: -1 | J18: -0.7 | K18: -0.4 | L18: -0.5 | M18: -1 | N18: -1 | O18: -0.7 | P18: -2 | Q18: -0.8 | R18: -2.2 | S18: 4 | T18: -0.4 | U18: -1.9 | V18: -16 | W18: -11.2 | X18: -1.7 | Y18: -1.6
A19: Zysk na sprzedaży spółki zależnej | B19: Gain on disposal of subsidiary | C19: 0 | D19: 0 | E19: 0 | F19: 0 | G19: -9 | H19: 0 | I19: 0 | J19: 0 | K19: 0 | L19: 0 | M19: 0 | N19: 0 | O19: -0.3 | P19: 0 | Q19: 0 | R19: 0 | S19: 0 | T19: 0 | U19: -192.2 | V19: -3.5 | W19: -11.5 | X19: 0 | Y19: 0
A20: Zysk na sprzedaży działalności zaniechanej | B20: Gain on disposal of discontinued operations | D20: 0 | E20: 0 | F20: 0 | G20: 0 | H20: 0 | I20: 0 | J20: 0 | K20: 0 | L20: 0 | M20: 0 | N20: 0
A21: Koszty trans. z pracownikami rozliczanych w formie instr. kapitałowych | B21: Costs of equity-settled employee payment transactions | C21: 18.8 | D21: 5.4 | E21: 6.3 | F21: 5.3 | G21: 4.6 | H21: 5.1 | I21: 3.8 | J21: 4.3 | K21: 3.4 | L21: 13.3 | M21: -2.7 | N21: 4.9 | O21: 16 | P21: 15 | Q21: 14.3 | R21: 11.9 | S21: 17.4 | T21: 18.3 | U21: 13.9 | V21: 12.4 | W21: 20.2 | X21: 19.3 | Y21: 19.9
A22: Odpis aktualizujący wartości niematerialne, rzeczowe aktywa trwałe i nieruchomości inwestycyjne | B22: Impairment of intangible and tangible fixed assets and investment property | C22: 0 | D22: 0 | E22: 0 | F22: 0 | G22: 0 | H22: 0 | I22: 0 | J22: 0 | K22: 0 | L22: 0 | M22: 0 | N22: 0 | O22: 7.9 | P22: 0 | Q22: 0 | R22: 0 | S22: 14.3 | T22: 0 | U22: 32 | V22: -5.2 | W22: 10.8 | X22: -1.3 | Y22: 1.1
A23: Zyski/straty z tytułu likwidacji rzeczowych aktywów trwałych i wartości niematerialnych | B23: Profit / loss on liquidation of FA and IA | C23: 8.8 | D23: 0 | E23: 0.1 | F23: 0.4 | G23: 5.6 | H23: 0 | I23: 1.6 | J23: 1.7 | K23: 0.6 | L23: 0.7 | M23: 0.5 | N23: 1.5 | O23: 4.1 | P23: 0.2 | Q23: 0 | R23: 0.2 | S23: 0.4 | T23: 0.1 | U23: 0.7 | V23: 0.4 | W23: 0.5 | X23: 0.1 | Y23: 0.7
A24: Zyski/straty z modyfikacji umów leasingowych | B24: Profit / loss on lease modifications | X24: -4.7 | Y24: 0.2
A25: Zyski/straty z tytułu hiperinflacji | B25: Profit/loss due to hyperinflation | U25: -20.3 | V25: -8.9 | W25: 2.9 | X25: -9.9 | Y25: 4.7
A26: Pozostałe korekty zysku brutto | B26: Other pre-tax profit adjustments | C26: 13.9 | D26: -3.7 | E26: 0.3 | F26: 1.8 | G26: 1.6 | H26: 0 | I26: -0.2 | J26: 1.3 | K26: -0.9 | L26: 0.6 | M26: 3.1 | N26: 2.2 | O26: -1.7 | P26: 0.3 | Q26: 0.5 | R26: 1.3 | S26: -13.5 | T26: 0.5 | U26: -1.7 | V26: -0.6 | W26: -0.8 | X26: -0.5 | Y26: 0.4
A27: Środki pieniężne netto wygenerowane z działalności operacyjnej | B27: Cash generated from operating activities | C27: =C9+C7 -> 863.1 | D27: 182.4 | E27: 208.2 | F27: 195.8 | G27: 591.4 | H27: 367 | I27: 205 | J27: 401.3 | K27: 796.4 | L27: 387.7 | M27: 482.3 | N27: 483.6 | O27: 877.7 | P27: 142.1 | Q27: 451.8 | R27: 422.2 | S27: 869.9 | T27: 448.5 | U27: 304.2 | V27: 527.3 | W27: =W9+W7 -> 970.3 | X27: 407.4 | Y27: =Y9+Y7 -> 537
A28: Zapłacony podatek dochodowy | B28: Corporate income tax paid | C28: -171.7 | D28: -41.8 | E28: -21.9 | F28: -40.7 | G28: -72.7 | H28: -68.5 | I28: -73.6 | J28: -39.9 | K28: -86.4 | L28: -57.7 | M28: -62.1 | N28: -113.6 | O28: -37.2 | P28: -60.3 | Q28: -67.7 | R28: -66.8 | S28: -98.2 | T28: -73.5 | U28: -119.2 | V28: -99.2 | W28: -109.6 | X28: -100.5 | Y28: -160.9
A29: Środki pieniężne netto z działalności operacyjnej | B29: Net cash provided by (used in) operating activities | C29: =C27+C28 -> 691.4 | D29: =D27+D28 -> 140.6 | E29: 186.3 | F29: 155.1 | G29: 518.7 | H29: 298.5 | I29: 131.4 | J29: 361.4 | K29: 710 | L29: =L27+L28 -> 330 | M29: 420.2 | N29: 370 | O29: 840.5 | P29: 81.8 | Q29: 384.1 | R29: 355.4 | S29: 771.7 | T29: =T27+T28 -> 375 | U29: 185 | V29: =V27+V28 -> 428.1 | W29: 860.7 | X29: =X27+X28 -> 306.9 | Y29: 376.1
A31: Przepływy środków pieniężnych z działalności inwestycyjnej | B31: Cash flows – investing activities
A32: Wpływy ze sprzedaży rzeczowych AT i WN [1] oraz NI [5] | B32: Disposal of PPE and IA [1] and IP [5] | C32: 30.3 | D32: 1.7 | E32: 0.7 | F32: 1.1 | G32: 4.4 | H32: 8.2 | I32: 10 | J32: 6.1 | K32: 3.9 | L32: 2.3 | M32: 2.7 | N32: 2.4 | O32: 3.2 | P32: 4.6 | Q32: 8.7 | R32: 2.6 | S32: 15.3 | T32: 2.2 | U32: 9.8 | V32: 24 | W32: 9.5 | X32: 5.7 | Y32: 8.7
A33: Nabycie rzeczowych AT i WN [1] oraz NI [5] | B33: Acquisition of PPE and IA [1] | C33: -225.9 | D33: -49.3 | E33: -60.2 | F33: -58 | G33: -72.8 | H33: -72.5 | I33: -69.6 | J33: -98.8 | K33: -78.8 | L33: -88.9 | M33: -66.8 | N33: -73.7 | O33: -84.6 | P33: -61.4 | Q33: -68 | R33: -68.2 | S33: -100.9 | T33: -99.9 | U33: -89.8 | V33: -87.6 | W33: -145.6 | X33: -98.6 | Y33: -82.6
A34: Wydatki z tytułu nabycia jedn. zależnych i stowarzyszonych | B34: Expenditures for the acquisition of subsidiaries and associates | C34: -675.9 | D34: -110.8 | E34: -37.9 | F34: -16 | G34: -83.9 | H34: -104.8 | I34: -48.5 | J34: -92.2 | K34: -82.7 | L34: -0.8 | M34: -66.4 | N34: -153.4 | O34: -302 | P34: -20.1 | Q34: -304.6 | R34: -54.1 | S34: -107.7 | T34: -125.6 | U34: -111.8 | V34: -80.8 | W34: -17.5 | X34: -129.6 | Y34: -114.8
A35: Środki pieniężne i ich ekwiwalenty w nabytych jednostkach zależnych | B35: Cash and cash equivalents in subsidiaries acquired | C35: 917.1 | D35: 0 | E35: 0 | F35: 0 | G35: 0 | H35: 0 | I35: 0 | J35: 0 | K35: 0 | L35: 0 | M35: 0 | N35: 0 | O35: 0 | P35: 0 | Q35: 0 | R35: 0 | S35: 0 | T35: 0 | U35: 0 | V35: 0 | W35: 0 | X35: 0 | Y35: 0
A36: Wpływy ze sprzedaży akcji/udziałów w jednostkach powiązanych | B36: Proceeds from sale of investment in subsidiaries | C36: 340.3 | D36: 3.7 | E36: 4.6 | F36: 1.5 | G36: 11.4 | H36: 0.4 | I36: 3.9 | J36: 5.7 | K36: 2.5 | L36: 1.8 | M36: 26.2 | N36: 4.2 | O36: -0.3 | P36: 2.7 | Q36: 22.1 | R36: 5 | S36: 0.8 | T36: 2.4 | U36: 156.4 | V36: 41.7 | W36: 43.5 | X36: 1 | Y36: 2.7
A37: Środki pieniężne i ich ekwiwalenty w sprzedanych jednostkach zależnych (działalność zaniechana) | B37: Cash and cash equivalents in subsidiaries disposed of (discontinued operations) | C37: -725.8 | D37: 0 | E37: 0 | F37: 0 | G37: 6.4 | H37: 0 | I37: 0 | J37: 0 | K37: 0 | L37: 0 | M37: 0 | N37: 0 | O37: 0 | P37: 0 | Q37: 0 | R37: 0 | S37: 0 | T37: 0 | U37: 0 | V37: 0 | W37: 0 | X37: 0 | Y37: 0
A38: Wpływy ze sprzedaży/rozliczenia aktywów finansowych [2] / [6] | B38: Disposal/settlement of financial assets [2] / [6] | C38: 189.7 | D38: 1.2 | E38: 6.2 | F38: 1.3 | G38: 7.9 | H38: 2.9 | I38: 6.7 | J38: -0.8 | K38: 4.3 | L38: 23.5 | M38: -23.3 | N38: 21.1 | O38: 90 | P38: 0 | Q38: 0 | R38: 0 | S38: 0.3 | T38: 0 | U38: 0 | V38: 1.1 | W38: 5.5 | X38: 4.7 | Y38: 1
A39: Wydatki na nabycie/wydatki z tytułu rozliczenia aktywów finansowych [3] / [7] | B39: Acquisition/settlement of financial assets [3] / [7] | C39: -26.2 | D39: -2 | E39: 0.6 | F39: -1.5 | G39: -14.8 | H39: -0.1 | I39: -0.6 | J39: 0.6 | K39: -90.2 | L39: -2.5 | M39: 17.7 | N39: -17.7 | O39: -0.8 | P39: 0 | Q39: -0.6 | R39: -19.1 | S39: 0.8 | T39: 0 | U39: -0.8 | V39: -67.6 | W39: -2.2 | X39: -1.5 | Y39: -6.4
A40: Środki pieniężne i ich ekwiwalenty w sprzedanych jednostkach zależnych (działalność zaniechana) | C40: 0 | D40: 0 | E40: 0 | F40: 0 | G40: 0 | H40: 0 | I40: 0 | J40: 0 | K40: 0 | L40: 0 | M40: 0 | N40: 0
A41: Wpływ ze sprzedaży pozostałych instrumentów dłużnych [8] | B41: Disposal of other debt instruments [8] | C41: 0 | D41: 0 | E41: 0 | F41: 1.3 | G41: 2.8 | H41: 0 | I41: 3.5 | J41: 0 | K41: 3.1 | L41: 10.6 | M41: 2 | N41: 0 | O41: 0.1 | P41: 0 | Q41: 0 | R41: 0 | S41: 0 | T41: 0 | U41: 0 | V41: 0 | W41: 0 | X41: 0 | Y41: 0
A42: Wydatki na nabycie inwestycji w instrumenty dłużne [9] | B42: Acquisition of ivestments in debt instruments measured at amortised cost [9] | C42: 0 | D42: -1.8 | E42: 0 | F42: -9.8 | G42: 0 | H42: -4.5 | I42: 0 | J42: -0.1 | K42: -11.6 | L42: -1.8 | M42: -0.1 | N42: 0 | O42: 0 | P42: 0 | Q42: 0 | R42: 0 | S42: 0 | T42: -1.2 | U42: 1.1 | V42: -0.2 | W42: -0.3 | X42: 0 | Y42: 0
A43: Wpływ ze sprzedaży pozostałych aktywów finansowych | B43: Proceeds from sale of other financial assets | C43: 0 | D43: 0 | E43: 0 | F43: 0 | G43: 0 | H43: 0 | I43: 0 | J43: 0 | K43: 0 | L43: 0 | M43: 0 | N43: 0
A44: Pożyczki udzielone (w tym zawarte lokaty) | B44: Loans granted | C44: -74.5 | D44: -11.7 | E44: -7 | F44: -0.3 | G44: -64.6 | H44: -0.4 | I44: -3.9 | J44: -9.3 | K44: -23.4 | L44: -10.8 | M44: -5.9 | N44: 4.2 | O44: -162.3 | P44: -0.5 | Q44: -6.1 | R44: -103.5 | S44: -24.3 | T44: -63 | U44: -37.6 | V44: -252 | W44: -3 | X44: -334.6 | Y44: -98.2
A45: Pożyczki spłacone (w tym zakończone lokaty) | B45: Loans collected | C45: 99.5 | D45: 14.9 | E45: 13.5 | F45: 5.9 | G45: 1 | H45: 30.2 | I45: 1.1 | J45: 9.4 | K45: 20.3 | L45: 1.2 | M45: 30.3 | N45: 30.9 | O45: 20.4 | P45: 0.6 | Q45: 88.8 | R45: 86.8 | S45: 86.9 | T45: 59 | U45: 1.4 | V45: 245.7 | W45: 79 | X45: 89 | Y45: 45.3
A46: Otrzymane odsetki | B46: Interest received | C46: 15.4 | D46: 5.6 | E46: 0.7 | F46: 1.9 | G46: 0.4 | H46: 5.3 | I46: 0 | J46: 0.8 | K46: 3.1 | L46: 3.7 | M46: 0.7 | N46: 0.1 | O46: 1.6 | P46: 2.7 | Q46: 0.1 | R46: 1.3 | S46: 0.2 | T46: 1 | U46: 4.4 | V46: -1.2 | W46: -1.6 | X46: 3.2 | Y46: 6
A47: Dywidendy otrzymane | B47: Dividends received | C47: 1.6 | D47: 0 | E47: 0.9 | F47: -0.1 | G47: 0.9 | H47: 0 | I47: 1.2 | J47: 0.4 | K47: 0 | L47: 0 | M47: 13.5 | N47: -0.1 | O47: 0.7 | P47: 0 | Q47: 10.3 | R47: 0.3 | S47: 0 | T47: 0.3 | U47: 1.8 | V47: 1.1 | W47: 0 | X47: 0.2 | Y47: -0.1
A48: Pozostałe przepływy z działalności inwestycyjnej | B48: Other cash flows from investing activities | C48: 8.6 | D48: -2.2 | E48: -1.5 | F48: -3.4 | G48: 7 | H48: -8 | I48: 7.6 | J48: -11 | K48: 0.9 | L48: 4.7 | M48: 2.4 | N48: 2.3 | O48: 0 | P48: -4.5 | Q48: -10.8 | R48: 10.2 | S48: 2.2 | T48: 7.6 | U48: -1.5 | V48: 1.7 | W48: -1.776356839e-15 | X48: 0 | Y48: 0
A49: Środki pieniężne netto wykorzystane w działalności inwestycyjnej | B49: Net cash provided by (used in) investing activities | C49: =SUM(C32:C48) -> -125.8 | D49: =SUM(D32:D48) -> -150.7 | E49: -79.4 | F49: -76.1 | G49: -193.9 | H49: -143.3 | I49: -88.6 | J49: -189.2 | K49: -248.6 | L49: =SUM(L32:L48) -> -57 | M49: -67 | N49: -179.7 | O49: -434 | P49: -75.9 | Q49: -260.1 | R49: -138.7 | S49: -126.4 | T49: =SUM(T32:T48) -> -217.2 | U49: -66.6 | V49: =SUM(V32:V48) -> -174.1 | W49: -32.7 | X49: =SUM(X32:X48) -> -460.5 | Y49: -238.4
A51: Przepływy środków pieniężnych z działalności finansowej | B51: Cash flows – financing activities
A52: Wpływ z tytułu emisji kapitału | B52: Proceeds from issue of capital | C52: 0 | D52: 0 | E52: 0 | F52: 90.7 | G52: 5.8 | H52: 0 | I52: 0 | J52: 0 | K52: 0 | L52: 0 | M52: 0 | N52: 0 | O52: 424.6 | P52: 0 | Q52: 0 | R52: 0 | S52: 0 | T52: 0 | U52: 0 | V52: 0 | W52: 0 | X52: 11.5 | Y52: -0.3
A53: Wpływy z realizacji programu opcji pracowniczych | B53: Proceeds from share-based payments | C53: 11.9 | D53: 0 | E53: 0.4 | F53: 2.3 | G53: -1.8 | H53: 0 | I53: 0.4 | J53: 1.6 | K53: 3.6 | L53: 5.5 | M53: 4.8 | N53: 10 | O53: 0.4 | P53: 1.6 | Q53: 0.9 | R53: 1.6 | S53: 3.9 | T53: 0 | U53: 0.2 | V53: 0.1 | W53: -0.3 | X53: 0 | Y53: 0
A54: Wydatki z tytułu nabycia udziałów niekontrolujących | B54: Acquisition of non-controlling interests | C54: -4.7 | D54: -9.2 | E54: -1 | F54: -2.7 | G54: -45.1 | H54: 0 | I54: -4.6 | J54: -7.6 | K54: -16.8 | L54: -87.3 | M54: -12.5 | N54: 1.8 | O54: -17.3 | P54: -0.3 | Q54: -8.9 | R54: -67.8 | S54: -4.7 | T54: -34.4 | U54: -30 | V54: -13.7 | W54: -8.5 | X54: -12.4 | Y54: -34.3
A55: Wpływy z tytułu zaciągnięcia pożyczek/kredytów | B55: Proceeds from bank loans and borrowings | C55: 425.8 | D55: 33.3 | E55: 106 | F55: 128.6 | G55: 124.2 | H55: 234.8 | I55: 194.3 | J55: 46.8 | K55: 79.4 | L55: 534.7 | M55: 64.2 | N55: 26 | O55: 4.9 | P55: 24.7 | Q55: 176.1 | R55: 254.4 | S55: -133.4 | T55: 465.6 | U55: -7.8 | V55: 61.5 | W55: 183.9 | X55: 118.1 | Y55: 152
A56: Wpływy z tytułu emisji dłużnych papierów wartościowych | B56: Proceeds from the issuance of debt securities | C56: 3.4 | D56: 153.7 | E56: 5.9 | F56: 2.3 | G56: 2.4 | H56: 0 | I56: 311.4 | J56: 7.3 | K56: 2.2 | L56: 0 | M56: 302.3 | N56: -6 | O56: -1.6 | P56: 0 | Q56: 190.6 | R56: 2.9 | S56: 124.8 | T56: 0 | U56: 0 | V56: 649 | W56: 232.6 | X56: 0 | Y56: 0
A57: Wykup dłużnych papierów wartościowych | B57: Repayment/redemption of debt securities | C57: -14.1 | D57: 0 | E57: -33 | F57: -0.5 | G57: -0.5 | H57: -80.4 | I57: -0.1 | J57: -38.3 | K57: -0.5 | L57: -102.7 | M57: -0.9 | N57: -37.2 | O57: -37.7 | P57: -75.5 | Q57: -38.8 | R57: -1.4 | S57: -65.4 | T57: -82.4 | U57: -46.7 | V57: -4.4 | W57: -107.6 | X57: -86.4 | Y57: -38.4
A58: Spłata pożyczek/kredytów | B58: Repayment of bank loans and borrowings | C58: -306.1 | D58: -82.2 | E58: -42.5 | F58: -41.5 | G58: -136.1 | H58: -137.1 | I58: -138.3 | J58: -67 | K58: -96.7 | L58: -110.6 | M58: -374.4 | N58: -81.3 | O58: -165 | P58: -81.3 | Q58: -102 | R58: -94.5 | S58: -127.2 | T58: -100.9 | U58: -122 | V58: -259 | W58: -331.9 | X58: -133.7 | Y58: -125.5
A59: Spłata zobowiązań z tytułu leasingu | B59: Lease liabilities paid | C59: -28.5 | D59: -6.6 | E59: -7.5 | F59: -7.8 | G59: -7.4 | H59: -48.2 | I59: -50.8 | J59: -51.4 | K59: -56.1 | L59: -55.2 | M59: -59.7 | N59: -49.9 | O59: -57.4 | P59: -50.4 | Q59: -50 | R59: -49.1 | S59: -89.8 | T59: -62.6 | U59: -71.6 | V59: -82.2 | W59: -79.4 | X59: -77.7 | Y59: -73.5
A60: Zapłacone odsetki (w tym z tytułu leasingu) | B60: Interest paid | C60: -39.8 | D60: -13.5 | E60: -12.4 | F60: -7.3 | G60: -7.4 | H60: -26.3 | I60: -12.8 | J60: -25.6 | K60: -18.8 | L60: -23 | M60: -19.2 | N60: -22.8 | O60: -24 | P60: -15.4 | Q60: -19.9 | R60: -20.3 | S60: -25.4 | T60: -14.1 | U60: -19.4 | V60: -22.5 | W60: -34.7 | X60: -36.6 | Y60: -29.9
A61: Dywidendy wypłacone przez Jednostkę Dominującą | B61: Dividends paid out to the shareholders of Parent Company | C61: -249.8 | D61: 0 | E61: -249.8 | F61: 0 | G61: 0 | H61: 0 | I61: -254.8 | J61: 0 | K61: 0 | L61: 0 | M61: -249.8 | N61: 0 | O61: 0 | P61: 0 | Q61: -258.1 | R61: 0 | S61: 0 | T61: 0 | U61: -278.9 | V61: 0 | W61: 0 | X61: 0 | Y61: -290.5
A62: Dywidendy wypłacone dla udziałowców niekontrolujących | B62: Dividends paid out to non-controlling interests | C62: -168.9 | D62: -34.8 | E62: -65 | F62: -55.8 | G62: -40.2 | H62: -59.5 | I62: -61.1 | J62: -96.1 | K62: -34.7 | L62: -70.5 | M62: -101.4 | N62: -94.7 | O62: -48.5 | P62: -63.1 | Q62: -150.9 | R62: -134 | S62: -41 | T62: -11.4 | U62: -258.3 | V62: -249.6 | W62: -71.4 | X62: -12.6 | Y62: -216.2
A63: Dotacje otrzymane [4] | B63: Grants received [4] | C63: 9.8 | D63: 0 | E63: 0 | F63: 0 | G63: 1 | H63: 0 | I63: 2.3 | J63: 2.8 | K63: 0 | L63: 3.4 | M63: 2.2 | N63: 1.1 | O63: 4.4 | P63: 2.9 | Q63: -0.1 | R63: 0.7 | S63: 0.4 | T63: 0.2 | U63: 1.1 | V63: 0.3 | W63: 1.8 | X63: 0.2 | Y63: 0.6
A64: Dotacje zwrócone | B64: Grants returned | C64: 0 | D64: 0 | E64: 0 | F64: 0 | G64: -9.5 | H64: 0 | I64: 0 | J64: 0 | K64: 0 | L64: 0 | M64: 0 | N64: 0 | O64: 0 | P64: 0 | Q64: 0 | R64: 0 | S64: 0 | T64: 0 | U64: 0 | V64: 0 | W64: 0 | X64: 0 | Y64: 0
A65: Pozostałe przepływy z działalności finansowej | B65: Other cash flows from financing activities | C65: -3.4 | D65: 0 | E65: 0 | F65: 0 | G65: 0.2 | I65: 0 | J65: 0 | K65: 0 | L65: 0 | M65: 0 | N65: 0 | O65: 0 | P65: 0 | Q65: 0 | R65: 0 | S65: 0 | T65: -1.8 | U65: 1.8 | V65: -0.4 | W65: 0 | X65: -0.4 | Y65: 0.4
A66: Środki pieniężne netto z działalności finansowej | B66: Net cash provided by (used in) financing activities | C66: =SUM(C52:C65) -> -364.4 | D66: =SUM(D52:D65) -> 40.7 | E66: -298.9 | F66: 108.3 | G66: -114.4 | H66: -116.7 | I66: -14.1 | J66: -227.5 | K66: -138.4 | L66: =SUM(L52:L65) -> 94.3 | M66: -444.4 | N66: -253 | O66: =SUM(O52:O65) -> 82.8 | P66: -256.8 | Q66: =SUM(Q52:Q65) -> -261.1 | R66: -107.5 | S66: -357.8 | T66: =SUM(T52:T65) -> 158.2 | U66: -831.6 | V66: =SUM(V52:V65) -> 79.1 | W66: -215.5 | X66: =SUM(X52:X65) -> -230 | Y66: -655.6
A68: Zwiększenie/Zmniejszenie netto stanu środków pieniężnych i ich ekwiwalentów | B68: Net increase (decrease) in cash and cash equivalents | C68: =C29+C49+C66 -> 201.2 | D68: =D29+D49+D66 -> 30.6 | E68: -192 | F68: 187.3 | G68: 210.4 | H68: 38.5 | I68: 28.7 | J68: -55.3 | K68: 323 | L68: =L29+L49+L66 -> 367.3 | M68: -91.2 | N68: -62.7 | O68: =O29+O49+O66 -> 489.3 | P68: -250.9 | Q68: =Q29+Q49+Q66 -> -137.1 | R68: 109.2 | S68: 287.5 | T68: =T29+T49+T66 -> 316 | U68: =U29+U49+U66 -> -713.2 | V68: 333.1 | W68: =W29+W49+W66 -> 612.5 | X68: -383.6 | Y68: =Y29+Y49+Y66 -> -517.9
A70: Różnice kursowe netto | B70: Net foreign exchange differences | C70: -189.3 | D70: -19.1 | E70: 72.8 | F70: -18.9 | G70: 12.4 | H70: 27.1 | I70: -22.4 | J70: 94.9 | K70: -83.8 | L70: 126.9 | M70: -59.3 | N70: -33.4 | O70: 17 | P70: 70.2 | Q70: -85.4 | R70: 98.1 | S70: 56.9 | T70: 57.8 | U70: 26.5 | V70: 222.6 | W70: -317.6 | X70: -81.4 | Y70: -130.3
A71: Środki pieniężne i ich ekwiwalenty netto na początek danego okresu | B71: Cash and cash equivalents at the beginning of the period | C71: 1472.1 | D71: 1484 | E71: 1495.5 | F71: 1376.3 | G71: 1544.7 | H71: 1767.5 | I71: 1833.1 | J71: 1839.4 | K71: 1879 | L71: 2118.2 | M71: 2612.4 | N71: 2461.9 | O71: 2365.8 | P71: 2872.1 | Q71: 2691.4 | R71: 2468.9 | S71: =2676.2 -> 2676.2 | T71: 3021.8 | U71: =T72 -> 3395.6 | V71: =U72 -> 2708.9 | W71: =V72 -> 3264.6 | X71: =W72+4 -> 3563.5 | Y71: =X72 -> 3098.5
A72: Środki pieniężne i ich ekwiwalenty netto na koniec danego okresu | B72: Cash and cash equivalents at the end of the period | C72: 1484 | D72: 1495.5 | E72: 1376.3 | F72: 1544.7 | G72: 1767.5 | H72: 1833.1 | I72: 1839.4 | J72: 1879 | K72: 2118.2 | L72: 2612.4 | M72: 2461.9 | N72: 2365.8 | O72: 2872.1 | P72: 2691.4 | Q72: 2468.9 | R72: 2676.2 | S72: =3021.8-1.2 -> 3020.6 | T72: 3395.6 | U72: 2708.9 | V72: 3264.6 | W72: 3559.5 | X72: 3098.5 | Y72: 2450.3
C73: =C71+C70+C68-C72 -> 0 | D73: =D71+D70+D68-D72 -> 0 | E73: 0 | F73: 0 | G73: 0 | H73: 0 | I73: 0 | J73: 0 | K73: 0 | L73: =L71+L70+L68-L72 -> 0 | M73: 0 | N73: =N71+N70+N68-N72 -> 0 | O73: 0 | P73: 0 | Q73: 0 | R73: 0 | S73: 0 | T73: =T71+T70+T68-T72 -> 0 | U73: 0 | V73: =V71+V70+V68-V72 -> 0 | W73: 0 | X73: =X71+X70+X68-X72 -> 0 | Y73: 0
A75: Zmiany stanu kapitału pracującego | B75: Changes in working capital
C76: YE 2017 | D76: Q1 2018 | E76: Q2 2018 | F76: Q3 2018 | G76: Q4 2018 | H76: =H2 -> Q1 2019 | I76: Q2 2019 | J76: Q3 2019 | K76: Q4 2019 | L76: Q1 2020 | M76: Q2 2020 | N76: Q3 2020 | O76: Q4 2020 | P76: Q1 2021 | Q76: Q2 2021 | R76: Q3 2021 | S76: Q4 2021 | T76: Q1 2022 | U76: Q2 2022 | V76: Q3 2022 | W76: =W2 -> Q4 2022 | X76: =X2 -> Q1 2023 | Y76: =Y2 -> Q2 2023
C78: mln PLN | D78: mln PLN | E78: mln PLN | F78: mln PLN | G78: mln PLN | H78: =H4 -> mln PLN | I78: mln PLN | J78: mln PLN | K78: mln PLN | L78: mln PLN | M78: mln PLN | N78: mln PLN | O78: mln PLN | P78: mln PLN | Q78: mln PLN | R78: mln PLN | S78: mln PLN | T78: mln PLN | U78: mln PLN | V78: mln PLN | W78: mln PLN | X78: mln PLN | Y78: mln PLN
A79: Zmiana stanu zapasów | B79: Change in inventories | C79: 0 | D79: -8.8 | E79: 7.3 | F79: -18.2 | G79: 1.1 | H79: -3.7 | I79: -4.8 | J79: -8.6 | K79: -4.4 | L79: 7.8 | M79: -16 | N79: -10.7 | O79: -16 | P79: -3 | Q79: 10.3 | R79: -1.9 | S79: -7.8 | T79: -69.2 | U79: -54.8 | V79: -23 | W79: 35.1 | X79: -12.6 | Y79: 6.4
A80: Zmiana stanu należności i aktywów niefinansowych | B80: Change in receivables and non-financial assets | C80: -151.8 | D80: 121.3 | E80: -65.6 | F80: -60.3 | G80: -210.7 | H80: 178.5 | I80: -104.7 | J80: 30.2 | K80: -18.7 | L80: -10.9 | M80: 137.7 | N80: -96.6 | O80: -99.2 | P80: -157.4 | Q80: -135.8 | R80: -36 | S80: -325.4 | T80: 89.6 | U80: -262.8 | V80: -65.8 | W80: -316.7 | X80: 27.5 | Y80: -105.1
A81: Zmiana stanu zobowiązań | B81: Change in liabilities | C81: 19.4 | D81: -248.1 | E81: -11.3 | F81: 17.1 | G81: 415 | H81: -237.9 | I81: -54 | J81: -7.8 | K81: 358 | L81: -97.2 | M81: -91.9 | N81: 125.9 | O81: 370.3 | P81: -268.4 | Q81: 18.9 | R81: -36.6 | S81: 476.3 | T81: -269.8 | U81: 60.6 | V81: 42.6 | W81: 407.2 | X81: -225.7 | Y81: -45.1
A82: Zmiana stanu rozliczeń międzyokresowych | B82: Change in prepayments and accruals | C82: 85 | D82: 56.4 | E82: -34.7 | F82: -55.5 | G82: 28.6 | H82: 64.9 | I82: -28.1 | J82: -44.1 | K82: 27.8 | L82: 44.8 | M82: -15.2 | N82: -30.2 | O82: 55.3 | P82: 78.4 | Q82: 0 | R82: -72 | S82: 55.7 | T82: 83.1 | U82: -58.7 | V82: -67.7 | W82: 121.3 | X82: -26 | Y82: 14.3
A83: Zmiana stanu rezerw | B83: Change in provisions | C83: -23.2 | D83: -17.5 | E83: -5.1 | F83: 1.7 | G83: 5.9 | H83: -1.3 | I83: -4.7 | J83: 1.8 | K83: 1.3 | L83: 3.2 | M83: 0.7 | N83: 12.7 | O83: 0.9 | P83: -9.3 | Q83: 3.7 | R83: -3.3 | S83: -1.8 | T83: 4.5 | U83: -5.8 | V83: 6.6 | W83: 17.7 | X83: 5.2 | Y83: 10.6
A84: Zmiana stanu pozostałe | B84: Change in restricted cash | C84: -0.2 | D84: -4.5 | E84: 4.5 | F84: 0 | G84: -1.8 | H84: 2.6 | I84: -2.6 | J84: 0 | K84: -9.4 | L84: 1.2 | M84: -0.9 | N84: -2.1 | O84: 2.8 | P84: -2.2 | Q84: 1.3 | R84: 0.9 | S84: -2 | T84: 0 | U84: -0.5 | V84: 0.2 | W84: -0.1 | X84: 0 | Y84: 0
C85: =ROUND(SUM(C79:C84),1) -> -70.8 | D85: =ROUND(SUM(D79:D84),1) -> -101.2 | E85: -104.9 | F85: -115.2 | G85: 238.1 | H85: 3.1 | I85: -198.9 | J85: -28.5 | K85: 354.6 | L85: -51.1 | M85: =ROUND(SUM(M79:M84),1) -> 14.4 | N85: -1 | O85: 314.1 | P85: -361.9 | Q85: =ROUND(SUM(Q79:Q84),1) -> -101.6 | R85: -148.9 | S85: =ROUND(SUM(S79:S84),1) -> 195 | T85: -161.8 | U85: -322 | V85: =ROUND(SUM(V79:V84),1) -> -107.1 | W85: 264.5 | X85: =ROUND(SUM(X79:X84),1) -> -231.6 | Y85: -118.9
C86: =C85-C11 -> 0 | D86: 0 | E86: 0 | F86: 0 | G86: 0 | H86: 0 | I86: 0 | J86: 0 | K86: 0 | L86: 0 | M86: 0 | N86: 0 | O86: 0 | P86: 0 | Q86: 0 | R86: 0 | S86: 0 | T86: 0 | U86: 0 | V86: 0 | W86: =W85-W11 -> 0 | X86: 0 | Y86: =Y85-Y11 -> 0
A87: Objaśnienia: | B87: Legend:
A88: [1] AT i WN - aktywów trwałych i wartości niematerialnych | B88: [1] PPE and IA - property, plant and equipment and intangible assets
A89: [2] Wpływy ze sprzedaży/rozliczenia akt. finansowych . wycenianych w wart. godz. przez wynik finansowy | B89: [2] Disposal/settlement of financial assets carried at fair value through profit or loss
A90: [3] Wydatki na nabycie/wydatki z tytułu rozliczenia akt. fin. wycenianych w wart. godz. przez wynik finansowy | B90: [3] Acquisition/settlement of financial assets carried at fair value through profit or loss
A91: [4] Dotacje otrzymane do zakupu środków trwałych lub/i projektów rozwojowych | B91: [4] Grants received for purchases of property, plant and equipment and/or development projects
A92: [5] NI - nieruchomości inwestycyjnych | B92: [5] IP - investment property
A93: [6] Wpływy ze sprzedaży aktywów finansowych wycenianych w wartości godziwej przez pozostałe dochody całkowite | B93: [6] Proceeds from disposal of financial assets valued at fair value through other comprehensive income
A94: [7] Nabycie aktywów finansowych wycenianych w wartości godziwej przez pozostałe dochody całkowite | B94: [7] Purchase of financial assets valued at fair value through other comprehensive income
A95: [8] Wpływ ze sprzedaży inwestycji w pozostałe instrumenty dłużne wyceniane w zamortyzowanym koszcie | B95: [8] Disposal of other debt instruments carried valued at amortized cost
A96: [9] Nabycie inwestycji w pozostałe instrumenty dłużne wyceniane w zamortyzowanym koszcie | B96: [9] Acquisition of investment in other debt instruments valued at amortized cost

Sheet CF (LTM)
A1: Rachunek przepływów pieniężnych (Grupa Asseco) | B1: Statement of cash flows (Asseco Group)
C2: Last 12 months
C4: mln PLN
A6: Przepływy środków pieniężnych z działalności operacyjnej | B6: Cash flows - operating activities
A7: Zysk przed opodatkowaniem i udziałem w wynikach jednostek stowarzyszonych i wspólnych przedsięwzięć | B7: Profit before tax and share of profits of associates and joint ventures | C7: =SUM(CF!V7:Y7) -> 1581
A9: Korekty o pozycje: | B9: Total adjustments: | C9: =SUM(C10:C26) -> 861
A10: Amortyzacja | B10: Depreciation and amortization | C10: =SUM(CF!V10:Y10) -> 906.6
A11: Zmiany stanu kapitału pracującego (szczegóły poniżej) | B11: Changes in working capital (see below) | C11: =SUM(CF!V11:Y11) -> -193.1
A12: Przychody/koszty z tytułu odsetek | B12: Interest income/expenses | C12: =SUM(CF!V12:Y12) -> 138.2
A13: Przychody/koszty z różnic kursowych | B13: Gain/loss on foreign exchange differences | C13: =SUM(CF!V13:Y13) -> -17.1
A14: Przychody/koszty z tytułu aktywów finansowych [1] | B14: Gain/loss on financial assets [1] | C14: =SUM(CF!V14:Y14) -> 0
A15: Pozostałe przychody/koszty finansowe | B15: Other financial income/expenses | C15: =SUM(CF!V15:Y15) -> 2.7
A16: Zysk na utracie kontroli nad spółkami zależnymi | B16: Gain on lose of control over subsidiaries | C16: =SUM(CF!V16:Y16) -> -2.5
A17: Odpis z tytułu utraty wartości firmy | B17: Write-off of consolidated goodwill | C17: =SUM(CF!V17:Y17) -> 10
A18: Zyski/straty na sprzedaży rzeczowych AT, WN oraz nieruchomości inwestycyjnych[1] | B18: Gain/loss on disposal of PPE, IA and investment properties[1] | C18: =SUM(CF!V18:Y18) -> -30.5
A19: Zysk na sprzedaży spółki zależnej | B19: Gain on disposal of subsidiary | C19: =SUM(CF!V19:Y19) -> -15
A20: Zysk na sprzedaży działalności zaniechanej | B20: Gain on disposal of discontinued operations | C20: =SUM(CF!V20:Y20) -> 0
A21: Koszty trans. z pracownikami rozliczanych w formie instr. kapitałowych | B21: Costs of equity-settled employee payment transactions | C21: =SUM(CF!V21:Y21) -> 71.8
A22: Odpis aktualizujący wartości niematerialne, rzeczowe aktywa trwałe i nieruchomości inwestycyjne | B22: Impairment of intangible and tangible fixed assets and investment property | C22: =SUM(CF!V22:Y22) -> 5.4
A23: Zyski/straty z tytułu likwidacji rzeczowych aktywów trwałych i wartości niematerialnych | B23: Profit / loss on liquidation of FA and IA | C23: =SUM(CF!V23:Y23) -> 1.7
A24: Zyski/straty z modyfikacji umów leasingowych | B24: Profit / loss on lease modifications | C24: =SUM(CF!V24:Y24) -> -4.5
A25: Zyski/straty z tytułu hiperinflacji | B25: Profit/loss due to hyperinflation | C25: =SUM(CF!V25:Y25) -> -11.2
A26: Pozostałe korekty zysku brutto | B26: Other pre-tax profit adjustments | C26: =SUM(CF!V26:Y26) -> -1.5
A27: Środki pieniężne netto wygenerowane z działalności operacyjnej | B27: Cash generated from operating activities | C27: =C9+C7 -> 2442
A28: Zapłacony podatek dochodowy | B28: Corporate income tax paid | C28: =SUM(CF!V28:Y28) -> -470.2
A29: Środki pieniężne netto z działalności operacyjnej | B29: Net cash provided by (used in) operating activities | C29: =C27+C28 -> 1971.8
A31: Przepływy środków pieniężnych z działalności inwestycyjnej | B31: Cash flows – investing activities
A32: Wpływy ze sprzedaży rzeczowych AT i WN [1] oraz NI [5] | B32: Disposal of PPE and IA [1] and IP [5] | C32: =SUM(CF!V32:Y32) -> 47.9
A33: Nabycie rzeczowych AT i WN [1] oraz NI [5] | B33: Acquisition of PPE and IA [1] | C33: =SUM(CF!V33:Y33) -> -414.4
A34: Wydatki z tytułu nabycia jedn. zależnych i stowarzyszonych | B34: Expenditures for the acquisition of subsidiaries and associates | C34: =SUM(CF!V34:Y34) -> -342.7
A35: Środki pieniężne i ich ekwiwalenty w nabytych jednostkach zależnych | B35: Cash and cash equivalents in subsidiaries acquired | C35: =SUM(CF!V35:Y35) -> 0
A36: Wpływy ze sprzedaży akcji/udziałów w jednostkach powiązanych | B36: Proceeds from sale of investment in subsidiaries | C36: =SUM(CF!V36:Y36) -> 88.9
A37: Środki pieniężne i ich ekwiwalenty w sprzedanych jednostkach zależnych (działalność zaniechana) | B37: Cash and cash equivalents in subsidiaries disposed of (discontinued operations) | C37: =SUM(CF!V37:Y37) -> 0
A38: Wpływy ze sprzedaży/rozliczenia aktywów finansowych [2] / [6] | B38: Disposal/settlement of financial assets [2] / [6] | C38: =SUM(CF!V38:Y38) -> 12.3
A39: Wydatki na nabycie/wydatki z tytułu rozliczenia aktywów finansowych [3] / [7] | B39: Acquisition/settlement of financial assets [3] / [7] | C39: =SUM(CF!V39:Y39) -> -77.7
A40: Środki pieniężne i ich ekwiwalenty w sprzedanych jednostkach zależnych (działalność zaniechana) | C40: =SUM(CF!V40:Y40) -> 0
A41: Wpływ ze sprzedaży pozostałych instrumentów dłużnych [8] | B41: Disposal of other debt instruments [8] | C41: =SUM(CF!V41:Y41) -> 0
A42: Wydatki na nabycie inwestycji w instrumenty dłużne [9] | B42: Acquisition of ivestments in debt instruments measured at amortised cost [9] | C42: =SUM(CF!V42:Y42) -> -0.5
A43: Wpływ ze sprzedaży pozostałych aktywów finansowych | B43: Proceeds from sale of other financial assets | C43: =SUM(CF!V43:Y43) -> 0
A44: Pożyczki udzielone (w tym zawarte lokaty) | B44: Loans granted | C44: =SUM(CF!V44:Y44) -> -687.8
A45: Pożyczki spłacone (w tym zakończone lokaty) | B45: Loans collected | C45: =SUM(CF!V45:Y45) -> 459
A46: Otrzymane odsetki | B46: Interest received | C46: =SUM(CF!V46:Y46) -> 6.4
A47: Dywidendy otrzymane | B47: Dividends received | C47: =SUM(CF!V47:Y47) -> 1.2
A48: Pozostałe przepływy z działalności inwestycyjnej | B48: Other cash flows from investing activities | C48: =SUM(CF!V48:Y48) -> 1.7
A49: Środki pieniężne netto wykorzystane w działalności inwestycyjnej | B49: Net cash provided by (used in) investing activities | C49: =SUM(C32:C48) -> -905.7
A51: Przepływy środków pieniężnych z działalności finansowej | B51: Cash flows – financing activities
A52: Wpływ z tytułu emisji kapitału | B52: Proceeds from issue of capital | C52: =SUM(CF!V52:Y52) -> 11.2
A53: Wpływy z realizacji programu opcji pracowniczych | B53: Proceeds from share-based payments | C53: =SUM(CF!V53:Y53) -> -0.2
A54: Wydatki z tytułu nabycia udziałów niekontrolujących | B54: Acquisition of non-controlling interests | C54: =SUM(CF!V54:Y54) -> -68.9
A55: Wpływy z tytułu zaciągnięcia pożyczek/kredytów | B55: Proceeds from bank loans and borrowings | C55: =SUM(CF!V55:Y55) -> 515.5
A56: Wpływy z tytułu emisji dłużnych papierów wartościowych | B56: Proceeds from the issuance of debt securities | C56: =SUM(CF!V56:Y56) -> 881.6
A57: Wykup dłużnych papierów wartościowych | B57: Repayment/redemption of debt securities | C57: =SUM(CF!V57:Y57) -> -236.8
A58: Spłata pożyczek/kredytów | B58: Repayment of bank loans and borrowings | C58: =SUM(CF!V58:Y58) -> -850.1
A59: Spłata zobowiązań z tytułu leasingu | B59: Lease liabilities paid | C59: =SUM(CF!V59:Y59) -> -312.8
A60: Zapłacone odsetki (w tym z tytułu leasingu) | B60: Interest paid | C60: =SUM(CF!V60:Y60) -> -123.7
A61: Dywidendy wypłacone przez Jednostkę Dominującą | B61: Dividends paid out to the shareholders of Parent Company | C61: =SUM(CF!V61:Y61) -> -290.5
A62: Dywidendy wypłacone dla udziałowców niekontrolujących | B62: Dividends paid out to non-controlling interests | C62: =SUM(CF!V62:Y62) -> -549.8
A63: Dotacje otrzymane [4] | B63: Grants received [4] | C63: =SUM(CF!V63:Y63) -> 2.9
A64: Dotacje zwrócone | B64: Grants returned | C64: =SUM(CF!V64:Y64) -> 0
A65: Pozostałe przepływy z działalności finansowej | B65: Other cash flows from financing activities | C65: =SUM(CF!V65:Y65) -> -0.4
A66: Środki pieniężne netto z działalności finansowej | B66: Net cash provided by (used in) financing activities | C66: =SUM(C52:C65) -> -1022
A68: Zwiększenie/Zmniejszenie netto stanu środków pieniężnych i ich ekwiwalentów | B68: Net increase (decrease) in cash and cash equivalents | C68: =C29+C49+C66 -> 44.1
A70: Różnice kursowe netto | B70: Net foreign exchange differences | C70: =SUM(CF!V70:Y70) -> -306.7
A71: Środki pieniężne i ich ekwiwalenty netto na dzień 1 lipca 2022 | B71: Cash and cash equivalents at 1 July 2022 | C71: =CF!V71 -> 2708.9
A72: Środki pieniężne i ich ekwiwalenty netto na dzień 30 czerwca 2023 | B72: Cash and cash equivalents at 30 June 2023 | C72: =CF!Y72 -> 2450.3
C73: =C71+C70+C68-C72 -> -4
A75: Zmiany stanu kapitału pracującego | B75: Changes in working capital
C76: Last 12 months
C78: mln PLN
A79: Zmiana stanu zapasów | B79: Change in inventories | C79: =SUM(CF!V79:Y79) -> 5.9
A80: Zmiana stanu należności i aktywów niefinansowych | B80: Change in receivables and non-financial assets | C80: =SUM(CF!V80:Y80) -> -460.1
A81: Zmiana stanu zobowiązań | B81: Change in liabilities | C81: =SUM(CF!V81:Y81) -> 179
A82: Zmiana stanu rozliczeń międzyokresowych | B82: Change in prepayments and accruals | C82: =SUM(CF!V82:Y82) -> 41.9
A83: Zmiana stanu rezerw | B83: Change in provisions | C83: =SUM(CF!V83:Y83) -> 40.1
A84: Zmiana stanu pozostałe | B84: Change in restricted cash | C84: =SUM(CF!V84:Y84) -> 0.1
C85: =ROUND(SUM(C79:C84),1) -> -193.1
C86: =C85-C11 -> 0
A87: Objaśnienia: | B87: Legend:
A88: [1] AT i WN - aktywów trwałych i wartości niematerialnych | B88: [1] PPE and IA - property, plant and equipment and intangible assets
A89: [2] Wpływy ze sprzedaży/rozliczenia akt. finansowych . wycenianych w wart. godz. przez wynik finansowy | B89: [2] Disposal/settlement of financial assets carried at fair value through profit or loss
A90: [3] Wydatki na nabycie/wydatki z tytułu rozliczenia akt. fin. wycenianych w wart. godz. przez wynik finansowy | B90: [3] Acquisition/settlement of financial assets carried at fair value through profit or loss
A91: [4] Dotacje otrzymane do zakupu środków trwałych lub/i projektów rozwojowych | B91: [4] Grants received for purchases of property, plant and equipment and/or development projects
A92: [5] NI - nieruchomości inwestycyjnych | B92: [5] IP - investment property
A93: [6] Wpływy ze sprzedaży aktywów finansowych wycenianych w wartości godziwej przez pozostałe dochody całkowite | B93: [6] Proceeds from disposal of financial assets valued at fair value through other comprehensive income
A94: [7] Nabycie aktywów finansowych wycenianych w wartości godziwej przez pozostałe dochody całkowite | B94: [7] Purchase of financial assets valued at fair value through other comprehensive income
A95: [8] Wpływ ze sprzedaży inwestycji w pozostałe instrumenty dłużne wyceniane w zamortyzowanym koszcie | B95: [8] Disposal of other debt instruments carried valued at amortized cost
A96: [9] Nabycie inwestycji w pozostałe instrumenty dłużne wyceniane w zamortyzowanym koszcie | B96: [9] Acquisition of investment in other debt instruments valued at amortized cost

Sheet Segments
A1: Segmenty działalności | B1: Operating segments
A3: Przejdź do: | B3: Go to:
A4: =seg_pl_pl -> Segment Asseco Poland | B4: =seg_en_pl -> Segment Asseco Poland
A5: =seg_pl_see -> Segment Asseco International | B5: =seg_en_see -> Segment Asseco International
A6: =seg_pl_we -> Segment Formula Systems | B6: =seg_en_we -> Segment Formula Systems
A10: Segment Asseco Poland | B10: Segment Asseco Poland | C10: YE 2017 | D10: Q1 2018 | E10: Q2 2018 | F10: Q3 2018 | G10: Q4 2018 | H10: Q1 2019 | I10: Q2 2019 | J10: Q3 2019 | K10: Q4 2019 | L10: Q1 2020 | M10: Q2 2020 | N10: Q3 2020 | O10: Q4 2020 | P10: Q1 2021 | Q10: Q2 2021 | R10: Q3 2021 | S10: Q4 2021 | T10: Q1 2022 | U10: Q2 2022 | V10: Q3 2022 | W10: Q4 2022 | X10: Q1 2023 | Y10: Q2 2023
C12: mln PLN | D12: mln PLN | E12: mln PLN | F12: mln PLN | G12: mln PLN | H12: mln PLN | I12: mln PLN | J12: mln PLN | K12: mln PLN | L12: mln PLN | M12: mln PLN | N12: mln PLN | O12: mln PLN | P12: mln PLN | Q12: mln PLN | R12: mln PLN | S12: mln PLN | T12: mln PLN | U12: mln PLN | V12: mln PLN | W12: mln PLN | X12: mln PLN | Y12: mln PLN
A14: Sprzedaż na rzecz klientów zewnętrznych | B14: Sales to external customers | C14: 1336.6 | D14: 314.5 | E14: 350.2 | F14: 306.1 | G14: 376.5 | H14: 294.9 | I14: 302.8 | J14: 287.3 | K14: 314.7 | L14: 307.3 | M14: 329.9 | N14: 364 | O14: 423 | P14: 364.3 | Q14: 378.7 | R14: 370 | S14: 447.4 | T14: 404.1 | U14: 426.7 | V14: 417.3 | W14: 473.9 | X14: 449.7 | Y14: 510.4
A15: Sprzedaż pomiędzy segmentami | B15: Inter-segment sales | C15: 9.1 | D15: 1.8 | E15: 1.9 | F15: 2.1 | G15: 5.7 | H15: 3.7 | I15: 2.3 | J15: 2.8 | K15: 3.8 | L15: 3.4 | M15: 2.1 | N15: 1.5 | O15: 7.4 | P15: 2.5 | Q15: 5.6 | R15: 2.4 | S15: 4.3 | T15: 4.3 | U15: 3.3 | V15: 2.7 | W15: 5.7 | X15: 7.4 | Y15: 3.2
A16: Zysk/strata netto z działalności operacyjnej segmentu | B16: Net operating profit/loss | C16: 152.5 | D16: 55.8 | E16: 64.7 | F16: 52.6 | G16: 47.6 | H16: 43.3 | I16: 44.1 | J16: 38.2 | K16: 27.5 | L16: 42.7 | M16: 52.1 | N16: 60.2 | O16: 59.8 | P16: 59 | Q16: 78.3 | R16: 70 | S16: 56 | T16: 67.5 | U16: 73 | V16: 74.4 | W16: 60.4 | X16: 66.2 | Y16: 76.7
A17: Przychody z tytułu odsetek | B17: Interest income | C17: 4.6 | D17: 2.2 | E17: 0.7 | F17: 2 | G17: 1.6 | H17: 1.6 | I17: 1.1 | J17: 1.2 | K17: 1.3 | L17: 1.3 | M17: 0.6 | N17: 0.5 | O17: 0.3 | P17: 0.3 | Q17: 0.3 | R17: 0.3 | S17: 0.3 | T17: 0.9 | U17: 3.6 | V17: 3.4 | W17: 4.5 | X17: 5.5 | Y17: 6.6
A18: Koszty z tytułu odsetek | B18: Interest expenses | C18: -9.3 | D18: -1.4 | E18: -2 | F18: -2.3 | G18: -1.3 | H18: -1.7 | I18: -1.4 | J18: -4 | K18: -1.3 | L18: -1.3 | M18: -0.8 | N18: -0.9 | O18: -1 | P18: -0.9 | Q18: -0.7 | R18: -0.7 | S18: -2.2 | T18: -0.9 | U18: -0.9 | V18: -1.7 | W18: -0.9 | X18: -2.6 | Y18: -1.4
A19: Podatek dochodowy | B19: Corporate income tax | C19: -25.5 | D19: -15.1 | E19: -13.9 | F19: -12.5 | G19: -14.2 | H19: -8.1 | I19: -7.8 | J19: -6.9 | K19: -6.2 | L19: -7.9 | M19: -12.5 | N19: -13.5 | O19: -3.2 | P19: -12 | Q19: -16.5 | R19: -13.8 | S19: -9.7 | T19: -19 | U19: -13.4 | V19: -12.1 | W19: -24.2 | X19: -16.4 | Y19: -18.2
A20: Pozycje niepieniężne: | B20: Non-cash items:
A21: Amortyzacja | B21: Depreciation and amortization | C21: -79.7 | D21: -19.8 | E21: -19.9 | F21: -21.8 | G21: -21.6 | H21: -23.4 | I21: -22.8 | J21: -22.8 | K21: -22.7 | L21: -23.2 | M21: -22.9 | N21: -24 | O21: -21.7 | P21: -21 | Q21: -21.1 | R21: -21.5 | S21: -21.5 | T21: -23.1 | U21: -22.7 | V21: -22.6 | W21: -22.9 | X21: -23.2 | Y21: -23.4
A22: w tym amortyzacja wartości niematerialnych rozpoznanych w wyniku procesu alokacji ceny nabycia (PPA) | B22: of which amortization of IA recognized in purchase price allocation process (PPA) | C22: -18 | D22: -4.2 | E22: -4.2 | F22: -4.6 | G22: -4.8 | H22: -3.7 | I22: -4.7 | J22: -4.2 | K22: -4.1 | L22: -4 | M22: -4.1 | N22: -4.1 | O22: -8.2 | P22: -3.8 | Q22: -3.8 | R22: -3.8 | S22: -3.7 | T22: -3.2 | U22: -3.2 | V22: -3.2 | W22: -3.2 | X22: -3.5 | Y22: -3.5
A23: Koszty transakcji z pracownikami rozliczanych w formie instrumentów kapitałowych | B23: Costs of share-based payment transactions with employees | C23: 0 | D23: 0 | E23: 0 | F23: 0 | G23: 0 | H23: 0 | I23: 0 | J23: 0 | K23: 0 | L23: 0 | M23: 0 | N23: 0 | O23: 0 | P23: 0 | Q23: 0 | R23: 0 | S23: 0 | T23: 0 | U23: 0 | V23: 0 | W23: 0 | X23: 0 | Y23: 0
A24: Odpis z tyt. utraty wartości aktywów segmentu | B24: Impairment write-downs on segment assets | C24: -80.5 | D24: 6.9 | E24: -4.2 | F24: -1.4 | G24: -3.7 | H24: 2.6 | I24: -2.7 | J24: -0.4 | K24: 1.2 | L24: -0.2 | M24: -2.9 | N24: -2.7 | O24: -12.6 | P24: -0.2 | Q24: -0.7 | R24: -3.1 | S24: -1.1 | T24: 1.9 | U24: 3.9 | V24: -3 | W24: -5.4 | X24: 0.5 | Y24: -4.9
A25: Udział w wynikach jednostek stowarzyszonych i wspólnych przedsięwziąć | B25: Share in profits of associates and joint ventures | C25: -1.1 | D25: -0.6 | E25: -0.6 | F25: 0.2 | G25: 1.1 | H25: 0 | I25: -0.4 | J25: -0.6 | K25: -0.4 | L25: -0.8 | M25: -0.6 | N25: -1.5 | O25: 0.6 | P25: 0.1 | Q25: 0.6 | R25: -1.6 | S25: -1.9 | T25: -0.2 | U25: -0.2 | V25: 0.2 | W25: -0.6 | X25: -1.2 | Y25: 0.1
A26: Zysk/strata netto segmentu przypisany Jednostce Dominującej | B26: Net profit/loss attributable to shareholders of the Parent Company | C26: 7.1 | D26: 38.8 | E26: 45.3 | F26: 40.5 | G26: 37 | H26: 35.3 | I26: 33.5 | J26: 24.9 | K26: 20 | L26: 32.1 | M26: 37.1 | N26: 42.9 | O26: 55.8 | P26: 45.9 | Q26: 68.7 | R26: 50.5 | S26: 41.4 | T26: 48.6 | U26: 61.1 | V26: 61.5 | W26: 39.8 | X26: 49.9 | Y26: 63.5
A27: Środki pieniężne netto z działalności operacyjnej | B27: Net cash provided by (used in) operating activities | C27: 137.4 | D27: 54.5 | E27: 104.3 | F27: 67.2 | G27: 128.4 | H27: 68.4 | I27: 26.6 | J27: 90.4 | K27: 110.3 | L27: 64.6 | M27: 60.1 | N27: 54.8 | O27: 138.1 | P27: 61.1 | Q27: 60.4 | R27: 78.2 | S27: 86.8 | T27: 98.4 | U27: 45.7 | V27: 69.9 | W27: 98.7 | X27: 31 | Y27: 59.3
A28: Wartość firmy | B28: Goodwill | C28: 2254.4 | D28: 2253.7 | E28: 2256.9 | F28: 2256.3 | G28: 2257.1 | H28: 2257.1 | I28: 2260.7 | J28: 2260.6 | K28: 2260.6 | L28: 2260.6 | M28: 2260.6 | N28: 2260.6 | O28: 2257.1 | P28: 2257.1 | Q28: 2257.1 | R28: 2257.1 | S28: 2257.1 | T28: 2273.1 | U28: 2271.6 | V28: 2271.6 | W28: 2264.3 | X28: 2264.3 | Y28: 2259.4
A31: Segment Asseco International | B31: Segment Asseco International | C31: YE 2017 | D31: Q1 2018 | E31: Q2 2018 | F31: Q3 2018 | G31: Q4 2018 | H31: Q1 2019 | I31: Q2 2019 | J31: Q3 2019 | K31: Q4 2019 | L31: Q1 2020 | M31: Q2 2020 | N31: Q3 2020 | O31: Q4 2020 | P31: Q1 2021 | Q31: Q2 2021 | R31: Q3 2021 | S31: Q4 2021 | T31: Q1 2022 | U31: Q2 2022 | V31: =V10 -> Q3 2022 | W31: =W10 -> Q4 2022 | X31: =X10 -> Q1 2023 | Y31: =Y10 -> Q2 2023
C33: mln PLN | D33: mln PLN | E33: mln PLN | F33: mln PLN | G33: mln PLN | H33: mln PLN | I33: mln PLN | J33: mln PLN | K33: mln PLN | L33: mln PLN | M33: mln PLN | N33: mln PLN | O33: mln PLN | P33: mln PLN | Q33: mln PLN | R33: mln PLN | S33: mln PLN | T33: mln PLN | U33: mln PLN | V33: mln PLN | W33: mln PLN | X33: mln PLN | Y33: mln PLN
A35: Sprzedaż na rzecz klientów zewnętrznych | B35: Sales to external customers | C35: 2227.4 | D35: 573.6 | E35: 640.6 | F35: 586.7 | G35: 788.6 | H35: 674.5 | I35: 671.7 | J35: 685.9 | K35: 894.1 | L35: 753.4 | M35: 747.2 | N35: 717.9 | O35: 1000.9 | P35: 817.3 | Q35: 870.8 | R35: 844.3 | S35: 1108.4 | T35: 939.2 | U35: 1001.2 | V35: 1047.7 | W35: 1204.3 | X35: 986.8 | Y35: 950
A36: Sprzedaż pomiędzy segmentami | B36: Inter-segment sales | C36: 5.5 | D36: 0.4 | E36: 3.7 | F36: 0.1 | G36: -1.5 | H36: -0.9 | I36: 0.9 | J36: 0.7 | K36: 2.5 | L36: 1.2 | M36: 2.3 | N36: 3 | O36: 1.2 | P36: 1.5 | Q36: 1.7 | R36: 1.6 | S36: -0.5 | T36: 1.1 | U36: 1.5 | V36: 0.7 | W36: 1.1 | X36: 1.6 | Y36: 3.8
A37: Zysk/strata netto z działalności operacyjnej segmentu | B37: Net operating profit/loss | C37: 248.8 | D37: 54.3 | E37: 69.6 | F37: 58.9 | G37: 91.1 | H37: 76.4 | I37: 74.4 | J37: 87.7 | K37: 109.8 | L37: 80.9 | M37: 91.7 | N37: 78.8 | O37: 136.8 | P37: 97.2 | Q37: 101.1 | R37: 119.8 | S37: 113.8 | T37: 95.1 | U37: 60.6 | V37: 98 | W37: 152.8 | X37: 97.7 | Y37: 89.2
A38: Przychody z tytułu odsetek | B38: Interest income | C38: 7.2 | D38: 1.4 | E38: 1.8 | F38: 1.7 | G38: 1.5 | H38: 1.6 | I38: 2 | J38: 1.5 | K38: 1.6 | L38: 1.8 | M38: 2.1 | N38: 0.7 | O38: 1.2 | P38: 1.5 | Q38: 1.7 | R38: 0.9 | S38: 0.9 | T38: 0.8 | U38: 1.3 | V38: 0.8 | W38: 2 | X38: 3.8 | Y38: 5.2
A39: Koszty z tytułu odsetek | B39: Interest expenses | C39: -2 | D39: -0.7 | E39: -0.9 | F39: -1.2 | G39: -1 | H39: -1.9 | I39: -1.9 | J39: -2.4 | K39: -2.4 | L39: -2.1 | M39: -2.7 | N39: -2.3 | O39: -2.5 | P39: -2 | Q39: -1.9 | R39: -2.1 | S39: -2.1 | T39: -2.5 | U39: -2.7 | V39: -3 | W39: -3.8 | X39: -3.8 | Y39: -4
A40: Podatek dochodowy | B40: Corporate income tax | C40: -25.9 | D40: -14.7 | E40: -16.2 | F40: -13.5 | G40: -16.8 | H40: -16.1 | I40: -17.7 | J40: -18.3 | K40: -19.9 | L40: -17.1 | M40: -17.1 | N40: -14.3 | O40: -24.1 | P40: -20.9 | Q40: -21.4 | R40: -23.9 | S40: -22.9 | T40: -20.8 | U40: -16.4 | V40: -21.9 | W40: -28.9 | X40: -22.6 | Y40: -17.2
A41: Pozycje niepieniężne: | B41: Non-cash items:
A42: Amortyzacja | B42: Depreciation and amortization | C42: -90.6 | D42: -24.7 | E42: -27.8 | F42: -27.3 | G42: -25.2 | H42: -34.5 | I42: -35.9 | J42: -38.8 | K42: -41.1 | L42: -42.8 | M42: -43.2 | N42: -43 | O42: -42.3 | P42: -42.8 | Q42: -43.4 | R42: -43.8 | S42: -45.7 | T42: -47.1 | U42: -48.8 | V42: -47.6 | W42: -46.5 | X42: -47.3 | Y42: -45.8
A43: w tym amortyzacja wartości niematerialnych rozpoznanych w wyniku procesu alokacji ceny nabycia (PPA) | B43: of which amortization of IA recognized in purchase price allocation process (PPA) | C43: -7.7 | D43: -1.9 | E43: -2 | F43: -2 | G43: -3.1 | H43: -2.3 | I43: -2.2 | J43: -2.6 | K43: -4.1 | L43: -3.5 | M43: -3.4 | N43: -3.3 | O43: -3.2 | P43: =-3.5-0.1 -> -3.6 | Q43: =-4.5-0.2 -> -4.7 | R43: =-3.9-0.1 -> -4 | S43: -3.1 | T43: -4.5 | U43: -5.4 | V43: -6.4 | W43: -6.1 | X43: -4.3 | Y43: -4.4
A44: Koszty transakcji z pracownikami rozliczanych w formie instrumentów kapitałowych | B44: Costs of share-based payment transactions with employees | C44: -1.2 | D44: 0.6 | E44: -1.8 | F44: -0.6 | G44: -0.7 | H44: -0.7 | I44: -0.8 | J44: -0.3 | K44: -0.3 | L44: -0.3 | M44: -0.4 | N44: 0 | O44: 0 | P44: 0 | Q44: 0 | R44: 0 | S44: -0.1 | T44: -0.1 | U44: 0 | V44: -0.2 | W44: -0.1 | X44: -0.2 | Y44: -0.1
A45: Odpis z tyt. utraty wartości aktywów segmentu | B45: Impairment write-downs on segment assets | C45: -32.1 | D45: -0.6 | E45: 0.4 | F45: -3.6 | G45: -4.7 | H45: -2.3 | I45: -1.8 | J45: -3.9 | K45: -2.2 | L45: -1.5 | M45: -2.6 | N45: -4.2 | O45: 0.1 | P45: -2.6 | Q45: 0.4 | R45: 3.8 | S45: -3.2 | T45: -3.9 | U45: -47.8 | V45: -3.6 | W45: -13.2 | X45: -2.8 | Y45: -8.8
A46: Udział w wynikach jednostek stowarzyszonych i wspólnych przedsięwziąć | B46: Share in profits of associates and joint ventures | C46: -40 | D46: -1 | E46: 0.3 | F46: 0.1 | G46: 1.1 | H46: -1.9 | I46: -1.3 | J46: 0.2 | K46: 3.7 | L46: -1.5 | M46: 0.5 | N46: -0.3 | O46: 2.5 | P46: -1.3 | Q46: 0.7 | R46: 0.3 | S46: -8 | T46: 0.3 | U46: 7.8 | V46: 1.2 | W46: 0 | X46: -0.4 | Y46: 0.4
A47: Zysk/strata netto segmentu przypisany Jednostce Dominującej | B47: Net profit/loss attributable to shareholders of the Parent Company | C47: 55.7 | D47: 26.3 | E47: 38.2 | F47: 31.8 | G47: 53.3 | H47: 38.3 | I47: 36.6 | J47: 44.9 | K47: 55.3 | L47: 42.7 | M47: 46.5 | N47: 36.2 | O47: 70.2 | P47: 45.1 | Q47: 63.3 | R47: 57.4 | S47: 46.1 | T47: 43.5 | U47: 45.4 | V47: 48.1 | W47: 73.2 | X47: 46.5 | Y47: 38.7
A48: Środki pieniężne netto z działalności operacyjnej | B48: Net cash provided by (used in) operating activities | C48: 341.6 | D48: 40.5 | E48: 58 | F48: 67.3 | G48: 229.9 | H48: 80.5 | I48: 43.3 | J48: 69.6 | K48: 299.8 | L48: 66 | M48: 93.3 | N48: 136.3 | O48: 284.2 | P48: 34.2 | Q48: 111.3 | R48: 152.4 | S48: 286.5 | T48: 77.3 | U48: 69 | V48: 117.4 | W48: 253.5 | X48: 153.2 | Y48: 63.2
A49: Wartość firmy | B49: Goodwill | C49: 1327.2 | D49: 1345.6 | E49: 1394 | F49: 1366.1 | G49: 1367.7 | H49: 1362.7 | I49: 1355.5 | J49: 1443.2 | K49: 1419.6 | L49: 1490.6 | M49: 1469.2 | N49: 1477.7 | O49: 1511.9 | P49: 1645.1 | Q49: 1498.9 | R49: 1627.7 | S49: 1623.9 | T49: 1717.3 | U49: 1731 | V49: 1742.9 | W49: 1714.5 | X49: 1722.7 | Y49: 1636
A52: Segment Formula Systems | B52: Segment Formula Systems
C53: YE 2017 | D53: Q1 2018 | E53: Q2 2018 | F53: Q3 2018 | G53: Q4 2018 | H53: Q1 2019 | I53: Q2 2019 | J53: Q3 2019 | K53: Q4 2019 | L53: Q1 2020 | M53: Q2 2020 | N53: Q3 2020 | O53: Q4 2020 | P53: Q1 2021 | Q53: Q2 2021 | R53: Q3 2021 | S53: Q4 2021 | T53: Q1 2022 | U53: Q2 2022 | V53: =V10 -> Q3 2022 | W53: =W10 -> Q4 2022 | X53: =X10 -> Q1 2023 | Y53: =Y10 -> Q2 2023
C55: mln PLN | D55: mln PLN | E55: mln PLN | F55: mln PLN | G55: mln PLN | H55: mln PLN | I55: mln PLN | J55: mln PLN | K55: mln PLN | L55: mln PLN | M55: mln PLN | N55: mln PLN | O55: mln PLN | P55: mln PLN | Q55: mln PLN | R55: mln PLN | S55: mln PLN | T55: mln PLN | U55: mln PLN | V55: mln PLN | W55: mln PLN | X55: mln PLN | Y55: mln PLN
A57: Sprzedaż na rzecz klientów zewnętrznych | B57: Sales to external customers | C57: 4265.3 | D57: 1260.9 | E57: 1320.1 | F57: 1325.6 | G57: 1485.2 | H57: 1482.8 | I57: 1564.2 | J57: 1765.2 | K57: 1729.3 | L57: 1859.7 | M57: 1773.2 | N57: 1856.2 | O57: 2060.1 | P57: 2157.5 | Q57: 2202.4 | R57: 2287.8 | S57: 2649.2 | T57: 2704.2 | U57: 2774.6 | V57: 3093.9 | W57: 2883 | X57: 2898.9 | Y57: 2719.6
A58: Sprzedaż pomiędzy segmentami | B58: Inter-segment sales | C58: 27.6 | D58: 2.9 | E58: 2.8 | F58: 2.2 | G58: 3 | H58: 3.3 | I58: 3 | J58: 3.4 | K58: 3.2 | L58: 2.8 | M58: 2.6 | N58: 2.8 | O58: 4 | P58: 2.4 | Q58: 3.6 | R58: 3 | S58: 3 | T58: 2.1 | U58: 2.9 | V58: 1.8 | W58: 1.5 | X58: 4.5 | Y58: 3
A59: Zysk/strata netto z działalności operacyjnej segmentu | B59: Net operating profit/loss | C59: 185.3 | D59: 56.8 | E59: 69.8 | F59: 74.8 | G59: 99.7 | H59: 105 | I59: 109.4 | J59: 135 | K59: 123.3 | L59: 126.9 | M59: 160.5 | N59: 159 | O59: 168.2 | P59: 166.5 | Q59: 172.5 | R59: 182.9 | S59: 237.9 | T59: 224.6 | U59: 403.1 | V59: 257.7 | W59: 249.5 | X59: 237.6 | Y59: 225.7
A60: Przychody z tytułu odsetek | B60: Interest income | C60: 6.1 | D60: 0.4 | E60: 0.5 | F60: 0.7 | G60: 0.8 | H60: 1.3 | I60: 0.9 | J60: 2.3 | K60: 0.1 | L60: 1 | M60: 0.5 | N60: 4.6 | O60: -2.8 | P60: 0.8 | Q60: 0 | R60: 0.5 | S60: 1.8 | T60: 0.4 | U60: 2.3 | V60: 6.7 | W60: 5.7 | X60: 8.7 | Y60: 12.2
A61: Koszty z tytułu odsetek | B61: Interest expenses | C61: -32.3 | D61: -9.9 | E61: -10.4 | F61: -11.2 | G61: -11.4 | H61: -13.8 | I61: -17.2 | J61: -19.8 | K61: -14.5 | L61: -17.8 | M61: -19.9 | N61: -17.9 | O61: -21.1 | P61: -16.3 | Q61: -16.8 | R61: -17.5 | S61: -20.6 | T61: -17.7 | U61: -16.9 | V61: -24.2 | W61: -28.5 | X61: -28.3 | Y61: -35.2
A62: Podatek dochodowy | B62: Corporate income tax | C62: -70.6 | D62: -13.4 | E62: -15.1 | F62: -11 | G62: -25.9 | H62: -19.6 | I62: -22.7 | J62: -25.5 | K62: -21.8 | L62: -26.6 | M62: -32.5 | N62: -27.4 | O62: -19.5 | P62: -31.6 | Q62: -38 | R62: -34.6 | S62: -46.9 | T62: -42.6 | U62: -89.5 | V62: -47.1 | W62: -49 | X62: -44.5 | Y62: -42
A63: Pozycje niepieniężne: | B63: Non-cash items:
A64: Amortyzacja | B64: Depreciation and amortization | C64: -169.9 | D64: -73.6 | E64: -65.5 | F64: -65.9 | G64: -70 | H64: -87.5 | I64: -101 | J64: -104.1 | K64: -107 | L64: -104.8 | M64: -107.1 | N64: -111.7 | O64: -122.7 | P64: -112.2 | Q64: -122.5 | R64: -125 | S64: -171.8 | T64: -144.9 | U64: -144 | V64: -165.2 | W64: -159.5 | X64: -155 | Y64: -148.5
A65: w tym amortyzacja wartości niematerialnych rozpoznanych w wyniku procesu alokacji ceny nabycia (PPA) | B65: of which amortization of IA recognized in purchase price allocation process (PPA) | C65: -114 | D65: -56.5 | E65: -48.1 | F65: -47.5 | G65: -51.1 | H65: -44.9 | I65: -44.4 | J65: -48.6 | K65: -47.4 | L65: -45.8 | M65: -49.9 | N65: -50 | O65: -51.7 | P65: -53.3 | Q65: -55.8 | R65: -64.4 | S65: -63.6 | T65: -63.9 | U65: -66.4 | V65: -70.1 | W65: -67.7 | X65: -67.5 | Y65: -62.5
A66: Koszty transakcji z pracownikami rozliczanych w formie instrumentów kapitałowych | B66: Costs of share-based payment transactions with employees | C66: -17.6 | D66: -4.8 | E66: -5.7 | F66: -4.7 | G66: -3.9 | H66: -4.4 | I66: -3 | J66: -4 | K66: -3.1 | L66: -13 | M66: 3.1 | N66: -4.9 | O66: -16 | P66: -15 | Q66: -14.3 | R66: -11.9 | S66: -17.3 | T66: -18.2 | U66: -13.9 | V66: -12.2 | W66: -20.1 | X66: -19.1 | Y66: -19.8
A67: Odpis z tyt. utraty wartości aktywów segmentu | B67: Impairment write-downs on segment assets | C67: -4 | D67: -1.6 | E67: -0.9 | F67: -0.8 | G67: -1.7 | H67: 0.1 | I67: -0.6 | J67: -0.9 | K67: -1.9 | L67: -1.9 | M67: -3.3 | N67: -3.3 | O67: -2.4 | P67: 2.3 | Q67: -0.5 | R67: -0.4 | S67: -5.7 | T67: 0.6 | U67: 1.5 | V67: 0.4 | W67: -2.9 | X67: -3.9 | Y67: -5.3
A68: Udział w wynikach jednostek stowarzyszonych i wspólnych przedsięwziąć | B68: Share in profits of associates and joint ventures | C68: 3.4 | D68: 0.2 | E68: -0.4 | F68: 0 | G68: 1.6 | H68: 2.8 | I68: 1.4 | J68: 1.6 | K68: 1.2 | L68: 0.5 | M68: 0.9 | N68: -0.1 | O68: 4.4 | P68: 1 | Q68: 1.7 | R68: -1.1 | S68: 0.6 | T68: 0.9 | U68: 1.7 | V68: -0.1 | W68: -11.1 | X68: 0.2 | Y68: 0.7
A69: Zysk/strata netto segmentu przypisany Jednostce Dominującej | B69: Net profit/loss attributable to shareholders of the Parent Company | C69: 405.5 | D69: 3.4 | E69: 5.1 | F69: 4.3 | G69: 7.8 | H69: 6 | I69: 8.8 | J69: 8.8 | K69: 8.7 | L69: 7.4 | M69: 11.9 | N69: 10.5 | O69: 10.7 | P69: 11.4 | Q69: 10.2 | R69: 11.9 | S69: 15.2 | T69: 16 | U69: 34 | V69: 19.1 | W69: 13.3 | X69: 15.5 | Y69: 16.9
A70: Środki pieniężne netto z działalności operacyjnej | B70: Net cash provided by (used in) operating activities | C70: 382.9 | D70: 89 | E70: 40.5 | F70: 55.1 | G70: 241.5 | H70: 218.1 | I70: 135.6 | J70: 245.7 | K70: 382.7 | L70: 257.4 | M70: 329.5 | N70: 293.2 | O70: 456.1 | P70: 47.8 | Q70: 280.4 | R70: 191.9 | S70: 497.6 | T70: 273.7 | U70: 190.1 | V70: 340.1 | W70: 618.5 | X70: 223.6 | Y70: 415.2
A71: Wartość firmy | B71: Goodwill | C71: 435.4 | D71: 628.8 | E71: 551.3 | F71: 575 | G71: 628.3 | H71: 796.6 | I71: 795.2 | J71: 922.6 | K71: 881.2 | L71: 1014.4 | M71: 1014.8 | N71: 1141.1 | O71: 1362.2 | P71: 1694.9 | Q71: 1671 | R71: 1694.4 | S71: 1691.5 | T71: 1959.7 | U71: 1968.6 | V71: 2144.5 | W71: 1965.1 | X71: 1944.6 | Y71: 1930.8

Sheet wyniki spolek (hidden)
E1: Przychody ze sprzedaży | AF1: Zysk operacyjny | BG1: Zysk operacyjny non-IFRS | CH1: Zysk netto 100% | DI1: Zysk netto kontrybucja do Asseco Poland | EJ1: Zysk netto kontrybucja do Asseco Poland non-IFRS
E2: Q1 2017 | F2: Q2 2017 | G2: Q3 2017 PF | H2: Q4 2017 PF | I2: Q1 2018 | J2: Q2 2018 | K2: Q3 2018 | L2: Q4 2018 | M2: Q1 2019 | N2: Q2 2019 | O2: Q3 2019 | P2: Q4 2019 | Q2: Q1 2020 | R2: Q2 2020 | S2: Q3 2020 | T2: Q4 2020 | U2: Q1 2021 | V2: Q2 2021 | W2: Q3 2021 | X2: Q4 2021 | Y2: Q1 2022 | Z2: Q2 2022 | AA2: Q3 2022 | AB2: Q4 2022 | AC2: Q1 2023 | AD2: Q2 2023 | AF2: Q1 2017 | AG2: Q2 2017 | AH2: Q3 2017 PF | AI2: Q4 2017 PF | AJ2: Q1 2018 | AK2: Q2 2018 | AL2: Q3 2018 | AM2: Q4 2018 | AN2: Q1 2019 | AO2: Q2 2019 | AP2: Q3 2019 | AQ2: Q4 2019 | AR2: Q1 2020 | AS2: Q2 2020 | AT2: Q3 2020 | AU2: Q4 2020 | AV2: Q1 2021 | AW2: Q2 2021 | AX2: Q3 2021 | AY2: Q4 2021 | AZ2: Q1 2022 | BA2: Q2 2022 | BB2: Q3 2022 | BC2: Q4 2022 | BD2: Q1 2023 | BE2: Q2 2023 | BG2: Q1 2017 | BH2: Q2 2017 | BI2: Q3 2017 PF | BJ2: Q4 2017 PF | BK2: Q1 2018 | BL2: Q2 2018 | BM2: Q3 2018 | BN2: Q4 2018 | BO2: Q1 2019 | BP2: Q2 2019 | BQ2: Q3 2019 | BR2: Q4 2019 | BS2: Q1 2020 | BT2: Q2 2020 | BU2: Q3 2020 | BV2: Q4 2020 | BW2: Q1 2021 | BX2: Q2 2021 | BY2: Q3 2021 | BZ2: Q4 2021 | CA2: Q1 2022 | CB2: Q2 2022 | CC2: Q3 2022 | CD2: Q4 2022 | CE2: Q1 2023 | CF2: Q2 2023 | CH2: Q1 2017 | CI2: Q2 2017 | CJ2: Q3 2017 PF | CK2: Q4 2017 PF | CL2: Q1 2018 | CM2: Q2 2018 | CN2: Q3 2018 | CO2: Q4 2018 | CP2: Q1 2019 | CQ2: Q2 2019 | CR2: Q3 2019 | CS2: Q4 2019 | CT2: Q1 2020 | CU2: Q2 2020 | CV2: Q3 2020 | CW2: Q4 2020 | CX2: Q1 2021 | CY2: Q2 2021 | CZ2: Q3 2021 | DA2: Q4 2021 | DB2: Q1 2022 | DC2: Q2 2022 | DD2: Q3 2022 | DE2: Q4 2022 | DF2: Q1 2023 | DG2: Q2 2023 | DI2: Q1 2017 | DJ2: Q2 2017 | DK2: Q3 2017 PF | DL2: Q4 2017 PF | DM2: Q1 2018 | DN2: Q2 2018 | DO2: Q3 2018 | DP2: Q4 2018 | DQ2: Q1 2019 | DR2: Q2 2019 | DS2: Q3 2019 | DT2: Q4 2019 | DU2: Q1 2020 | DV2: Q2 2020 | DW2: Q3 2020 | DX2: Q4 2020 | DY2: Q1 2021 | DZ2: Q2 2021 | EA2: Q3 2021 | EB2: Q4 2021 | EC2: Q1 2022 | ED2: Q2 2022 | EE2: Q3 2022 | EF2: Q4 2022 | EG2: Q1 2023 | EH2: Q2 2023 | EJ2: Q1 2017 | EK2: Q2 2017 | EL2: Q3 2017 PF | EM2: Q4 2017 PF | EN2: Q1 2018 | EO2: Q2 2018 | EP2: Q3 2018 | EQ2: Q4 2018 | ER2: Q1 2019 | ES2: Q2 2019 | ET2: Q3 2019 | EU2: Q4 2019 | EV2: Q1 2020 | EW2: Q2 2020 | EX2: Q3 2020 | EY2: Q4 2020 | EZ2: Q1 2021 | FA2: Q2 2021 | FB2: Q3 2021 | FC2: Q4 2021 | FD2: Q1 2022 | FE2: Q2 2022 | FF2: Q3 2022 | FG2: Q4 2022 | FH2: Q1 2023 | FI2: Q2 2023
B3: Rynek polski | E3: 309516599.5 | F3: 315459007.2 | G3: 316876448.7 | H3: 403847944.7 | I3: 316300000 | J3: 352100000 | K3: 308200000 | L3: 382200000 | M3: 298600000 | N3: 305100000 | O3: 290100000 | P3: 318500000 | Q3: 310700000 | R3: 332000000 | S3: 365500000 | T3: 430400000 | U3: 366800000 | V3: 384300000 | W3: 372400000 | X3: 451700000 | Y3: 408400000 | Z3: 430000000 | AA3: 420000000 | AB3: 479600000 | AC3: 457100000 | AD3: 513600000 | AF3: 39548957.47 | AG3: 31800597.66 | AH3: 35960657.83 | AI3: 45189787.04 | AJ3: 55800000 | AK3: 64700000 | AL3: 52600000 | AM3: 47600000 | AN3: 43300000 | AO3: 44100000 | AP3: 38200000 | AQ3: 27500000 | AR3: 42700000 | AS3: 52100000 | AT3: 60200000 | AU3: 59800000 | AV3: 59000000 | AW3: 78300000 | AX3: 70000000 | AY3: 56000000 | AZ3: 67500000 | BA3: 73000000 | BB3: 74200000 | BC3: 60400000 | BD3: 66200000 | BE3: 76700000 | BG3: 44062957.47 | BH3: 36309597.66 | BI3: 40471657.83 | BJ3: 49697787.04 | BK3: 60015000 | BL3: 68917000 | BM3: 57201888.89 | BN3: 52401611.11 | BO3: 46963000 | BP3: 48868000 | BQ3: 42415000 | BR3: 31551000 | BS3: 46715000 | BT3: 56206000 | BU3: 64245896.34 | BV3: 68049000 | BW3: 62792000 | BX3: 82092000 | BY3: 73792000 | BZ3: 59761000 | CA3: 70813000 | CB3: 76272000 | CC3: 77008000 | CD3: 68601000 | CE3: 69722000 | CF3: 85138000 | CH3: 61188493.37 | CI3: -7064661.769 | CJ3: 21429629.69 | CK3: -55737461.29 | CL3: 40102344 | CM3: 47387684.99 | CN3: 42641000.25 | CO3: 38170000 | CP3: 36046000 | CQ3: 35529000 | CR3: 25786000 | CS3: 20997000 | CT3: 32498000 | CU3: 39809000 | CV3: 44183000 | CW3: 55249000 | CX3: 45856000 | CY3: 69866000 | CZ3: 51464000 | DA3: 41895000 | DB3: 47850000 | DC3: 62902000 | DD3: 63052000 | DE3: 41161000 | DF3: 51134000 | DG3: 65434000 | DI3: 32692050.16 | DJ3: 18452194.74 | DK3: 17264902.86 | DL3: -61329708.7 | DM3: 38838820.02 | DN3: 45274107.62 | DO3: 40449367.94 | DP3: 37024006.86 | DQ3: 35275148.13 | DR3: 33558061.85 | DS3: 24904693.43 | DT3: 20001920.55 | DU3: 32130028.11 | DV3: 37069971.89 | DW3: 42982204.68 | DX3: 55713900.92 | DY3: 45900000 | DZ3: 68700000 | EA3: 50451537.32 | EB3: 41548462.68 | EC3: 48600000 | ED3: 61100000 | EE3: 61396556.2 | EF3: 39784778.41 | EG3: 49937190.19 | EH3: 63453335.91 | EJ3: 36515879.33 | EK3: 21823327.26 | EL3: 20942396.14 | EM3: 23927950.23 | EN3: 42233927.18 | EO3: 48799776.92 | EP3: 43380577.79 | EQ3: 37137603.95 | ER3: 38245108.59 | ES3: 37655121.85 | ET3: 28268693.43 | EU3: 23305010.09 | EV3: 35382028.11 | EW3: 40411412.03 | EX3: 46265011.02 | EY3: 62432350.92 | EZ3: 48971000 | FA3: 64692278.5 | FB3: 55254737.32 | FC3: 42845984.18 | FD3: 51315000 | FE3: 63751000 | FF3: 63833556.2 | FG3: 52891578.05 | FH3: 52988190.19 | FI3: 71420335.91
B4: Asseco Poland (bez dywidend) | E4: 202880000 | F4: 196326000 | G4: 202853000 | H4: 259176000 | I4: 205373000 | J4: 225425000 | K4: 210982000 | L4: 251505000 | M4: 195051000 | N4: 210024000 | O4: 191685000 | P4: 208784000 | Q4: 203854000 | R4: 226591000 | S4: 261223000 | T4: 315204000 | U4: 261578000 | V4: 268176000 | W4: 263503000 | X4: 305705000 | Y4: 279847000 | Z4: 293426000 | AA4: 303086000 | AB4: 326428000 | AC4: 317481000 | AD4: 367072000 | AF4: 31517000 | AG4: 22093000 | AH4: 32430000 | AI4: 34655000 | AJ4: 46308000 | AK4: 43215000 | AL4: 47506000 | AM4: 44687000 | AN4: 29061000 | AO4: 31933000 | AP4: 28117000 | AQ4: 20223000 | AR4: 31374000 | AS4: 34011000 | AT4: 43893000 | AU4: 48777000 | AV4: 46049000 | AW4: 56996000 | AX4: 55925000 | AY4: 27558000 | AZ4: 46609000 | BA4: 49778000 | BB4: 48956000 | BC4: 46894000 | BD4: 50121000 | BE4: 60572000 | BG4: 34225000 | BH4: 24801000 | BI4: 35136000 | BJ4: 37363000 | BK4: 49016000 | BL4: 45922000 | BM4: 50213000 | BN4: 47397000 | BO4: 31769000 | BP4: 34640000 | BQ4: 30825000 | BR4: 22731000 | BS4: 33881000 | BT4: 36518000 | BU4: 46490000 | BV4: 55622000 | BW4: 48422000 | BX4: 59369000 | BY4: 58299000 | BZ4: 29929000 | CA4: 48214000 | CB4: 51383000 | CC4: 50561000 | CD4: 48499000 | CE4: 51726000 | CF4: 62177000 | CH4: 21672691.01 | CI4: 17421308.99 | CJ4: -5260351.69 | CK4: -3603648.31 | CL4: 38885000 | CM4: 30938000 | CN4: 40170000 | CO4: 36002000 | CP4: 24125000 | CQ4: 28206000 | CR4: 22701000 | CS4: 16943000 | CT4: 24274000 | CU4: 25451000 | CV4: 32927000 | CW4: 46838000 | CX4: 35587000 | CY4: 55225000 | CZ4: 41537000 | DA4: 18171000 | DB4: 34949000 | DC4: 44092000 | DD4: 40439000 | DE4: 29767000 | DF4: 40148000 | DG4: 41846000 | DI4: 21673327.38 | DJ4: 17418918.51 | DK4: 38624527.39 | DL4: -47487118.33 | DM4: 38871445.81 | DN4: 30952157.06 | DO4: 40171489.3 | DP4: 35998889.84 | DQ4: 24129251.68 | DR4: 28206840.23 | DS4: 22699789.32 | DT4: 16940611.43 | DU4: 24274060.82 | DV4: 25451752.91 | DW4: 32926129.27 | DX4: 46837140.47 | DY4: 35586840.07 | DZ4: 55226050.92 | EA4: 41533846.12 | EB4: 18171952.55 | EC4: 34948681.27 | ED4: 44091064.87 | EE4: 40439603.28 | EF4: 29769485.92 | EG4: 40148535.75 | EH4: 41845190.58 | EJ4: 27375152.44 | EK4: 17497420.6 | EL4: -4545743.491 | EM4: 23711460.23 | EN4: 41021568.13 | EO4: 33205951.2 | EP4: 42381339.35 | EQ4: 38193989.43 | ER4: 26319752.14 | ES4: 29609360.23 | ET4: 24894789.32 | EU4: 18974700.97 | EV4: 26305060.82 | EW4: 27481752.91 | EX4: 35030039.27 | EY4: 52385590.47 | EZ4: 37508840.07 | FA4: 48875329.42 | FB4: 43479046.12 | FC4: 20092474.05 | FD4: 36248681.27 | FE4: 45393064.87 | FF4: 42539603.28 | FG4: 41757280.56 | FH4: 41455535.75 | FI4: 50906190.58
B5: Asseco Data Systems | C5: Asseco Data Systems PF | D5: Asseco Data Systems PF | E5: 69557000 | F5: 74634000 | G5: 84596000 | H5: 128724000 | I5: 89075000 | J5: 93260000 | K5: 76711000 | L5: 91508000 | M5: 72401000 | N5: 68301000 | O5: 60973000 | P5: 74111000 | Q5: 67693000 | R5: 66439000 | S5: 72765000 | T5: 88263000 | U5: 76813000 | V5: 80753000 | W5: 69943000 | X5: 92725000 | Y5: 83359000 | Z5: 87151000 | AA5: 74783000 | AB5: 97172000 | AC5: 94352000 | AD5: 91380000 | AF5: 5752000 | AG5: 2545000 | AH5: 4173000 | AI5: -4130000 | AJ5: 5623000 | AK5: 12511000 | AL5: 1308000 | AM5: 6374000 | AN5: 8989000 | AO5: 8071000 | AP5: 916000 | AQ5: 6438000 | AR5: 7319000 | AS5: 11376000 | AT5: 11071000 | AU5: 7314000 | AV5: 12926000 | AW5: 16579000 | AX5: 7299000 | AY5: 16445000 | AZ5: 15439000 | BA5: 12130000 | BB5: 6891000 | BC5: 13786000 | BD5: 15937000 | BE5: 9987000 | BG5: 7466000 | BH5: 4260000 | BI5: 5888000 | BJ5: -2419000 | BK5: 7041000 | BL5: 13932000 | BM5: 2725000 | BN5: 7792000 | BO5: 10407000 | BP5: 9491000 | BQ5: 2334000 | BR5: 7857000 | BS5: 8738000 | BT5: 12795000 | BU5: 12489000 | BV5: 8733000 | BW5: 14345000 | BX5: 17998000 | BY5: 8717000 | BZ5: 17835000 | CA5: 17147000 | CB5: 13797000 | CC5: 8513000 | CD5: 15382000 | CE5: 17854000 | CF5: 11906000 | CH5: 4055000 | CI5: 2241000 | CJ5: 2788000 | CK5: -5380000 | CL5: 4471000 | CM5: 10087000 | CN5: 979000 | CO5: 3704000 | CP5: 7819000 | CQ5: 6262000 | CR5: -2858000 | CS5: 4971000 | CT5: 6005000 | CU5: 8775000 | CV5: 8988000 | CW5: 5812000 | CX5: 10334000 | CY5: 13101000 | CZ5: 5777000 | DA5: 11502000 | DB5: 14011000 | DC5: 11155000 | DD5: 5842000 | DE5: 12749000 | DF5: 13618000 | DG5: 9270000 | DI5: 4055000 | DJ5: 2241000 | DK5: 2788000 | DL5: -5380000 | DM5: 4471000 | DN5: 10087000 | DO5: 979000 | DP5: 3704000 | DQ5: 7819000 | DR5: 6262000 | DS5: -2858000 | DT5: 4971000 | DU5: 6005000 | DV5: 8775000 | DW5: 8988000 | DX5: 5812000 | DY5: 10334000 | DZ5: 13101000 | EA5: 5777839.93 | EB5: 11501160.07 | EC5: 14011000 | ED5: 11209000 | EE5: 5842000 | EF5: 12749000 | EG5: 13618000 | EH5: 9270000 | EJ5: 5443340 | EK5: 3630150 | EL5: 4177150 | EM5: -3994090 | EN5: 5619580 | EO5: 11238010 | EP5: 2126770 | EQ5: 4852580 | ER5: 8967580 | ES5: 7412420 | ET5: -1710000 | EU5: 6121000 | EV5: 7154000 | EW5: 9925000 | EX5: 10136000 | EY5: 6982000 | EZ5: 11483000 | FA5: 14251000 | FB5: 6925839.93 | FC5: 12627160.07 | FD5: 15426000 | FE5: 12776000 | FF5: 7156000 | FG5: 14675000 | FH5: 15362000 | FI5: 11023000
B6: Pozostałe | E6: 48913000 | F6: 56389000 | G6: 47929000 | H6: 52198000 | I6: 34999000 | J6: 43634000 | K6: 38749000 | L6: 51071000 | M6: 40260000 | N6: 40737000 | O6: 47596000 | P6: 49022000 | Q6: 49500000 | R6: 51781000 | S6: 42668000 | T6: 48345000 | U6: 34359000 | V6: 42208000 | W6: 45947000 | X6: 70722000 | Y6: 63025000 | Z6: 65950000 | AA6: 64799000 | AB6: 81305000 | AC6: 64346000 | AD6: 75042000 | AF6: 4706000 | AG6: 6467000 | AH6: 2263000 | AI6: 10583000 | AJ6: 4411000 | AK6: 6700000 | AL6: 7299000 | AM6: 5913000 | AN6: 4142000 | AO6: 4254000 | AP6: 8740946.064 | AQ6: 3889315.355 | AR6: 4052000 | AS6: 7494000 | AT6: 6841000 | AU6: 655000 | AV6: 998000 | AW6: 4659000 | AX6: 7760000 | AY6: 6623000 | AZ6: 6413000 | BA6: 11345000 | BB6: 23721000 | BC6: 8006000 | BD6: 4296000 | BE6: 7577000 | BG6: 4706000 | BH6: 6467000 | BI6: 2263000 | BJ6: 10583000 | BK6: 4411000 | BL6: 6700000 | BM6: 7299000 | BN6: 5913000 | BO6: 4142000 | BP6: 4254000 | BQ6: 8740946.064 | BR6: 3889315.355 | BS6: 4052000 | BT6: 7494000 | BU6: 6841000 | BV6: 655000 | BW6: 998000 | BX6: 4659000 | BY6: 7760000 | BZ6: 6623000 | CA6: 6413000 | CB6: 11345000 | CC6: 23721000 | CD6: 8006000 | CE6: 4296000 | CF6: 7577000 | CH6: 3148000 | CI6: 4220000 | CJ6: 1226000 | CK6: 8398000 | CL6: 2511000 | CM6: 4613000 | CN6: 5748000 | CO6: 4852000 | CP6: 3036000 | CQ6: 2179000 | CR6: 5898946.064 | CS6: 2593315.355 | CT6: 2547000 | CU6: 5680000 | CV6: 3883000 | CW6: 976000 | CX6: 701000 | CY6: -2809000 | CZ6: 12184000 | DA6: 4875000 | DB6: 4416000 | DC6: 8549000 | DD6: 17982000 | DE6: 7265000 | DF6: 2735000 | DG6: 6927000 | DI6: 2715513.873 | DJ6: 1568977.039 | DK6: -2364679.038 | DL6: 2198452.11 | DM6: 1166531.266 | DN6: 2583968.304 | DO6: 3189981.882 | DP6: 3770773.463 | DQ6: 2230132.103 | DR6: 241995.3038 | DS6: 5061823.822 | DT6: 1532753.871 | DU6: 2179162.938 | DV6: 2898918.504 | DW6: 2734331.405 | DX6: 19720.11266 | DY6: 813824.0042 | DZ6: -4071148.192 | EA6: 11221457.32 | EB6: 4582773.572 | EC6: 4483155.825 | ED6: 6713783.309 | EE6: 16899054.41 | EF6: 4988696.308 | EG6: 1442993.441 | EH6: 4975806.327 | EJ6: 2715513.873 | EK6: 1568977.039 | EL6: -2364679.038 | EM6: 2198452.11 | EN6: 1166531.266 | EO6: 2583968.304 | EP6: 3189981.882 | EQ6: 3795883.463 | ER6: 2230132.103 | ES6: 241995.3038 | ET6: 5061823.822 | EU6: 1534753.871 | EV6: 2179162.938 | EW6: 2898918.504 | EX6: 2734331.405 | EY6: 19720.11266 | EZ6: 813824.0042 | FA6: 3248851.808 | FB6: 3901457.32 | FC6: 4582773.572 | FD6: 4483155.825 | FE6: 6713783.309 | FF6: 17826054.41 | FG6: 4988696.308 | FH6: 1442993.441 | FI6: 4975806.327
D7: korekty | E7: -11833400.51 | F7: -11889992.82 | G7: -18501551.33 | H7: -36250055.34 | I7: -13147000 | J7: -10219000 | K7: -18242000 | L7: -11884000 | M7: -9112000 | N7: -13962000 | O7: -10154000 | P7: -13417000 | Q7: -10347000 | R7: -12811000 | S7: -11156000 | T7: -21412000 | U7: -5950000 | V7: -6837000 | W7: -6993000 | X7: -17452000 | Y7: -17831000 | Z7: -16527000 | AA7: -22668000 | AB7: -25305000 | AC7: -19079000 | AD7: -19894000 | AF7: -2426042.526 | AG7: 695597.6591 | AH7: -2905342.17 | AI7: 4081787.037 | AJ7: -542000 | AK7: 2274000 | AL7: -3513000 | AM7: -9374000 | AN7: 1108000 | AO7: -158000 | AP7: 426053.9356 | AQ7: -3050315.355 | AR7: -45000 | AS7: -781000 | AT7: -1605000 | AU7: 3054000 | AV7: -973000 | AW7: 66000 | AX7: -984000 | AY7: 5374000 | AZ7: -961000 | BA7: -253000 | BB7: -5368000 | BC7: -8286000 | BD7: -4154000 | BE7: -1436000 | BG7: -2334042.526 | BH7: 781597.6591 | BI7: -2815342.17 | BJ7: 4170787.037 | BK7: -453000 | BL7: 2363000 | BM7: -3035111.111 | BN7: -8700388.889 | BO7: 645000 | BP7: 483000 | BQ7: 515053.9356 | BR7: -2926315.355 | BS7: 44000 | BT7: -601000 | BU7: -1574103.661 | BV7: 3039000 | BW7: -973000 | BX7: 66000 | BY7: -984000 | BZ7: 5374000 | CA7: -961000 | CB7: -253000 | CC7: -5787000 | CD7: -3286000 | CE7: -4154000 | CF7: 3478000 | CH7: 32312802.36 | CI7: -30946970.76 | CJ7: 22675981.38 | CK7: -55151812.98 | CL7: -5764656 | CM7: 1749684.99 | CN7: -4255999.75 | CO7: -6388000 | CP7: 1066000 | CQ7: -1118000 | CR7: 44053.93556 | CS7: -3510315.355 | CT7: -328000 | CU7: -97000 | CV7: -1615000 | CW7: 1623000 | CX7: -766000 | CY7: 4349000 | CZ7: -8034000 | DA7: 7347000 | DB7: -5526000 | DC7: -894000 | DD7: -1211000 | DE7: -8620000 | DF7: -5367000 | DG7: 7391000 | DI7: 4248208.905 | DJ7: -2776700.81 | DK7: -21782945.49 | DL7: -10661042.48 | DM7: -5670157.058 | DN7: 1650982.252 | DO7: -3891103.24 | DP7: -6449656.442 | DQ7: 1096764.348 | DR7: -1152773.682 | DS7: 1080.283389 | DT7: -3442444.747 | DU7: -328195.6522 | DV7: -55699.51893 | DW7: -1666255.993 | DX7: 3045040.337 | DY7: -834664.0742 | DZ7: 4444097.272 | EA7: -8081606.052 | EB7: 7292576.49 | EC7: -4842837.095 | ED7: -913848.1793 | EE7: -1784101.488 | EF7: -7722403.819 | EG7: -5272339 | EH7: 7362339 | EJ7: 981873.0113 | EK7: -873220.3813 | EL7: 23675668.67 | EM7: 2012127.891 | EN7: -5573752.22 | EO7: 1771847.41 | EP7: -4317513.442 | EQ7: -9704848.942 | ER7: 727644.3478 | ES7: 391346.3178 | ET7: 22080.28339 | EU7: -3325444.747 | EV7: -256195.6522 | EW7: 105740.6115 | EX7: -1635359.654 | EY7: 3045040.337 | EZ7: -834664.0742 | FA7: -1682902.728 | FB7: 948393.9484 | FC7: 5543576.49 | FD7: -4842837.095 | FE7: -1131848.179 | FF7: -3688101.488 | FG7: -8529398.819 | FH7: -5272339 | FI7: 4515339
B8: Rynek izraelski | E8: 1264717781 | F8: 1247233115 | G8: 1305895209 | H8: 1343555254 | I8: 1263800000 | J8: 1322900000 | K8: 1327800000 | L8: 1488200000 | M8: 1486100000 | N8: 1567200000 | O8: 1768600000 | P8: 1732500000 | Q8: 1862500000 | R8: 1775800000 | S8: 1859000000 | T8: 2064100000 | U8: 2159900000 | V8: 2206000000 | W8: 2290800000 | X8: 2652200000 | Y8: 2706300000 | Z8: 2777500000 | AA8: 3033900000 | AB8: 2884500000 | AC8: 2903400000 | AD8: 2722600000 | AF8: 72723810.96 | AG8: 54891847.51 | AH8: 55653157.08 | AI8: 29152558.92 | AJ8: 56800000 | AK8: 69800000 | AL8: 74800000 | AM8: 99700000 | AN8: 105000000 | AO8: 109400000 | AP8: 135000000 | AQ8: 123300000 | AR8: 126900000 | AS8: 160500000 | AT8: 159000000 | AU8: 168200000 | AV8: 166500000 | AW8: 172500000 | AX8: 182900000 | AY8: 237900000 | AZ8: 224600000 | BA8: 403100000 | BB8: 250800000 | BC8: 249500000 | BD8: 237600000 | BE8: 225700000 | BG8: 98481127.66 | BH8: 79847837.16 | BI8: 113108286.6 | BJ8: 100831216.3 | BK8: 118103675.9 | BL8: 123554359.8 | BM8: 126526248.9 | BN8: 155249344.8 | BO8: 154312220.2 | BP8: 156731041.3 | BQ8: 187652290.6 | BR8: 173844233.5 | BS8: 185712432.1 | BT8: 207314764 | BU8: 213864462.3 | BV8: 235833003.3 | BW8: 234815129.1 | BX8: 242632578.4 | BY8: 259230343.6 | BZ8: 318713903.7 | CA8: 309192364.2 | CB8: 295713971.9 | CC8: 328246028.5 | CD8: 338412749.4 | CE8: 326070209 | CF8: 310628187.7 | CH8: 22455810.96 | CI8: 15244847.51 | CJ8: 23986433.06 | CK8: 412864498.5 | CL8: 32971321.06 | CM8: 45030678.94 | CN8: 44935000 | CO8: 65893000 | CP8: 60963000 | CQ8: 75224000 | CR8: 85286000 | CS8: 81994000 | CT8: 78340000 | CU8: 98423000 | CV8: 99585000 | CW8: 107090000 | CX8: 113041000 | CY8: 107443000 | CZ8: 120354000 | DA8: 147123000 | DB8: 163415601.5 | DC8: 302234211.7 | DD8: 179499000 | DE8: 146980000 | DF8: 162196396.4 | DG8: 161608603.6 | DI8: 354608.1468 | DJ8: -405230.8236 | DK8: 4337093.51 | DL8: 401174452 | DM8: 3352027.306 | DN8: 5155191.379 | DO8: 4273191.918 | DP8: 7869090.088 | DQ8: 5952207.628 | DR8: 8857314.729 | DS8: 8806254.977 | DT8: 8657110.955 | DU8: 7389284.423 | DV8: 11867144.42 | DW8: 10575919.39 | DX8: 10655654.98 | DY8: 11400000 | DZ8: 10200000 | EA8: 11921279.42 | EB8: 15178720.58 | EC8: 16000000 | ED8: 34016262.2 | EE8: 19123586.06 | EF8: 13359694.07 | EG8: 15516419.03 | EH8: 16871317.98 | EJ8: 6671644.808 | EK8: 5800712.403 | EL8: 11936294.42 | EM8: 7964017.823 | EN8: 10631090.3 | EO8: 11319105.83 | EP8: 10316918.24 | EQ8: 14718032.06 | ER8: 11128723.83 | ES8: 13698780.87 | ET8: 14330324.1 | EU8: 14718730.15 | EV8: 14909355.98 | EW8: 16824492.22 | EX8: 15739287.95 | EY8: 18987797.42 | EZ8: 19317323.38 | FA8: 19392627.4 | FB8: 21356977.07 | FC8: 26537709.95 | FD8: 26332770.3 | FE8: 26425115.58 | FF8: 26823085.12 | FG8: 24676569.5 | FH8: 26650627.11 | FI8: 26791977.07
B9: Matrix IT | E9: 760222000 | F9: 707844000 | G9: 758484450 | H9: 798284035.3 | I9: 759908192 | J9: 773974079.7 | K9: 765809682.8 | L9: 885310052 | M9: 888804243.2 | N9: 935449905.1 | O9: 1066891860 | P9: 998489337.6 | Q9: 1112976989 | R9: 995774161.7 | S9: 1080977636 | T9: 1206625081 | U9: 1280654956 | V9: 1227244011 | W9: 1241272304 | X9: 1483937268 | Y9: 1505427489 | Z9: 1513089479 | AA9: 1623830720 | AB9: 1485843331 | AC9: 1571728213 | AD9: 1458223330 | AF9: 53017000 | AG9: 43328000 | AH9: 55766101.15 | AI9: 55523719.11 | AJ9: 52733426.52 | AK9: 53170361.63 | AL9: 50707810.65 | AM9: 69334136.72 | AN9: 62884255.45 | AO9: 63016636.19 | AP9: 75943784.22 | AQ9: 72032917.69 | AR9: 77710252.65 | AS9: 76841471.94 | AT9: 80939794.24 | AU9: 91810593.72 | AV9: 93996137.46 | AW9: 94925938.88 | AX9: 90435860.17 | AY9: 116667519.7 | AZ9: 119766585.4 | BA9: 299247600.3 | BB9: 117653511.7 | BC9: 120829869 | BD9: 123511224.3 | BE9: 106266311.9 | BG9: 57122191.84 | BH9: 46437246.78 | BI9: 58103931.17 | BJ9: 57643352.36 | BK9: 56373425.07 | BL9: 57451517.06 | BM9: 54447627.93 | BN9: 74626498.96 | BO9: 69610473.66 | BP9: 69441391.73 | BQ9: 83105410.71 | BR9: 78414439.92 | BS9: 84147717.86 | BT9: 83296847.44 | BU9: 88921494.54 | BV9: 99774329.96 | BW9: 100722028.7 | BX9: 101869268.2 | BY9: 97972108.92 | BZ9: 124666781.6 | CA9: 126551511.5 | CB9: 116143567.7 | CC9: 121095401.6 | CD9: 129169723.2 | CE9: 134241735.3 | CF9: 124739866.3 | CH9: 30833000 | CI9: 25706000 | CJ9: 35640584.35 | CK9: 41719555.51 | CL9: 34345845.84 | CM9: 34687108.95 | CN9: 31351500.5 | CO9: 44622358.29 | CP9: 39895166.82 | CQ9: 39682481.85 | CR9: 49026859.63 | CS9: 51907383.71 | CT9: 49169004.41 | CU9: 48342710.25 | CV9: 50133264.49 | CW9: 70052743.33 | CX9: 63608386.86 | CY9: 63059403.19 | CZ9: 58052591.55 | DA9: 77840608.53 | DB9: 88425913.41 | DC9: 237343671.8 | DD9: 75557171.39 | DE9: 68258554.27 | DF9: 79563060.74 | DG9: 71104851.97 | DI9: 7095356.749 | DJ9: 5541517.16 | DK9: 5626038.265 | DL9: 5346883.021 | DM9: 4339318.363 | DN9: 4293513.774 | DO9: 3876789.904 | DP9: 5498629.268 | DQ9: 4814369.379 | DR9: 4662835.157 | DS9: 5763528.203 | DT9: 6185929.06 | DU9: 5636167.369 | DV9: 5679315.75 | DW9: 5729241.496 | DX9: 7649250.548 | DY9: 7022687.642 | DZ9: 7161252.517 | EA9: 6569507.871 | EB9: 8638704.94 | EC9: 9608255.142 | ED9: 28939600.79 | EE9: 8714933.092 | EF9: 7995097.312 | EG9: 9205701.308 | EH9: 8266482.37 | EJ9: 8188853.931 | EK9: 6830239.689 | EL9: 6048806.943 | EM9: 4831332.076 | EN9: 5025176.544 | EO9: 5310002.299 | EP9: 4841869.986 | EQ9: 6562281.789 | ER9: 5602516.477 | ES9: 5514801.167 | ET9: 6683084.843 | EU9: 6831457.202 | EV9: 6073807.565 | EW9: 6682624.093 | EX9: 6207042.2 | EY9: 7684270.064 | EZ9: 7454302.157 | FA9: 7968519.184 | FB9: 6886853.583 | FC9: 10159977.36 | FD9: 9535305.561 | FE9: 11271877.22 | FF9: 7319554.839 | FG9: 9642201.37 | FH9: 10816845.88 | FI9: 10130215.24
B10: Magic Software | E10: 244404000 | F10: 247476000 | G10: 246088914.1 | H10: 245359832 | I10: 236243311.3 | J10: 256256989 | K10: 264383788.9 | L10: 273324710 | M10: 271624575 | N10: 293085764 | O10: 337158171.4 | P10: 349840772.1 | Q10: 339162772.2 | R10: 351437968.4 | S10: 358384043.3 | T10: 400349858.8 | U10: 409106054.1 | V10: 447225987.4 | W10: 469704729.6 | X10: 535582466.7 | Y10: 577526932.6 | Z10: 600838698.5 | AA10: 685417464.9 | AB10: 668581117.1 | AC10: 621460976.7 | AD10: 574549934.9 | AF10: 25501000 | AG10: 26584000 | AH10: 23941604.09 | AI10: 24182734.45 | AJ10: 25638257.42 | AK10: 29089081.48 | AL10: 28269706.46 | AM10: 31698428.13 | AN10: 31735307.65 | AO10: 30437457 | AP10: 35671641.79 | AQ10: 33826256.86 | AR10: 34714809.62 | AS10: 42058373.51 | AT10: 42898448.78 | AU10: 48782010.65 | AV10: 47152485.78 | AW10: 48499714.4 | AX10: 49904390.95 | AY10: 67596656.7 | AZ10: 68960304.09 | BA10: 63544545.91 | BB10: 79019632.38 | BC10: 66105772.94 | BD10: 66565782.94 | BE10: 64967526.95 | BG10: 33754896.47 | BH10: 33822123.53 | BI10: 31650424.87 | BJ10: 31355727.02 | BK10: 31808108.98 | BL10: 35658794.38 | BM10: 35465706.83 | BN10: 38183396.74 | BO10: 37844798.87 | BP10: 37852031.07 | BQ10: 45460698.05 | BR10: 43709487.52 | BS10: 41327344.35 | BT10: 49540962.5 | BU10: 51673798.69 | BV10: 57495374.83 | BW10: 56444198.23 | BX10: 56897703.17 | BY10: 58706943.78 | BZ10: 77919914.42 | CA10: 79752787.37 | CB10: 77286831.63 | CC10: 89653622.6 | CD10: 84553772.76 | CE10: 79532519.97 | CF10: 77354138.65 | CH10: 19559000 | CI10: 18282000 | CJ10: 15594956.57 | CK10: 14870521.45 | CL10: 19614097.03 | CM10: 24685802.79 | CN10: 22487454.28 | CO10: 22962035.05 | CP10: 24698989.58 | CQ10: 23065808.74 | CR10: 25986436.52 | CS10: 22854916.56 | CT10: 27950629.57 | CU10: 27243542.48 | CV10: 31212389.42 | CW10: 28523623.47 | CX10: 33617163.99 | CY10: 34176971 | CZ10: 34051573.2 | DA10: 35157294.83 | DB10: 46900668.11 | DC10: 48075388.89 | DD10: 61687142.28 | DE10: 47844078.68 | DF10: 51640073.86 | DG10: 53057809.81 | DI10: 3754409.564 | DJ10: 3522397.511 | DK10: 1774636.64 | DL10: 1765278.34 | DM10: 1923780.68 | DN10: 2569075.479 | DO10: 2250208.041 | DP10: 2055315.533 | DQ10: 2363685.408 | DR10: 2057419.928 | DS10: 2289718.732 | DT10: 2062692.374 | DU10: 2586290.328 | DV10: 2744020.4 | DW10: 3052885.832 | DX10: 2744059.384 | DY10: 3363294.589 | DZ10: 3411833.494 | EA10: 3393246.115 | EB10: 3281695.121 | EC10: 4722299.583 | ED10: 4922429.233 | EE10: 6505526.084 | EF10: 4865523.752 | EG10: 5243782.595 | EH10: 5655178.607 | EJ10: 5148095.813 | EK10: 4741289.682 | EL10: 2694877.041 | EM10: 2596976.727 | EN10: 2513230.441 | EO10: 3196527.957 | EP10: 2942704.435 | EQ10: 2633755.938 | ER10: 2882327.865 | ES10: 2553219.032 | ET10: 3153635.277 | EU10: 3220244.88 | EV10: 3479181.774 | EW10: 3855995.786 | EX10: 3743265.7 | EY10: 4436028.344 | EZ10: 4369423.771 | FA10: 4498429.385 | FB10: 4611973.402 | FC10: 5750911.054 | FD10: 6354547.126 | FE10: 6113567.578 | FF10: 7584270.179 | FG10: 6716327.658 | FH10: 6416099.21 | FI10: 6885415.562
B11: Sapiens Int. | E11: 227403000 | F11: 261914000 | G11: 270400367.3 | H11: 265168011.6 | I11: 240546283 | J11: 263261260.5 | K11: 268479678.1 | L11: 277241569.9 | M11: 290482664 | N11: 302516301.9 | O11: 325231382.6 | P11: 333644223.8 | Q11: 361295009.7 | R11: 377032101.3 | S11: 368182048.4 | T11: 388555475.7 | U11: 417848728.2 | V11: 429196031.1 | W11: 457947869.4 | X11: 481852246.7 | Y11: 490058685.5 | Z11: 519876183.8 | AA11: 567951434 | AB11: 543166874.6 | AC11: 544162295.7 | AD11: 536519922.8 | AF11: -2370000 | AG11: -6389000 | AH11: 12807157.71 | AI11: 2823874.983 | AJ11: 17547315.34 | AK11: 17810254.85 | AL11: 24342058.94 | AM11: 27176939.1 | AN11: 32325450.45 | AO11: 37104407.29 | AP11: 45640974.26 | AQ11: 37138056.15 | AR11: 42867741.69 | AS11: 54129229.5 | AT11: 53095184.04 | AU11: 45377011.35 | AV11: 50008248.04 | AW11: 54027463.81 | AX11: 61255489.62 | AY11: 67701882.63 | AZ11: 69768074.83 | BA11: 72264301.32 | BB11: 83845892.43 | BC11: 85575734 | BD11: 85631947.42 | BE11: 81770200.52 | BG11: 4838081.126 | BH11: 2101447.189 | BI11: 22921886 | BJ11: 16272566.28 | BK11: 29202608.79 | BL11: 30448114.28 | BM11: 35733781.21 | BN11: 39384488.45 | BO11: 43314968.71 | BP11: 47241261.98 | BQ11: 56907812.88 | BR11: 47343498.48 | BS11: 54983405.79 | BT11: 69230625.98 | BU11: 66642096.85 | BV11: 66242324.16 | BW11: 70257851.98 | BX11: 74746270.1 | BY11: 79559632.24 | BZ11: 91292330.28 | CA11: 90965811.09 | CB11: 89458776.76 | CC11: 99223264.47 | CD11: 104436054.3 | CE11: 104942438 | CF11: 96538950.05 | CH11: -8039000 | CI11: -10033000 | CJ11: 6111145.791 | CK11: 10460666.26 | CL11: 10798087.27 | CM11: 6741688.76 | CN11: 18630461.96 | CO11: 16616487.98 | CP11: 20129165.81 | CQ11: 24156931.85 | CR11: 31109774.74 | CS11: 26315044.61 | CT11: 25675949.55 | CU11: 35771551.28 | CV11: 37128056.84 | CW11: 28583651.88 | CX11: 36491990.09 | CY11: 38604157.11 | CZ11: 49988983.17 | DA11: 52237039.84 | DB11: 56756303.89 | DC11: 46152946.71 | DD11: 66722609.51 | DE11: 64850279.19 | DF11: 64445381.13 | DG11: 62496478.32 | DI11: -1792418.334 | DJ11: -2258985.349 | DK11: 905486.1858 | DL11: 1453816.453 | DM11: 1364406.99 | DN11: 809498.1944 | DO11: 2350251.507 | DP11: 2062352.506 | DQ11: 2488614.14 | DR11: 2931081.514 | DS11: 3749456.18 | DT11: 3146533.394 | DU11: 3097616.354 | DV11: 4356791.704 | DW11: 4422217.857 | DX11: 3300509.664 | DY11: 4075162.617 | DZ11: 4331025.443 | EA11: 5571003.842 | EB11: 5860386.195 | EC11: 6347928.194 | ED11: 5176807.661 | EE11: 7344639.034 | EF11: 7323392.581 | EG11: 7217346.507 | EH11: 7084015.514 | EJ11: 134942.9724 | EK11: -575527.8778 | EL11: 2434853.881 | EM11: 2877220.466 | EN11: 2633408.464 | EO11: 2219936.365 | EP11: 3460949.149 | EQ11: 3299279.487 | ER11: 3586421.661 | ES11: 3909014.464 | ET11: 4857969.546 | EU11: 4359635.299 | EV11: 4297431.613 | EW11: 6355257.173 | EX11: 5537830.143 | EY11: 5903065.221 | EZ11: 6049671.941 | FA11: 6364452.282 | FB11: 7087534.181 | FC11: 7445757.235 | FD11: 8474113.575 | FE11: 6706380.481 | FF11: 8867122.861 | FG11: 9179278.638 | FH11: 8966811.527 | FI11: 8401591.33
B12: Pozostałe | E12: 32688781.38 | F12: 29999114.83 | G12: 30921477.35 | H12: 34743374.85 | I12: 27102213.67 | J12: 29407670.83 | K12: 29126850.2 | L12: 52323668.15 | M12: 35188517.82 | N12: 36148029.12 | O12: 39318586.08 | P12: 50525666.49 | Q12: 49065228.85 | R12: 51555768.54 | S12: 51456272.72 | T12: 68569584.09 | U12: 52290261.87 | V12: 102333970.1 | W12: 121875097.1 | X12: 150828018.2 | Y12: 133286893.4 | Z12: 143695638.5 | AA12: 156700381 | AB12: 186908677.5 | AC12: 166048514.6 | AD12: 153306812.6 | AF12: -3424189.037 | AG12: -8631152.493 | AH12: -36861705.86 | AI12: -53377769.61 | AJ12: -39118999.28 | AK12: -30269697.96 | AL12: -28519576.06 | AM12: -28509503.96 | AN12: -21945013.55 | AO12: -21158500.48 | AP12: -22256400.27 | AQ12: -19697230.7 | AR12: -28392803.96 | AS12: -12529074.95 | AT12: -17933427.07 | AU12: -17769615.71 | AV12: -24656871.27 | AW12: -24953117.09 | AX12: -18695740.74 | AY12: -14066059.05 | AZ12: -33894964.27 | BA12: -31956447.5 | BB12: -29719036.55 | BC12: -23011375.96 | BD12: -38108954.67 | BE12: -27304039.39 | BG12: 2765958.23 | BH12: -2512980.34 | BI12: 432044.6015 | BJ12: -4440429.358 | BK12: 719533.0699 | BL12: -4065.927892 | BM12: 879132.9052 | BN12: 3054960.651 | BO12: 3541978.96 | BP12: 2196356.53 | BQ12: 2178368.928 | BR12: 4376807.536 | BS12: 5253964.076 | BT12: 5246328.077 | BU12: 6627072.173 | BV12: 12320974.36 | BW12: 7391050.18 | BX12: 9119336.913 | BY12: 22991658.66 | BZ12: 24834877.39 | CA12: 11922254.25 | CB12: 12824795.84 | CC12: 18273739.84 | CD12: 20253199.13 | CE12: 7353515.723 | CF12: 11995232.7 | CH12: -19897189.04 | CI12: -18710152.49 | CJ12: -33360253.65 | CK12: 345813755.3 | CL12: -31786709.07 | CM12: -21083921.56 | CN12: -27534416.74 | CO12: -18307881.32 | CP12: -23760322.21 | CQ12: -11681222.43 | CR12: -20837070.89 | CS12: -19083344.87 | CT12: -24455583.53 | CU12: -12934804 | CV12: -18888710.76 | CW12: -20070018.68 | CX12: -20676540.94 | CY12: -28397531.31 | CZ12: -21739147.91 | DA12: -18111943.2 | DB12: -28667283.94 | DC12: -29337795.71 | DD12: -24467923.18 | DE12: -33972912.15 | DF12: -33452119.37 | DG12: -25050536.44 | DI12: -8702739.832 | DJ12: -7210160.146 | DK12: -3969067.582 | DL12: 392608474.2 | DM12: -4275478.727 | DN12: -2516896.069 | DO12: -4204057.533 | DP12: -1747207.218 | DQ12: -3714461.3 | DR12: -794021.8696 | DS12: -2996448.138 | DT12: -2738043.874 | DU12: -3930789.628 | DV12: -912983.4313 | DW12: -2628425.797 | DX12: -3038164.616 | DY12: -3061144.848 | DZ12: -4704111.454 | EA12: -3612478.406 | EB12: -2602065.678 | EC12: -4678482.919 | ED12: -5022575.482 | EE12: -3441512.15 | EF12: -6824319.577 | EG12: -6150411.379 | EH12: -4134358.508 | EJ12: -6800247.909 | EK12: -5195289.09 | EL12: 757756.5582 | EM12: -2341511.446 | EN12: 459274.8471 | EO12: 592639.204 | EP12: -928605.3254 | EQ12: 2222714.841 | ER12: -942542.1743 | ES12: 1721746.207 | ET12: -364365.5643 | EU12: 307392.7717 | EV12: 1058935.027 | EW12: -69384.82925 | EX12: 251149.9078 | EY12: 964433.7922 | EZ12: 1443925.512 | FA12: 561226.552 | FB12: 2770615.906 | FC12: 3181064.302 | FD12: 1968804.035 | FE12: 2333290.303 | FF12: 3052137.237 | FG12: -861238.1635 | FH12: 450870.4873 | FI12: 1374754.931
B13: Inne rynki międzynarodowe | E13: 505567376.6 | F13: 543299651.3 | G13: 505849136.6 | H13: 678183835.4 | I13: 574000000 | J13: 644300000 | K13: 586800000 | L13: 787100000 | M13: 673600000 | N13: 672600000 | O13: 686600000 | P13: 896600000 | Q13: 754600000 | R13: 749500000 | S13: 720900000 | T13: 1002100000 | U13: 818800000 | V13: 872500000 | W13: 845900000 | X13: 1107900000 | Y13: 940300000 | Z13: 1002700000 | AA13: 1048400000 | AB13: 1205400000 | AC13: 988400000 | AD13: 953800000 | AF13: 54195333.47 | AG13: 56780252.08 | AH13: 52484965.61 | AI13: 85339448.83 | AJ13: 54300000 | AK13: 69600000 | AL13: 58900000 | AM13: 91100000 | AN13: 76400000 | AO13: 74400000 | AP13: 88200000 | AQ13: 109300000 | AR13: 80900000 | AS13: 91700000 | AT13: 78800000 | AU13: 136800000 | AV13: 97600000 | AW13: 101100000 | AX13: 119400000 | AY13: 113800000 | AZ13: 95100000 | BA13: 60600000 | BB13: 98500000 | BC13: 152800000 | BD13: 97700000 | BE13: 89200000 | BG13: 56665290.94 | BH13: 58480210.02 | BI13: 54751138.63 | BJ13: 87800220.51 | BK13: 56814525.93 | BL13: 72236627.2 | BM13: 61466614.83 | BN13: 94887053.9 | BO13: 79377654.77 | BP13: 77439419.69 | BQ13: 91055961.96 | BR13: 113673580.3 | BS13: 84682806.78 | BT13: 95564083.09 | BU13: 82849680.92 | BV13: 140762730.4 | BW13: 101516598.9 | BX13: 105136469.1 | BY13: 123755599.7 | BZ13: 118385385.1 | CA13: 100989934.5 | CB13: 111772841.1 | CC13: 107755506.3 | CD13: 144782363.5 | CE13: 102121446.7 | CF13: 89253296.66 | CH13: 42492264.87 | CI13: 48385693 | CJ13: 36127999.77 | CK13: -4663144.256 | CL13: 43133755.2 | CM13: 59333215.81 | CN13: 52325999.75 | CO13: 80654000 | CP13: 60158000 | CQ13: 57530000 | CR13: 70683000 | CS13: 91242000 | CT13: 66127000 | CU13: 73777000 | CV13: 62511000 | CW13: 112111000 | CX13: 74409000 | CY13: 94631000 | CZ13: 91352000 | DA13: 86533000 | DB13: 76281000 | DC13: 76729951.98 | DD13: 86025000 | DE13: 112078000 | DF13: 82990000 | DG13: 75189000 | DI13: 29179751.04 | DJ13: 34293603.05 | DK13: 22818045.52 | DL13: -30627160.71 | DM13: 26347970.54 | DN13: 38140689.12 | DO13: 31806986.39 | DP13: 53254700.86 | DQ13: 38258739.01 | DR13: 36649428.24 | DS13: 45006931.67 | DT13: 55170796.33 | DU13: 42709607.83 | DV13: 46472119.03 | DW13: 36215566.03 | DX13: 70226588.21 | DY13: 45320775.29 | DZ13: 63279224.71 | EA13: 57200000 | EB13: 46100000 | EC13: 43500000 | ED13: 45420740 | EE13: 47244661.44 | EF13: 73212358.32 | EG13: 46516181.65 | EH13: 38715508.21 | EJ13: 25665995.45 | EK13: 31518280.2 | EL13: 30377365.93 | EM13: 43773525.88 | EN13: 27943842.03 | EO13: 40172958.66 | EP13: 33123653.55 | EQ13: 50123545.19 | ER13: 40129677.91 | ES13: 37927365.33 | ET13: 47944271.18 | EU13: 58076366.55 | EV13: 44888067.1 | EW13: 49158568.55 | EX13: 39403855.39 | EY13: 72266968.75 | EZ13: 48357589.81 | FA13: 51690686.26 | FB13: 59520851.36 | FC13: 57984876.72 | FD13: 47512403.2 | FE13: 56756771.75 | FF13: 48079234.02 | FG13: 60726458.37 | FH13: 44593010.97 | FI13: 37608568.88
C14: Rynek środkowoeurop. | E14: 218777000 | F14: 243308000 | G14: 221064000 | H14: 321871472 | I14: 272268722.4 | J14: 306810471.4 | K14: 278464465.4 | L14: 355493822.5 | M14: 319965093.5 | N14: 315722979.1 | O14: 295402297.3 | P14: 403211812.6 | Q14: 321336321.9 | R14: 320868428.1 | S14: 302059924.1 | T14: 387960701.3 | U14: 340717464.1 | V14: 373233179.5 | W14: 360672088.2 | X14: 472865228.2 | Y14: 360385712.8 | Z14: 392566615.3 | AA14: 386869949.5 | AB14: 440855878.4 | AC14: 412950101 | AD14: 401056529.1 | AF14: 31266000 | AG14: 27516000 | AH14: 28132000 | AI14: 45617000 | AJ14: 32716872 | AK14: 39714131.25 | AL14: 35683895.47 | AM14: 52965473.62 | AN14: 44882273.15 | AO14: 44591829.69 | AP14: 48198238.28 | AQ14: 60006358.04 | AR14: 46771881.42 | AS14: 49114706.08 | AT14: 36715212.03 | AU14: 73639001.47 | AV14: 53891342.7 | AW14: 52275905.41 | AX14: 58011288.11 | AY14: 57468591.28 | AZ14: 41522580 | BA14: 51613956.67 | BB14: 45497655.83 | BC14: 63435506.01 | BD14: 40394752.7 | BE14: 27002025.94 | BG14: 31589568.03 | BH14: 27743783.11 | BI14: 28321849.6 | BJ14: 46014706.4 | BK14: 33180516.39 | BL14: 40200795.8 | BM14: 36165351.5 | BN14: 54572172.3 | BO14: 45681274.26 | BP14: 45310689.8 | BQ14: 49104832.51 | BR14: 60710351.92 | BS14: 47631086.3 | BT14: 49900938.03 | BU14: 37748302.75 | BV14: 74512451.44 | BW14: 54705824.68 | BX14: 53077536.84 | BY14: 58822639.17 | BZ14: 58083289.86 | CA14: 42140824.91 | CB14: 52226140.76 | CC14: 46135913.94 | CD14: 64084278.79 | CE14: 41095091.95 | CF14: 27683685.23 | CH14: 24550666.07 | CI14: 25136000 | CJ14: 20619533.93 | CK14: 36472800 | CL14: 24251433.6 | CM14: 30034723.65 | CN14: 28818292.01 | CO14: 49498521.03 | CP14: 35216446.06 | CQ14: 35347429.92 | CR14: 37607556.94 | CS14: 50146177.79 | CT14: 36273596.54 | CU14: 40848709.71 | CV14: 28457978.01 | CW14: 59614588.49 | CX14: 41907868.6 | CY14: 41878225.01 | CZ14: 43924531.41 | DA14: 50308349.98 | DB14: 31772324.8 | DC14: 42018219.73 | DD14: 35796662.42 | DE14: 49284649.24 | DF14: 30011421.76 | DG14: 20543172.3 | DI14: 18663344.13 | DJ14: 20131955.74 | DK14: 15459573 | DL14: 23903516.43 | DM14: 15849945.54 | DN14: 20967071.34 | DO14: 19976276.55 | DP14: 35116908.49 | DQ14: 25210862.51 | DR14: 25590339.96 | DS14: 27190610.78 | DT14: 32113971.02 | DU14: 25968872.77 | DV14: 29762533.09 | DW14: 19078212.66 | DX14: 40019629.22 | DY14: 30714883.92 | DZ14: 30430430.96 | EA14: 31616239.03 | EB14: 32055528.56 | EC14: 20793123.32 | ED14: 30597894.89 | EE14: 22892544.57 | EF14: 31755881.35 | EG14: 18211445.61 | EH14: 9546520.791 | EJ14: 19187853.96 | EK14: 16322407.79 | EL14: 15690305.07 | EM14: 24086361.35 | EN14: 16032404.27 | EO14: 21540272.06 | EP14: 20238713.94 | EQ14: 29359731.06 | ER14: 25731806.89 | ES14: 26231760.72 | ET14: 27823519.03 | EU14: 32453269.17 | EV14: 26533957.42 | EW14: 30236823.91 | EX14: 19748579.7 | EY14: 40572497.04 | EZ14: 31223641.3 | FA14: 30965036.3 | FB14: 32102095.91 | FC14: 32854500.71 | FD14: 21251542.46 | FE14: 31021233.58 | FF14: 23327208.94 | FG14: 32204339.41 | FH14: 18687958.37 | FI14: 10018453.05
C15: Rynek południowo-wschodniej Europy | E15: 133205000 | F15: 149616000 | G15: 127810000 | H15: 160228000 | I15: 156138451.2 | J15: 183755656.2 | K15: 173909809.4 | L15: 261490760.7 | M15: 187076182.9 | N15: 198384469.2 | O15: 228834687 | P15: 275797340.8 | Q15: 231335950 | R15: 233791721.2 | S15: 227324204 | T15: 335951306.6 | U15: 253111456 | V15: 272982089.7 | W15: 264945591.6 | X15: 357226737.7 | Y15: 312022302.4 | Z15: 348703451.7 | AA15: 420261844.9 | AB15: 485363163.3 | AC15: 380352364.4 | AD15: 376461878.8 | AF15: 12844000 | AG15: 17886000 | AH15: 13321000 | AI15: 21815000 | AJ15: 13409180 | AK15: 18823988.5 | AL15: 19447109.62 | AM15: 26719237.8 | AN15: 21364359.67 | AO15: 22562279.15 | AP15: 29345537.8 | AQ15: 34327249.76 | AR15: 27916293.55 | AS15: 35207192.7 | AT15: 36325365.14 | AU15: 43672187.08 | AV15: 37980434.7 | AW15: 41745039.05 | AX15: 46585695.18 | AY15: 52724842.14 | AZ15: 45937572 | BA15: 50769175.36 | BB15: 53001242.59 | BC15: 60857704.52 | BD15: 50271491.36 | BE15: 56372629.25 | BG15: 12844000 | BH15: 17886000 | BI15: 13901000 | BJ15: 22406632.05 | BK15: 14482315.94 | BL15: 19938634.15 | BM15: 20559389.61 | BN15: 27891700.41 | BO15: 22537320.33 | BP15: 23881732.13 | BQ15: 30130583.69 | BR15: 35599991.17 | BS15: 29226465.57 | BT15: 36634154.97 | BU15: 37705792.12 | BV15: 45084936.74 | BW15: 39400018.84 | BX15: 43156544 | BY15: 48092686.88 | BZ15: 54736128.69 | CA15: 49236548.11 | CB15: 54795964.11 | CC15: 60533729.97 | CD15: 65026027.49 | CE15: 52555133.23 | CF15: 56572811.83 | CH15: 10152000 | CI15: 15234168.4 | CJ15: 11161031.6 | CK15: 18127800 | CL15: 11557975.2 | CM15: 16113672.65 | CN15: 18805958.24 | CO15: 21352211.92 | CP15: 18348450.36 | CQ15: 18238050.73 | CR15: 24661683.6 | CS15: 27863465.66 | CT15: 23291420.98 | CU15: 27245562.77 | CV15: 30902908.67 | CW15: 34805658.63 | CX15: 31899541.7 | CY15: 34489092.12 | CZ15: 38406467.5 | DA15: 48537120.27 | DB15: 39742854.4 | DC15: 65715319.69 | DD15: 51254025.97 | DE15: 37838571.9 | DF15: 47258492.2 | DG15: 49052417.04 | DI15: 5579378.8 | DJ15: 8241858.602 | DK15: 5643834.332 | DL15: 9196096.899 | DM15: 5872741.388 | DN15: 8281768.204 | DO15: 9586954.823 | DP15: 10991226.86 | DQ15: 9169111.275 | DR15: 9098016.095 | DS15: 12520556.83 | DT15: 14260492.27 | DU15: 11909097.48 | DV15: 13625999.34 | DW15: 15770608.02 | DX15: 17488101.1 | DY15: 15932285.32 | DZ15: 16924083.6 | EA15: 19070477.66 | EB15: 23671346.87 | EC15: 19520441.22 | ED15: 32667589.07 | EE15: 25045698.36 | EF15: 17780825.13 | EG15: 23177720.94 | EH15: 23958947.24 | EJ15: 5579378.8 | EK15: 8551690.2 | EL15: 5939982.332 | EM15: 9522647.489 | EN15: 6432126.532 | EO15: 8862682.555 | EP15: 10166609.33 | EQ15: 11597289.72 | ER15: 9839457.837 | ES15: 8643000.659 | ET15: 12924768.84 | EU15: 15104052.18 | EV15: 12289246.44 | EW15: 14634385.63 | EX15: 17098407.24 | EY15: 18031536.87 | EZ15: 17276376.91 | FA15: 17779537.11 | FB15: 19586174.75 | FC15: 24212938.53 | FD15: 21767429.51 | FE15: 23890391.8 | FF15: 24624811.01 | FG15: 18789012.91 | FH15: 19708090.67 | FI15: 23557861.6
B16: Rynek zachodniooeuropejski | E16: 146300200.6 | F16: 149689914.3 | G16: 154846208.4 | H16: 187328270 | I16: 144236434 | J16: 155543111.3 | K16: 131496770.3 | L16: 168886672.8 | M16: 163936458.3 | N16: 156649012.5 | O16: 161073405.5 | P16: 214516797 | Q16: 199581427.9 | R16: 191434405.1 | S16: 189361860.9 | T16: 276307402.5 | U16: 223978034.8 | V16: 223594129.4 | W16: 217414987.6 | X16: 277119298.6 | Y16: 265744148 | Z16: 259907861.1 | AA16: 238400345.5 | AB16: 277624313.5 | AC16: 193706232.7 | AD16: 175433305 | AF16: 13440062.4 | AG16: 12195556.53 | AH16: 10209415.45 | AI16: 16115765.61 | AJ16: 11132100.8 | AK16: 13227148.75 | AL16: 6120649.518 | AM16: 14635022.73 | AN16: 12773330.23 | AO16: 10223366.66 | AP16: 14836708.45 | AQ16: 16498255.96 | AR16: 8996959.802 | AS16: 10526775.2 | AT16: 8608496.944 | AU16: 21772529.73 | AV16: 8572687.5 | AW16: 12735335.66 | AX16: 17475600.4 | AY16: 9307591.439 | AZ16: 11106608 | BA16: -38034074.86 | BB16: 9744421.844 | BC16: 33674368.48 | BD16: 10594851.94 | BE16: 13886515.78 | BG16: 14941120.8 | BH16: 13667731.36 | BI16: 11705738.86 | BJ16: 17587198.84 | BK16: 12109846.4 | BL16: 14233465.75 | BM16: 7122528.334 | BN16: 15642915.34 | BO16: 13779023.23 | BP16: 11224473.25 | BQ16: 16001030.3 | BR16: 18872100.98 | BS16: 10610389.68 | BT16: 12177664.07 | BU16: 10244660.16 | BV16: 23449060.46 | BW16: 10255220.3 | BX16: 14558668.38 | BY16: 19512857.38 | BZ16: 11266991.44 | CA16: 13079321.46 | CB16: 8272302.689 | CC16: 10826960.23 | CD16: 21436623.44 | CE16: 12032317.55 | CF16: 13057970.57 | CH16: 6135062.4 | CI16: 8633556.533 | CJ16: 10232415.45 | CK16: -3351234.386 | CL16: 11382232 | CM16: 15062699.4 | CN16: 5953954.835 | CO16: 13403554.39 | CP16: 11053027.25 | CQ16: 8177801.134 | CR16: 13331893.06 | CS16: 12032879.7 | CT16: 11300603.55 | CU16: 8893760.198 | CV16: 6871580.186 | CW16: 19111843.88 | CX16: 6355219 | CY16: 9164260.947 | CZ16: 12141430.7 | DA16: -3889953.145 | DB16: 8227689.6 | DC16: -30791049.76 | DD16: 8058619.475 | DE16: 30266304.28 | DF16: 9020195.597 | DG16: 13671315.21 | DI16: 2813831.965 | DJ16: 6119503.069 | DK16: 7508676.626 | DL16: -7220401.893 | DM16: 8209680.37 | DN16: 11167388.33 | DO16: 3747467.25 | DP16: 10211690.13 | DQ16: 8123681.372 | DR16: 6242363.181 | DS16: 10160598.87 | DT16: 8243553.298 | DU16: 9789450.703 | DV16: 6521545.915 | DW16: 5141688.315 | DX16: 13886091.81 | DY16: 4610442.458 | DZ16: 6672156.806 | EA16: 9957935.278 | EB16: -2213919.843 | EC16: 6901214.214 | ED16: -17706320.53 | EE16: 7931560.15 | EF16: 28857684.38 | EG16: 8055539.302 | EH16: 12151548.73 | EJ16: 3606767.023 | EK16: 6896847.074 | EL16: 8298942.69 | EM16: 8874817.556 | EN16: 8745739.173 | EO16: 11725819.86 | EP16: 4290049.163 | EQ16: 11022319.81 | ER16: 8788788.328 | ES16: 6797418.581 | ET16: 11161881.21 | EU16: 9618873.259 | EV16: 10690157.82 | EW16: 7427450.469 | EX16: 6057132.21 | EY16: 14554848.69 | EZ16: 5515261.048 | FA16: 7327980.393 | FB16: 11310304.81 | FC16: 5154292.98 | FD16: 8208209.979 | FE16: 5033801.84 | FF16: 8782154.286 | FG16: 15512277.3 | FH16: 9125486.134 | FI16: 10973762.79
B17: Pozostałe | E17: 7285175.98 | F17: 685737.01 | G17: 2128928.25 | H17: 8756093.479 | I17: 1356392.4 | J17: -1809238.95 | K17: 2928954.91 | L17: 1228744.002 | M17: 2622265.204 | N17: 1843539.159 | O17: 1289610.209 | P17: 3074049.581 | Q17: 2346300.151 | R17: 3405445.539 | S17: 2154011.045 | T17: 1880589.575 | U17: 993045.1 | V17: 2690601.412 | W17: 2867332.533 | X17: 688735.4649 | Y17: 2147836.78 | Z17: 1522071.963 | AA17: 2867860.103 | AB17: 1556644.855 | AC17: 1391301.867 | AD17: 848287.184 | AF17: -3354728.93 | AG17: -817304.45 | AH17: 822550.16 | AI17: 1791683.22 | AJ17: -2958152.8 | AK17: -2165268.5 | AL17: -2351654.605 | AM17: -3219734.151 | AN17: -2619963.054 | AO17: -2977475.497 | AP17: -4180484.535 | AQ17: -1531863.761 | AR17: -2785134.768 | AS17: -3148673.982 | AT17: -2849074.109 | AU17: -2283718.28 | AV17: -2844464.9 | AW17: -5656280.119 | AX17: -2672583.695 | AY17: -5701024.854 | AZ17: -3466760 | BA17: -3749057.17 | BB17: -9743320.263 | BC17: -5167579.013 | BD17: -3561095.995 | BE17: -8061170.973 | BG17: -2709397.88 | BH17: -817304.45 | BI17: 822550.16 | BJ17: 1791683.22 | BK17: -2958152.8 | BL17: -2136268.5 | BM17: -2380654.605 | BN17: -3219734.151 | BO17: -2619963.054 | BP17: -2977475.497 | BQ17: -4180484.535 | BR17: -1508863.761 | BS17: -2785134.768 | BT17: -3148673.982 | BU17: -2849074.109 | BV17: -2283718.28 | BW17: -2844464.9 | BX17: -5656280.119 | BY17: -2672583.695 | BZ17: -5701024.854 | CA17: -3466760 | CB17: -3521566.501 | CC17: -9741097.843 | CD17: -5764566.219 | CE17: -3561095.995 | CF17: -8061170.973 | CH17: 1654536.393 | CI17: -618031.9333 | CJ17: -5884981.209 | CK17: -55912509.87 | CL17: -4057885.6 | CM17: -1877879.89 | CN17: -1252205.33 | CO17: -3600287.344 | CP17: -4459923.666 | CQ17: -4233281.785 | CR17: -4918133.592 | CS17: 1199476.848 | CT17: -4738621.071 | CU17: -3211032.679 | CV17: -3721466.863 | CW17: -1421091.005 | CX17: -5753629.3 | CY17: 9099421.919 | CZ17: -3120429.608 | DA17: -8422517.098 | DB17: -3461868.8 | DC17: -212537.6749 | DD17: -9084307.863 | DE17: -5311525.42 | DF17: -3300109.555 | DG17: -8077904.543 | DI17: 2123196.147 | DJ17: -199714.3598 | DK17: -5794038.433 | DL17: -56506372.15 | DM17: -3584396.751 | DN17: -2275538.759 | DO17: -1503712.234 | DP17: -3065124.616 | DQ17: -4244916.146 | DR17: -4281291.001 | DS17: -4864834.802 | DT17: 552779.7394 | DU17: -4957813.126 | DV17: -3437959.312 | DW17: -3774942.959 | DX17: -1167233.908 | DY17: -5936836.409 | DZ17: 9252553.352 | EA17: -3444651.972 | EB17: -7412955.587 | EC17: -3714778.747 | ED17: -138423.4429 | EE17: -8625141.646 | EF17: -5182032.522 | EG17: -2928524.202 | EH17: -6941508.557 | EJ17: -2708004.335 | EK17: -252664.8677 | EL17: 448135.8427 | EM17: 1289699.484 | EN17: -3266427.943 | EO17: -1955815.813 | EP17: -1571718.886 | EQ17: -1855795.396 | ER17: -4230375.151 | ES17: -3744814.637 | ET17: -3965897.9 | EU17: 900171.9431 | EV17: -4625294.585 | EW17: -3140091.457 | EX17: -3500263.749 | EY17: -891913.8597 | EZ17: -5657689.446 | FA17: -4381867.541 | FB17: -3477724.119 | FC17: -4236855.499 | FD17: -3714778.747 | FE17: -3188655.465 | FF17: -8654940.21 | FG17: -5779171.246 | FH17: -2928524.202 | FI17: -6941508.557
B18: Korekta konsolidacyjna | E18: -11501757.48 | F18: -12291773.34 | G18: -4374168.98 | H18: -14032300.2 | I18: -5100000 | J18: -8400000 | K18: -4400000 | L18: -7200000 | M18: -6100000 | N18: -6200000 | O18: -6900000 | P18: -9500000 | Q18: -7400000 | R18: -7000000 | S18: -7300000 | T18: -12600000 | U18: -6400000 | V18: -10900000 | W18: -7000000 | X18: -6800000 | Y18: -7500000 | Z18: -7700000 | AA18: -5200000 | AB18: -8300000 | AC18: -13500000 | AD18: -10000000 | AF18: -1268101.906 | AG18: 527302.75 | AH18: 300374.1217 | AI18: -1359574.966 | AJ18: 400000 | AK18: -300000 | AL18: 1300000 | AM18: -300000 | AN18: -3.278255463e-07 | AO18: 1000000 | AP18: -300000 | AQ18: -200000 | AR18: -700000 | AS18: -600000 | AT18: 1000000 | AU18: -2700000 | AV18: -500000 | AW18: -2500000 | AX18: 300000 | AY18: 2600000 | AZ18: -500000 | BA18: -200000 | BB18: -1300000 | BC18: 500000 | BD18: -3900000 | BE18: 3300000 | BG18: -1259601.906 | BH18: 518802.75 | BI18: 300374.1217 | BJ18: -1359574.966 | BK18: 400000 | BL18: -300000 | BM18: 1300000 | BN18: -300000 | BO18: -3.278255463e-07 | BP18: 1000000 | BQ18: -300000 | BR18: -232000 | BS18: -700000 | BT18: -600000 | BU18: 1044874.552 | BV18: -2744874.552 | BW18: -500000 | BX18: -2500000 | BY18: 300000 | BZ18: 2600000 | CA18: -500000 | CB18: -200000 | CC18: -1300000 | CD18: 500000 | CE18: -3900000 | CF18: 3300000 | CH18: -29136569.2 | CI18: 28234121.26 | CJ18: 227873.8094 | CK18: -1303239.253 | CL18: 392579.7379 | CM18: -351579.7379 | CN18: 1398000 | CO18: -317000 | CP18: 33000 | CQ18: 1117000 | CR18: -255000 | CS18: -33000 | CT18: -565000 | CU18: -409000 | CV18: 1221000 | CW18: -2750000 | CX18: -406000 | CY18: -2440000 | CZ18: 530000 | DA18: 2549000 | DB18: -446601.4599 | DC18: -166163.7159 | DD18: -476000 | DE18: 81000 | DF18: -3820396.355 | DG18: 3368396.355 | DI18: -1326295.425 | DJ18: 59319.11303 | DK18: 1154213.98 | DL18: -1496645.551 | DM18: 361182.1349 | DN18: -169988.1126 | DO18: 1470453.748 | DP18: -147797.8049 | DQ18: 113905.2298 | DR18: 1035195.181 | DS18: -217880.0745 | DT18: -129827.8369 | DU18: -528920.3551 | DV18: -309235.3467 | DW18: 926309.8955 | DX18: -2496144.113 | DY18: -420775.2892 | DZ18: -2579224.711 | EA18: 627183.2601 | EB18: 2772816.74 | EC18: -500000 | ED18: -237002.1949 | EE18: -264803.6954 | EF18: 43169.19809 | EG18: -3869790.87 | EH18: 3359837.899 | EJ18: -1326295.425 | EK18: 59319.11303 | EL18: 1154213.98 | EM18: -1496645.551 | EN18: 361182.1349 | EO18: -169988.1126 | EP18: 1470453.748 | EQ18: -147797.8049 | ER18: 69713.37019 | ES18: 1035195.181 | ET18: -217880.0745 | EU18: -85635.97731 | EV18: -528920.3551 | EW18: -309235.3467 | EX18: 956077.3593 | EY18: -2525911.577 | EZ18: -420775.2892 | FA18: -2579224.711 | FB18: 627183.2601 | FC18: 2772816.74 | FD18: -500000 | FE18: -237002.1949 | FF18: -264803.6954 | FG18: 43169.19809 | FH18: -3869790.87 | FI18: 3359837.899
B19: Grupa Asseco | E19: 2068300000 | F19: 2093700000 | G19: 2124246625 | H19: 2411554734 | I19: 2149000000 | J19: 2310900000 | K19: 2218400000 | L19: 2650300000 | M19: 2452200000 | N19: 2538700000 | O19: 2738400000 | P19: 2938100000 | Q19: 2920400000 | R19: 2850300000 | S19: 2938100000 | T19: 3484000000 | U19: 3339100000 | V19: 3451900000 | W19: 3502100000 | X19: 4205000000 | Y19: 4047500000 | Z19: 4202500000 | AA19: 4497100000 | AB19: 4561200000 | AC19: 4335400000 | AD19: 4180000000 | AF19: 165200000 | AG19: 144000000 | AH19: 144399154.6 | AI19: 158322219.8 | AJ19: 167300000 | AK19: 203800000 | AL19: 187600000 | AM19: 238100000 | AN19: 224700000 | AO19: 228900000 | AP19: 261100000 | AQ19: 259900000 | AR19: 249800000 | AS19: 303700000 | AT19: 299000000 | AU19: 362100000 | AV19: 322600000 | AW19: 349400000 | AX19: 372600000 | AY19: 410300000 | AZ19: 386700000 | BA19: 536500000 | BB19: 422200000 | BC19: 463200000 | BD19: 397600000 | BE19: 394900000 | BG19: 197949774.2 | BH19: 175156447.6 | BI19: 208631457.2 | BJ19: 236969648.9 | BK19: 235333201.8 | BL19: 264407987 | BM19: 246494752.6 | BN19: 302238009.8 | BO19: 280652875 | BP19: 284038461 | BQ19: 320823252.5 | BR19: 318836813.8 | BS19: 316410238.9 | BT19: 358484847.1 | BU19: 362004914.1 | BV19: 441899859.1 | BW19: 398623728 | BX19: 427361047.5 | BY19: 457077943.3 | BZ19: 499460288.9 | CA19: 480495298.7 | CB19: 483558812.9 | CC19: 511709534.8 | CD19: 552296112.9 | CE19: 494013655.8 | CF19: 488319484.3 | CH19: 97000000 | CI19: 84800000 | CJ19: 81771936.33 | CK19: 351160653.7 | CL19: 116600000 | CM19: 151400000 | CN19: 141300000 | CO19: 184400000 | CP19: 157200000 | CQ19: 169400000 | CR19: 181500000 | CS19: 194200000 | CT19: 176400000 | CU19: 211600000 | CV19: 207500000 | CW19: 271700000 | CX19: 232900000 | CY19: 269500000 | CZ19: 263700000 | DA19: 278100000 | DB19: 287100000 | DC19: 441700000 | DD19: 328100000 | DE19: 300300000 | DF19: 292500000 | DG19: 305600000 | DI19: 60900113.92 | DJ19: 52399886.08 | DK19: 45574255.88 | DL19: 307720937.1 | DM19: 68900000 | DN19: 88400000 | DO19: 78000000 | DP19: 98000000 | DQ19: 79600000 | DR19: 80100000 | DS19: 78500000 | DT19: 83700000 | DU19: 81700000 | DV19: 95100000 | DW19: 90700000 | DX19: 134100000 | DY19: 102200000 | DZ19: 139600000 | EA19: 120200000 | EB19: 105600000 | EC19: 107600000 | ED19: 140300000 | EE19: 127500000 | EF19: 126400000 | EG19: 108100000 | EH19: 122400000 | EJ19: 67527224.16 | EK19: 59201638.97 | EL19: 64410270.48 | EM19: 74168848.38 | EN19: 81170041.63 | EO19: 100121853.3 | EP19: 88291603.33 | EQ19: 101831383.4 | ER19: 89573223.7 | ES19: 90316463.23 | ET19: 90325408.63 | EU19: 96014470.82 | EV19: 94650530.83 | EW19: 106085237.4 | EX19: 102364231.7 | EY19: 151161205.5 | EZ19: 116225137.9 | FA19: 133196367.5 | FB19: 136759749 | FC19: 130141387.6 | FD19: 124660173.5 | FE19: 146695885.1 | FF19: 138471071.6 | FG19: 138337775.1 | FH19: 120362037.4 | FI19: 139180719.8

Sheet company results
E1: Sales revenues | AF1: Operating profit | BG1: Operating profit non-IFRS | CH1: Net profit 100% | DI1: Contribution to net profit of ACP | EJ1: Contribution to net profit non-IFRS of ACP
E2: Q1 2017 | F2: Q2 2017 | G2: Q3 2017 PF | H2: Q4 2017 PF | I2: Q1 2018 | J2: Q2 2018 | K2: Q3 2018 | L2: Q4 2018 | M2: Q1 2019 | N2: Q2 2019 | O2: Q3 2019 | P2: Q4 2019 | Q2: Q1 2020 | R2: Q2 2020 | S2: Q3 2020 | T2: Q4 2020 | U2: Q1 2021 | V2: Q2 2021 | W2: Q3 2021 | X2: Q4 2021 | Y2: Q1 2022 | Z2: Q2 2022 | AA2: Q3 2022 | AB2: Q4 2022 | AC2: Q1 2023 | AD2: Q2 2023 | AF2: Q1 2017 | AG2: Q2 2017 | AH2: Q3 2017 PF | AI2: Q4 2017 PF | AJ2: Q1 2018 | AK2: Q2 2018 | AL2: Q3 2018 | AM2: Q4 2018 | AN2: Q1 2019 | AO2: Q2 2019 | AP2: Q3 2019 | AQ2: Q4 2019 | AR2: Q1 2020 | AS2: Q2 2020 | AT2: Q3 2020 | AU2: Q4 2020 | AV2: Q1 2021 | AW2: Q2 2021 | AX2: Q3 2021 | AY2: Q4 2021 | AZ2: Q1 2022 | BA2: Q2 2022 | BB2: Q3 2022 | BC2: Q4 2022 | BD2: Q1 2023 | BE2: Q2 2023 | BG2: Q1 2017 | BH2: Q2 2017 | BI2: Q3 2017 PF | BJ2: Q4 2017 PF | BK2: Q1 2018 | BL2: Q2 2018 | BM2: Q3 2018 | BN2: Q4 2018 | BO2: Q1 2019 | BP2: Q2 2019 | BQ2: Q3 2019 | BR2: Q4 2019 | BS2: Q1 2020 | BT2: Q2 2020 | BU2: Q3 2020 | BV2: Q4 2020 | BW2: Q1 2021 | BX2: Q2 2021 | BY2: Q3 2021 | BZ2: Q4 2021 | CA2: Q1 2022 | CB2: Q2 2022 | CC2: Q3 2022 | CD2: Q4 2022 | CE2: Q1 2023 | CF2: Q2 2023 | CH2: Q1 2017 | CI2: Q2 2017 | CJ2: Q3 2017 PF | CK2: Q4 2017 PF | CL2: Q1 2018 | CM2: Q2 2018 | CN2: Q3 2018 | CO2: Q4 2018 | CP2: Q1 2019 | CQ2: Q2 2019 | CR2: Q3 2019 | CS2: Q4 2019 | CT2: Q1 2020 | CU2: Q2 2020 | CV2: Q3 2020 | CW2: Q4 2020 | CX2: Q1 2021 | CY2: Q2 2021 | CZ2: Q3 2021 | DA2: Q4 2021 | DB2: Q1 2022 | DC2: Q2 2022 | DD2: Q3 2022 | DE2: Q4 2022 | DF2: Q1 2023 | DG2: Q2 2023 | DI2: Q1 2017 | DJ2: Q2 2017 | DK2: Q3 2017 PF | DL2: Q4 2017 PF | DM2: Q1 2018 | DN2: Q2 2018 | DO2: Q3 2018 | DP2: Q4 2018 | DQ2: Q1 2019 | DR2: Q2 2019 | DS2: Q3 2019 | DT2: Q4 2019 | DU2: Q1 2020 | DV2: Q2 2020 | DW2: Q3 2020 | DX2: Q4 2020 | DY2: Q1 2021 | DZ2: Q2 2021 | EA2: Q3 2021 | EB2: Q4 2021 | EC2: Q1 2022 | ED2: Q2 2022 | EE2: Q3 2022 | EF2: Q4 2022 | EG2: Q1 2023 | EH2: Q2 2023 | EJ2: Q1 2017 | EK2: Q2 2017 | EL2: Q3 2017 PF | EM2: Q4 2017 PF | EN2: Q1 2018 | EO2: Q2 2018 | EP2: Q3 2018 | EQ2: Q4 2018 | ER2: Q1 2019 | ES2: Q2 2019 | ET2: Q3 2019 | EU2: Q4 2019 | EV2: Q1 2020 | EW2: Q2 2020 | EX2: Q3 2020 | EY2: Q4 2020 | EZ2: Q1 2021 | FA2: Q2 2021 | FB2: Q3 2021 | FC2: Q4 2021 | FD2: Q1 2022 | FE2: Q2 2022 | FF2: Q3 2022 | FG2: Q4 2022 | FH2: Q1 2023 | FI2: Q2 2023
B3: Asseco Poland Segment | E3: 309516599.5 | F3: 315459007.2 | G3: 316876448.7 | H3: 403847944.7 | I3: 316300000 | J3: 352100000 | K3: 308200000 | L3: 382200000 | M3: 298600000 | N3: 305100000 | O3: 290100000 | P3: 318500000 | Q3: 310700000 | R3: 332000000 | S3: 365500000 | T3: 430400000 | U3: 366800000 | V3: 384300000 | W3: 372400000 | X3: 451700000 | Y3: 408400000 | Z3: 430000000 | AA3: 420000000 | AB3: 479600000 | AC3: 457100000 | AD3: 513600000 | AF3: 39548957.47 | AG3: 31800597.66 | AH3: 35960657.83 | AI3: 45189787.04 | AJ3: 55800000 | AK3: 64700000 | AL3: 52600000 | AM3: 47600000 | AN3: 43300000 | AO3: 44100000 | AP3: 38200000 | AQ3: 27500000 | AR3: 42700000 | AS3: 52100000 | AT3: 60200000 | AU3: 59800000 | AV3: 59000000 | AW3: 78300000 | AX3: 70000000 | AY3: 56000000 | AZ3: 67500000 | BA3: 73000000 | BB3: 74400000 | BC3: 60400000 | BD3: 66200000 | BE3: 76700000 | BG3: 44062957.47 | BH3: 36309597.66 | BI3: 40471657.83 | BJ3: 49697787.04 | BK3: 60015000 | BL3: 68917000 | BM3: 57201888.89 | BN3: 52401611.11 | BO3: 46963000 | BP3: 48868000 | BQ3: 42415000 | BR3: 31551000 | BS3: 46715000 | BT3: 56206000 | BU3: 64245896.34 | BV3: 68049000 | BW3: 62792000 | BX3: 82092000 | BY3: 73792000 | BZ3: 59761000 | CA3: 70813000 | CB3: 76272000 | CC3: 77000000 | CD3: 68601000 | CE3: 69722000 | CF3: 85138000 | CH3: 61188493.37 | CI3: -7064661.769 | CJ3: 21429629.69 | CK3: -55737461.29 | CL3: 40102344 | CM3: 47387684.99 | CN3: 42641000.25 | CO3: 38170000 | CP3: 36046000 | CQ3: 35529000 | CR3: 25786000 | CS3: 20997000 | CT3: 32498000 | CU3: 39809000 | CV3: 44183000 | CW3: 55249000 | CX3: 45856000 | CY3: 69866000 | CZ3: 51464000 | DA3: 41895000 | DB3: 47850000 | DC3: 62902000 | DD3: 63306000 | DE3: 41161000 | DF3: 51134000 | DG3: 65434000 | DI3: 32692050.16 | DJ3: 18452194.74 | DK3: 17264902.86 | DL3: -61329708.7 | DM3: 38838820.02 | DN3: 45274107.62 | DO3: 40449367.94 | DP3: 37024006.86 | DQ3: 35275148.13 | DR3: 33558061.85 | DS3: 24904693.43 | DT3: 20001920.55 | DU3: 32130028.11 | DV3: 37069971.89 | DW3: 42982204.68 | DX3: 55713900.92 | DY3: 45900000 | DZ3: 68700000 | EA3: 50451537.32 | EB3: 41548462.68 | EC3: 48600000 | ED3: 61100000 | EE3: 61547344.77 | EF3: 39784778.41 | EG3: 49937190.19 | EH3: 63453335.91 | EJ3: 36515879.33 | EK3: 21823327.26 | EL3: 20942396.14 | EM3: 23927950.23 | EN3: 42233927.18 | EO3: 48799776.92 | EP3: 43380577.79 | EQ3: 37137603.95 | ER3: 38245108.59 | ES3: 37655121.85 | ET3: 28268693.43 | EU3: 23305010.09 | EV3: 35382028.11 | EW3: 40411412.03 | EX3: 46265011.02 | EY3: 62432350.92 | EZ3: 48971000 | FA3: 64692278.5 | FB3: 55254737.32 | FC3: 42845984.18 | FD3: 51315000 | FE3: 63751000 | FF3: 63785344.77 | FG3: 52891578.05 | FH3: 52988190.19 | FI3: 71420335.91
B4: Asseco Poland (without dividends) | E4: 202880000 | F4: 196326000 | G4: 202853000 | H4: 259176000 | I4: 205373000 | J4: 225425000 | K4: 210982000 | L4: 251505000 | M4: 195051000 | N4: 210024000 | O4: 191685000 | P4: 208784000 | Q4: 203854000 | R4: 226591000 | S4: 261223000 | T4: 315204000 | U4: 261578000 | V4: 268176000 | W4: 263503000 | X4: 305705000 | Y4: 279847000 | Z4: 293426000 | AA4: 303086000 | AB4: 326428000 | AC4: 317481000 | AD4: 367072000 | AF4: 31517000 | AG4: 22093000 | AH4: 32430000 | AI4: 34655000 | AJ4: 46308000 | AK4: 43215000 | AL4: 47506000 | AM4: 44687000 | AN4: 29061000 | AO4: 31933000 | AP4: 28117000 | AQ4: 20223000 | AR4: 31374000 | AS4: 34011000 | AT4: 43893000 | AU4: 48777000 | AV4: 46049000 | AW4: 56996000 | AX4: 55925000 | AY4: 27558000 | AZ4: 46609000 | BA4: 49778000 | BB4: 48956000 | BC4: 46894000 | BD4: 50121000 | BE4: 60572000 | BG4: 34225000 | BH4: 24801000 | BI4: 35136000 | BJ4: 37363000 | BK4: 49016000 | BL4: 45922000 | BM4: 50213000 | BN4: 47397000 | BO4: 31769000 | BP4: 34640000 | BQ4: 30825000 | BR4: 22731000 | BS4: 33881000 | BT4: 36518000 | BU4: 46490000 | BV4: 55622000 | BW4: 48422000 | BX4: 59369000 | BY4: 58299000 | BZ4: 29929000 | CA4: 48214000 | CB4: 51383000 | CC4: 50561000 | CD4: 48499000 | CE4: 51726000 | CF4: 62177000 | CH4: 21672691.01 | CI4: 17421308.99 | CJ4: -5260351.69 | CK4: -3603648.31 | CL4: 38885000 | CM4: 30938000 | CN4: 40170000 | CO4: 36002000 | CP4: 24125000 | CQ4: 28206000 | CR4: 22701000 | CS4: 16943000 | CT4: 24274000 | CU4: 25451000 | CV4: 32927000 | CW4: 46838000 | CX4: 35587000 | CY4: 55225000 | CZ4: 41537000 | DA4: 18171000 | DB4: 34949000 | DC4: 44092000 | DD4: 40439000 | DE4: 29767000 | DF4: 40148000 | DG4: 41846000 | DI4: 21673327.38 | DJ4: 17418918.51 | DK4: 38624527.39 | DL4: -47487118.33 | DM4: 38871445.81 | DN4: 30952157.06 | DO4: 40171489.3 | DP4: 35998889.84 | DQ4: 24129251.68 | DR4: 28206840.23 | DS4: 22699789.32 | DT4: 16940611.43 | DU4: 24274060.82 | DV4: 25451752.91 | DW4: 32926129.27 | DX4: 46837140.47 | DY4: 35586840.07 | DZ4: 55226050.92 | EA4: 41533846.12 | EB4: 18171952.55 | EC4: 34948681.27 | ED4: 44091064.87 | EE4: 40439603.28 | EF4: 29769485.92 | EG4: 40148535.75 | EH4: 41845190.58 | EJ4: 27375152.44 | EK4: 17497420.6 | EL4: -4545743.491 | EM4: 23711460.23 | EN4: 41021568.13 | EO4: 33205951.2 | EP4: 42381339.35 | EQ4: 38193989.43 | ER4: 26319752.14 | ES4: 29609360.23 | ET4: 24894789.32 | EU4: 18974700.97 | EV4: 26305060.82 | EW4: 27481752.91 | EX4: 35030039.27 | EY4: 52385590.47 | EZ4: 37508840.07 | FA4: 48875329.42 | FB4: 43479046.12 | FC4: 20092474.05 | FD4: 36248681.27 | FE4: 45393064.87 | FF4: 42539603.28 | FG4: 41757280.56 | FH4: 41455535.75 | FI4: 50906190.58
B5: Asseco Data Systems | C5: Asseco Data Systems PF | D5: Asseco Data Systems PF | E5: 69557000 | F5: 74634000 | G5: 84596000 | H5: 128724000 | I5: 89075000 | J5: 93260000 | K5: 76711000 | L5: 91508000 | M5: 72401000 | N5: 68301000 | O5: 60973000 | P5: 74111000 | Q5: 67693000 | R5: 66439000 | S5: 72765000 | T5: 88263000 | U5: 76813000 | V5: 80753000 | W5: 69943000 | X5: 92725000 | Y5: 83359000 | Z5: 87151000 | AA5: 74783000 | AB5: 97172000 | AC5: 94352000 | AD5: 91380000 | AF5: 5752000 | AG5: 2545000 | AH5: 4173000 | AI5: -4130000 | AJ5: 5623000 | AK5: 12511000 | AL5: 1308000 | AM5: 6374000 | AN5: 8989000 | AO5: 8071000 | AP5: 916000 | AQ5: 6438000 | AR5: 7319000 | AS5: 11376000 | AT5: 11071000 | AU5: 7314000 | AV5: 12926000 | AW5: 16579000 | AX5: 7299000 | AY5: 16445000 | AZ5: 15439000 | BA5: 12130000 | BB5: 7099000 | BC5: 13786000 | BD5: 15937000 | BE5: 9987000 | BG5: 7466000 | BH5: 4260000 | BI5: 5888000 | BJ5: -2419000 | BK5: 7041000 | BL5: 13932000 | BM5: 2725000 | BN5: 7792000 | BO5: 10407000 | BP5: 9491000 | BQ5: 2334000 | BR5: 7857000 | BS5: 8738000 | BT5: 12795000 | BU5: 12489000 | BV5: 8733000 | BW5: 14345000 | BX5: 17998000 | BY5: 8717000 | BZ5: 17835000 | CA5: 17147000 | CB5: 13797000 | CC5: 8513000 | CD5: 15382000 | CE5: 17854000 | CF5: 11906000 | CH5: 4055000 | CI5: 2241000 | CJ5: 2788000 | CK5: -5380000 | CL5: 4471000 | CM5: 10087000 | CN5: 979000 | CO5: 3704000 | CP5: 7819000 | CQ5: 6262000 | CR5: -2858000 | CS5: 4971000 | CT5: 6005000 | CU5: 8775000 | CV5: 8988000 | CW5: 5812000 | CX5: 10334000 | CY5: 13101000 | CZ5: 5777000 | DA5: 11502000 | DB5: 14011000 | DC5: 11155000 | DD5: 6096000 | DE5: 12749000 | DF5: 13618000 | DG5: 9270000 | DI5: 4055000 | DJ5: 2241000 | DK5: 2788000 | DL5: -5380000 | DM5: 4471000 | DN5: 10087000 | DO5: 979000 | DP5: 3704000 | DQ5: 7819000 | DR5: 6262000 | DS5: -2858000 | DT5: 4971000 | DU5: 6005000 | DV5: 8775000 | DW5: 8988000 | DX5: 5812000 | DY5: 10334000 | DZ5: 13101000 | EA5: 5777839.93 | EB5: 11501160.07 | EC5: 14011000 | ED5: 11209000 | EE5: 6042000 | EF5: 12749000 | EG5: 13618000 | EH5: 9270000 | EJ5: 5443340 | EK5: 3630150 | EL5: 4177150 | EM5: -3994090 | EN5: 5619580 | EO5: 11238010 | EP5: 2126770 | EQ5: 4852580 | ER5: 8967580 | ES5: 7412420 | ET5: -1710000 | EU5: 6121000 | EV5: 7154000 | EW5: 9925000 | EX5: 10136000 | EY5: 6982000 | EZ5: 11483000 | FA5: 14251000 | FB5: 6925839.93 | FC5: 12627160.07 | FD5: 15426000 | FE5: 12776000 | FF5: 6939000 | FG5: 14675000 | FH5: 15362000 | FI5: 11023000
B6: Other Companies | E6: 48913000 | F6: 56389000 | G6: 47929000 | H6: 52198000 | I6: 34999000 | J6: 43634000 | K6: 38749000 | L6: 51071000 | M6: 40260000 | N6: 40737000 | O6: 47596000 | P6: 49022000 | Q6: 49500000 | R6: 51781000 | S6: 42668000 | T6: 48345000 | U6: 34359000 | V6: 42208000 | W6: 45947000 | X6: 70722000 | Y6: 63025000 | Z6: 65950000 | AA6: 64799000 | AB6: 81305000 | AC6: 64346000 | AD6: 75042000 | AF6: 4706000 | AG6: 6467000 | AH6: 2263000 | AI6: 10583000 | AJ6: 4411000 | AK6: 6700000 | AL6: 7299000 | AM6: 5913000 | AN6: 4142000 | AO6: 4254000 | AP6: 8740946.064 | AQ6: 3889315.355 | AR6: 4052000 | AS6: 7494000 | AT6: 6841000 | AU6: 655000 | AV6: 998000 | AW6: 4659000 | AX6: 7760000 | AY6: 6623000 | AZ6: 6413000 | BA6: 11345000 | BB6: 23721000 | BC6: 8006000 | BD6: 4296000 | BE6: 7577000 | BG6: 4706000 | BH6: 6467000 | BI6: 2263000 | BJ6: 10583000 | BK6: 4411000 | BL6: 6700000 | BM6: 7299000 | BN6: 5913000 | BO6: 4142000 | BP6: 4254000 | BQ6: 8740946.064 | BR6: 3889315.355 | BS6: 4052000 | BT6: 7494000 | BU6: 6841000 | BV6: 655000 | BW6: 998000 | BX6: 4659000 | BY6: 7760000 | BZ6: 6623000 | CA6: 6413000 | CB6: 11345000 | CC6: 23721000 | CD6: 8006000 | CE6: 4296000 | CF6: 7577000 | CH6: 3148000 | CI6: 4220000 | CJ6: 1226000 | CK6: 8398000 | CL6: 2511000 | CM6: 4613000 | CN6: 5748000 | CO6: 4852000 | CP6: 3036000 | CQ6: 2179000 | CR6: 5898946.064 | CS6: 2593315.355 | CT6: 2547000 | CU6: 5680000 | CV6: 3883000 | CW6: 976000 | CX6: 701000 | CY6: -2809000 | CZ6: 12184000 | DA6: 4875000 | DB6: 4416000 | DC6: 8549000 | DD6: 17982000 | DE6: 7265000 | DF6: 2735000 | DG6: 6927000 | DI6: 2715513.873 | DJ6: 1568977.039 | DK6: -2364679.038 | DL6: 2198452.11 | DM6: 1166531.266 | DN6: 2583968.304 | DO6: 3189981.882 | DP6: 3770773.463 | DQ6: 2230132.103 | DR6: 241995.3038 | DS6: 5061823.822 | DT6: 1532753.871 | DU6: 2179162.938 | DV6: 2898918.504 | DW6: 2734331.405 | DX6: 19720.11266 | DY6: 813824.0042 | DZ6: -4071148.192 | EA6: 11221457.32 | EB6: 4582773.572 | EC6: 4483155.825 | ED6: 6713783.309 | EE6: 16899054.41 | EF6: 4988696.308 | EG6: 1442993.441 | EH6: 4975806.327 | EJ6: 2715513.873 | EK6: 1568977.039 | EL6: -2364679.038 | EM6: 2198452.11 | EN6: 1166531.266 | EO6: 2583968.304 | EP6: 3189981.882 | EQ6: 3795883.463 | ER6: 2230132.103 | ES6: 241995.3038 | ET6: 5061823.822 | EU6: 1534753.871 | EV6: 2179162.938 | EW6: 2898918.504 | EX6: 2734331.405 | EY6: 19720.11266 | EZ6: 813824.0042 | FA6: 3248851.808 | FB6: 3901457.32 | FC6: 4582773.572 | FD6: 4483155.825 | FE6: 6713783.309 | FF6: 17826054.41 | FG6: 4988696.308 | FH6: 1442993.441 | FI6: 4975806.327
D7: Consolidation adjustment | E7: -11833400.51 | F7: -11889992.82 | G7: -18501551.33 | H7: -36250055.34 | I7: -13147000 | J7: -10219000 | K7: -18242000 | L7: -11884000 | M7: -9112000 | N7: -13962000 | O7: -10154000 | P7: -13417000 | Q7: -10347000 | R7: -12811000 | S7: -11156000 | T7: -21412000 | U7: -5950000 | V7: -6837000 | W7: -6993000 | X7: -17452000 | Y7: -17831000 | Z7: -16527000 | AA7: -22668000 | AB7: -25305000 | AC7: -19079000 | AD7: -19894000 | AF7: -2426042.526 | AG7: 695597.6591 | AH7: -2905342.17 | AI7: 4081787.037 | AJ7: -542000 | AK7: 2274000 | AL7: -3513000 | AM7: -9374000 | AN7: 1108000 | AO7: -158000 | AP7: 426053.9356 | AQ7: -3050315.355 | AR7: -45000 | AS7: -781000 | AT7: -1605000 | AU7: 3054000 | AV7: -973000 | AW7: 66000 | AX7: -984000 | AY7: 5374000 | AZ7: -961000 | BA7: -253000 | BB7: -5376000 | BC7: -8286000 | BD7: -4154000 | BE7: -1436000 | BG7: -2334042.526 | BH7: 781597.6591 | BI7: -2815342.17 | BJ7: 4170787.037 | BK7: -453000 | BL7: 2363000 | BM7: -3035111.111 | BN7: -8700388.889 | BO7: 645000 | BP7: 483000 | BQ7: 515053.9356 | BR7: -2926315.355 | BS7: 44000 | BT7: -601000 | BU7: -1574103.661 | BV7: 3039000 | BW7: -973000 | BX7: 66000 | BY7: -984000 | BZ7: 5374000 | CA7: -961000 | CB7: -253000 | CC7: -5795000 | CD7: -3286000 | CE7: -4154000 | CF7: 3478000 | CH7: 32312802.36 | CI7: -30946970.76 | CJ7: 22675981.38 | CK7: -55151812.98 | CL7: -5764656 | CM7: 1749684.99 | CN7: -4255999.75 | CO7: -6388000 | CP7: 1066000 | CQ7: -1118000 | CR7: 44053.93556 | CS7: -3510315.355 | CT7: -328000 | CU7: -97000 | CV7: -1615000 | CW7: 1623000 | CX7: -766000 | CY7: 4349000 | CZ7: -8034000 | DA7: 7347000 | DB7: -5526000 | DC7: -894000 | DD7: -1211000 | DE7: -8620000 | DF7: -5367000 | DG7: 7391000 | DI7: 4248208.905 | DJ7: -2776700.81 | DK7: -21782945.49 | DL7: -10661042.48 | DM7: -5670157.058 | DN7: 1650982.252 | DO7: -3891103.24 | DP7: -6449656.442 | DQ7: 1096764.348 | DR7: -1152773.682 | DS7: 1080.283389 | DT7: -3442444.747 | DU7: -328195.6522 | DV7: -55699.51893 | DW7: -1666255.993 | DX7: 3045040.337 | DY7: -834664.0742 | DZ7: 4444097.272 | EA7: -8081606.052 | EB7: 7292576.49 | EC7: -4842837.095 | ED7: -913848.1793 | EE7: -1833312.921 | EF7: -7722403.819 | EG7: -5272339 | EH7: 7362339 | EJ7: 981873.0113 | EK7: -873220.3813 | EL7: 23675668.67 | EM7: 2012127.891 | EN7: -5573752.22 | EO7: 1771847.41 | EP7: -4317513.442 | EQ7: -9704848.942 | ER7: 727644.3478 | ES7: 391346.3178 | ET7: 22080.28339 | EU7: -3325444.747 | EV7: -256195.6522 | EW7: 105740.6115 | EX7: -1635359.654 | EY7: 3045040.337 | EZ7: -834664.0742 | FA7: -1682902.728 | FB7: 948393.9484 | FC7: 5543576.49 | FD7: -4842837.095 | FE7: -1131848.179 | FF7: -3519312.921 | FG7: -8529398.819 | FH7: -5272339 | FI7: 4515339
B8: Formula Systems Segment | E8: 1264717781 | F8: 1247233115 | G8: 1305895209 | H8: 1343555254 | I8: 1263800000 | J8: 1322900000 | K8: 1327800000 | L8: 1488200000 | M8: 1486100000 | N8: 1567200000 | O8: 1768600000 | P8: 1732500000 | Q8: 1862500000 | R8: 1775800000 | S8: 1859000000 | T8: 2064100000 | U8: 2159900000 | V8: 2206000000 | W8: 2290800000 | X8: 2652200000 | Y8: 2706300000 | Z8: 2777500000 | AA8: 3095700000 | AB8: 2884500000 | AC8: 2903400000 | AD8: 2722600000 | AF8: 72723810.96 | AG8: 54891847.51 | AH8: 55653157.08 | AI8: 29152558.92 | AJ8: 56800000 | AK8: 69800000 | AL8: 74800000 | AM8: 99700000 | AN8: 105000000 | AO8: 109400000 | AP8: 135000000 | AQ8: 123300000 | AR8: 126900000 | AS8: 160500000 | AT8: 159000000 | AU8: 168200000 | AV8: 166500000 | AW8: 172500000 | AX8: 182900000 | AY8: 237900000 | AZ8: 224600000 | BA8: 403100000 | BB8: 257700000 | BC8: 249500000 | BD8: 237600000 | BE8: 225700000 | BG8: 98481127.66 | BH8: 79847837.16 | BI8: 113108286.6 | BJ8: 100831216.3 | BK8: 118103675.9 | BL8: 123554359.8 | BM8: 126526248.9 | BN8: 155249344.8 | BO8: 154312220.2 | BP8: 156731041.3 | BQ8: 187652290.6 | BR8: 173844233.5 | BS8: 185712432.1 | BT8: 207314764 | BU8: 213864462.3 | BV8: 235833003.3 | BW8: 234815129.1 | BX8: 242632578.4 | BY8: 259230343.6 | BZ8: 318713903.7 | CA8: 309192364.2 | CB8: 295713971.9 | CC8: 328120395.4 | CD8: 338412749.4 | CE8: 326070209 | CF8: 310628187.7 | CH8: 22455810.96 | CI8: 15244847.51 | CJ8: 23986433.06 | CK8: 412864498.5 | CL8: 32971321.06 | CM8: 45030678.94 | CN8: 44935000 | CO8: 65893000 | CP8: 60963000 | CQ8: 75224000 | CR8: 85286000 | CS8: 81994000 | CT8: 78340000 | CU8: 98423000 | CV8: 99585000 | CW8: 107090000 | CX8: 113041000 | CY8: 107443000 | CZ8: 120354000 | DA8: 147123000 | DB8: 163415601.5 | DC8: 302234211.7 | DD8: 179157186.8 | DE8: 146980000 | DF8: 162196396.4 | DG8: 161608603.6 | DI8: 354608.1468 | DJ8: -405230.8236 | DK8: 4337093.51 | DL8: 401174452 | DM8: 3352027.306 | DN8: 5155191.379 | DO8: 4273191.918 | DP8: 7869090.088 | DQ8: 5952207.628 | DR8: 8857314.729 | DS8: 8806254.977 | DT8: 8657110.955 | DU8: 7389284.423 | DV8: 11867144.42 | DW8: 10575919.39 | DX8: 10655654.98 | DY8: 11400000 | DZ8: 10200000 | EA8: 11921279.42 | EB8: 15178720.58 | EC8: 16000000 | ED8: 34016262.2 | EE8: 19039608.37 | EF8: 13359694.07 | EG8: 15516419.03 | EH8: 16871317.98 | EJ8: 6671644.808 | EK8: 5800712.403 | EL8: 11936294.42 | EM8: 7964017.823 | EN8: 10631090.3 | EO8: 11319105.83 | EP8: 10316918.24 | EQ8: 14718032.06 | ER8: 11128723.83 | ES8: 13698780.87 | ET8: 14330324.1 | EU8: 14718730.15 | EV8: 14909355.98 | EW8: 16824492.22 | EX8: 15739287.95 | EY8: 18987797.42 | EZ8: 19317323.38 | FA8: 19392627.4 | FB8: 21356977.07 | FC8: 26537709.95 | FD8: 26332770.3 | FE8: 26425115.58 | FF8: 25998280.52 | FG8: 24676569.5 | FH8: 26650627.11 | FI8: 26791977.07
B9: Matrix IT | E9: 760222000 | F9: 707844000 | G9: 758484450 | H9: 798284035.3 | I9: 759908192 | J9: 773974079.7 | K9: 765809682.8 | L9: 885310052 | M9: 888804243.2 | N9: 935449905.1 | O9: 1066891860 | P9: 998489337.6 | Q9: 1112976989 | R9: 995774161.7 | S9: 1080977636 | T9: 1206625081 | U9: 1280654956 | V9: 1227244011 | W9: 1241272304 | X9: 1483937268 | Y9: 1505427489 | Z9: 1513089479 | AA9: 1685602708 | AB9: 1485843331 | AC9: 1571728213 | AD9: 1458223330 | AF9: 53017000 | AG9: 43328000 | AH9: 55766101.15 | AI9: 55523719.11 | AJ9: 52733426.52 | AK9: 53170361.63 | AL9: 50707810.65 | AM9: 69334136.72 | AN9: 62884255.45 | AO9: 63016636.19 | AP9: 75943784.22 | AQ9: 72032917.69 | AR9: 77710252.65 | AS9: 76841471.94 | AT9: 80939794.24 | AU9: 91810593.72 | AV9: 93996137.46 | AW9: 94925938.88 | AX9: 90435860.17 | AY9: 116667519.7 | AZ9: 119766585.4 | BA9: 299247600.3 | BB9: 122565084.8 | BC9: 120829869 | BD9: 123511224.3 | BE9: 106266311.9 | BG9: 57122191.84 | BH9: 46437246.78 | BI9: 58103931.17 | BJ9: 57643352.36 | BK9: 56373425.07 | BL9: 57451517.06 | BM9: 54447627.93 | BN9: 74626498.96 | BO9: 69610473.66 | BP9: 69441391.73 | BQ9: 83105410.71 | BR9: 78414439.92 | BS9: 84147717.86 | BT9: 83296847.44 | BU9: 88921494.54 | BV9: 99774329.96 | BW9: 100722028.7 | BX9: 101869268.2 | BY9: 97972108.92 | BZ9: 124666781.6 | CA9: 126551511.5 | CB9: 116143567.7 | CC9: 121080333 | CD9: 129169723.2 | CE9: 134241735.3 | CF9: 124739866.3 | CH9: 30833000 | CI9: 25706000 | CJ9: 35640584.35 | CK9: 41719555.51 | CL9: 34345845.84 | CM9: 34687108.95 | CN9: 31351500.5 | CO9: 44622358.29 | CP9: 39895166.82 | CQ9: 39682481.85 | CR9: 49026859.63 | CS9: 51907383.71 | CT9: 49169004.41 | CU9: 48342710.25 | CV9: 50133264.49 | CW9: 70052743.33 | CX9: 63608386.86 | CY9: 63059403.19 | CZ9: 58052591.55 | DA9: 77840608.53 | DB9: 88425913.41 | DC9: 237343671.8 | DD9: 75557171.39 | DE9: 68258554.27 | DF9: 79563060.74 | DG9: 71104851.97 | DI9: 7095356.749 | DJ9: 5541517.16 | DK9: 5626038.265 | DL9: 5346883.021 | DM9: 4339318.363 | DN9: 4293513.774 | DO9: 3876789.904 | DP9: 5498629.268 | DQ9: 4814369.379 | DR9: 4662835.157 | DS9: 5763528.203 | DT9: 6185929.06 | DU9: 5636167.369 | DV9: 5679315.75 | DW9: 5729241.496 | DX9: 7649250.548 | DY9: 7022687.642 | DZ9: 7161252.517 | EA9: 6569507.871 | EB9: 8638704.94 | EC9: 9608255.142 | ED9: 28939600.79 | EE9: 8714933.092 | EF9: 7995097.312 | EG9: 9205701.308 | EH9: 8266482.37 | EJ9: 8188853.931 | EK9: 6830239.689 | EL9: 6048806.943 | EM9: 4831332.076 | EN9: 5025176.544 | EO9: 5310002.299 | EP9: 4841869.986 | EQ9: 6562281.789 | ER9: 5602516.477 | ES9: 5514801.167 | ET9: 6683084.843 | EU9: 6831457.202 | EV9: 6073807.565 | EW9: 6682624.093 | EX9: 6207042.2 | EY9: 7684270.064 | EZ9: 7454302.157 | FA9: 7968519.184 | FB9: 6886853.583 | FC9: 10159977.36 | FD9: 9535305.561 | FE9: 11271877.22 | FF9: 6392041.143 | FG9: 9642201.37 | FH9: 10816845.88 | FI9: 10130215.24
B10: Magic Software | E10: 244404000 | F10: 247476000 | G10: 246088914.1 | H10: 245359832 | I10: 236243311.3 | J10: 256256989 | K10: 264383788.9 | L10: 273324710 | M10: 271624575 | N10: 293085764 | O10: 337158171.4 | P10: 349840772.1 | Q10: 339162772.2 | R10: 351437968.4 | S10: 358384043.3 | T10: 400349858.8 | U10: 409106054.1 | V10: 447225987.4 | W10: 469704729.6 | X10: 535582466.7 | Y10: 577526932.6 | Z10: 600838698.5 | AA10: 685417464.9 | AB10: 668581117.1 | AC10: 621460976.7 | AD10: 574549934.9 | AF10: 25501000 | AG10: 26584000 | AH10: 23941604.09 | AI10: 24182734.45 | AJ10: 25638257.42 | AK10: 29089081.48 | AL10: 28269706.46 | AM10: 31698428.13 | AN10: 31735307.65 | AO10: 30437457 | AP10: 35671641.79 | AQ10: 33826256.86 | AR10: 34714809.62 | AS10: 42058373.51 | AT10: 42898448.78 | AU10: 48782010.65 | AV10: 47152485.78 | AW10: 48499714.4 | AX10: 49904390.95 | AY10: 67596656.7 | AZ10: 68960304.09 | BA10: 63544545.91 | BB10: 79754820.58 | BC10: 66105772.94 | BD10: 66565782.94 | BE10: 64967526.95 | BG10: 33754896.47 | BH10: 33822123.53 | BI10: 31650424.87 | BJ10: 31355727.02 | BK10: 31808108.98 | BL10: 35658794.38 | BM10: 35465706.83 | BN10: 38183396.74 | BO10: 37844798.87 | BP10: 37852031.07 | BQ10: 45460698.05 | BR10: 43709487.52 | BS10: 41327344.35 | BT10: 49540962.5 | BU10: 51673798.69 | BV10: 57495374.83 | BW10: 56444198.23 | BX10: 56897703.17 | BY10: 58706943.78 | BZ10: 77919914.42 | CA10: 79752787.37 | CB10: 77286831.63 | CC10: 89653622.6 | CD10: 84553772.76 | CE10: 79532519.97 | CF10: 77354138.65 | CH10: 19559000 | CI10: 18282000 | CJ10: 15594956.57 | CK10: 14870521.45 | CL10: 19614097.03 | CM10: 24685802.79 | CN10: 22487454.28 | CO10: 22962035.05 | CP10: 24698989.58 | CQ10: 23065808.74 | CR10: 25986436.52 | CS10: 22854916.56 | CT10: 27950629.57 | CU10: 27243542.48 | CV10: 31212389.42 | CW10: 28523623.47 | CX10: 33617163.99 | CY10: 34176971 | CZ10: 34051573.2 | DA10: 35157294.83 | DB10: 46900668.11 | DC10: 48075388.89 | DD10: 61687142.28 | DE10: 47844078.68 | DF10: 51640073.86 | DG10: 53057809.81 | DI10: 3754409.564 | DJ10: 3522397.511 | DK10: 1774636.64 | DL10: 1765278.34 | DM10: 1923780.68 | DN10: 2569075.479 | DO10: 2250208.041 | DP10: 2055315.533 | DQ10: 2363685.408 | DR10: 2057419.928 | DS10: 2289718.732 | DT10: 2062692.374 | DU10: 2586290.328 | DV10: 2744020.4 | DW10: 3052885.832 | DX10: 2744059.384 | DY10: 3363294.589 | DZ10: 3411833.494 | EA10: 3393246.115 | EB10: 3281695.121 | EC10: 4722299.583 | ED10: 4922429.233 | EE10: 6505526.084 | EF10: 4865523.752 | EG10: 5243782.595 | EH10: 5655178.607 | EJ10: 5148095.813 | EK10: 4741289.682 | EL10: 2694877.041 | EM10: 2596976.727 | EN10: 2513230.441 | EO10: 3196527.957 | EP10: 2942704.435 | EQ10: 2633755.938 | ER10: 2882327.865 | ES10: 2553219.032 | ET10: 3153635.277 | EU10: 3220244.88 | EV10: 3479181.774 | EW10: 3855995.786 | EX10: 3743265.7 | EY10: 4436028.344 | EZ10: 4369423.771 | FA10: 4498429.385 | FB10: 4611973.402 | FC10: 5750911.054 | FD10: 6354547.126 | FE10: 6113567.578 | FF10: 7584270.179 | FG10: 6716327.658 | FH10: 6416099.21 | FI10: 6885415.562
B11: Sapiens Int. | E11: 227403000 | F11: 261914000 | G11: 270400367.3 | H11: 265168011.6 | I11: 240546283 | J11: 263261260.5 | K11: 268479678.1 | L11: 277241569.9 | M11: 290482664 | N11: 302516301.9 | O11: 325231382.6 | P11: 333644223.8 | Q11: 361295009.7 | R11: 377032101.3 | S11: 368182048.4 | T11: 388555475.7 | U11: 417848728.2 | V11: 429196031.1 | W11: 457947869.4 | X11: 481852246.7 | Y11: 490058685.5 | Z11: 519876183.8 | AA11: 567951434 | AB11: 543166874.6 | AC11: 544162295.7 | AD11: 536519922.8 | AF11: -2370000 | AG11: -6389000 | AH11: 12807157.71 | AI11: 2823874.983 | AJ11: 17547315.34 | AK11: 17810254.85 | AL11: 24342058.94 | AM11: 27176939.1 | AN11: 32325450.45 | AO11: 37104407.29 | AP11: 45640974.26 | AQ11: 37138056.15 | AR11: 42867741.69 | AS11: 54129229.5 | AT11: 53095184.04 | AU11: 45377011.35 | AV11: 50008248.04 | AW11: 54027463.81 | AX11: 61255489.62 | AY11: 67701882.63 | AZ11: 69768074.83 | BA11: 72264301.32 | BB11: 85021338.68 | BC11: 85575734 | BD11: 85631947.42 | BE11: 81770200.52 | BG11: 4838081.126 | BH11: 2101447.189 | BI11: 22921886 | BJ11: 16272566.28 | BK11: 29202608.79 | BL11: 30448114.28 | BM11: 35733781.21 | BN11: 39384488.45 | BO11: 43314968.71 | BP11: 47241261.98 | BQ11: 56907812.88 | BR11: 47343498.48 | BS11: 54983405.79 | BT11: 69230625.98 | BU11: 66642096.85 | BV11: 66242324.16 | BW11: 70257851.98 | BX11: 74746270.1 | BY11: 79559632.24 | BZ11: 91292330.28 | CA11: 90965811.09 | CB11: 89458776.76 | CC11: 99223264.47 | CD11: 104436054.3 | CE11: 104942438 | CF11: 96538950.05 | CH11: -8039000 | CI11: -10033000 | CJ11: 6111145.791 | CK11: 10460666.26 | CL11: 10798087.27 | CM11: 6741688.76 | CN11: 18630461.96 | CO11: 16616487.98 | CP11: 20129165.81 | CQ11: 24156931.85 | CR11: 31109774.74 | CS11: 26315044.61 | CT11: 25675949.55 | CU11: 35771551.28 | CV11: 37128056.84 | CW11: 28583651.88 | CX11: 36491990.09 | CY11: 38604157.11 | CZ11: 49988983.17 | DA11: 52237039.84 | DB11: 56756303.89 | DC11: 46152946.71 | DD11: 66722609.51 | DE11: 64850279.19 | DF11: 64445381.13 | DG11: 62496478.32 | DI11: -1792418.334 | DJ11: -2258985.349 | DK11: 905486.1858 | DL11: 1453816.453 | DM11: 1364406.99 | DN11: 809498.1944 | DO11: 2350251.507 | DP11: 2062352.506 | DQ11: 2488614.14 | DR11: 2931081.514 | DS11: 3749456.18 | DT11: 3146533.394 | DU11: 3097616.354 | DV11: 4356791.704 | DW11: 4422217.857 | DX11: 3300509.664 | DY11: 4075162.617 | DZ11: 4331025.443 | EA11: 5571003.842 | EB11: 5860386.195 | EC11: 6347928.194 | ED11: 5176807.661 | EE11: 7344639.034 | EF11: 7323392.581 | EG11: 7217346.507 | EH11: 7084015.514 | EJ11: 134942.9724 | EK11: -575527.8778 | EL11: 2434853.881 | EM11: 2877220.466 | EN11: 2633408.464 | EO11: 2219936.365 | EP11: 3460949.149 | EQ11: 3299279.487 | ER11: 3586421.661 | ES11: 3909014.464 | ET11: 4857969.546 | EU11: 4359635.299 | EV11: 4297431.613 | EW11: 6355257.173 | EX11: 5537830.143 | EY11: 5903065.221 | EZ11: 6049671.941 | FA11: 6364452.282 | FB11: 7087534.181 | FC11: 7445757.235 | FD11: 8474113.575 | FE11: 6706380.481 | FF11: 8867122.861 | FG11: 9179278.638 | FH11: 8966811.527 | FI11: 8401591.33
B12: Holding and other companies, consolidation adjustment | E12: 32688781.38 | F12: 29999114.83 | G12: 30921477.35 | H12: 34743374.85 | I12: 27102213.67 | J12: 29407670.83 | K12: 29126850.2 | L12: 52323668.15 | M12: 35188517.82 | N12: 36148029.12 | O12: 39318586.08 | P12: 50525666.49 | Q12: 49065228.85 | R12: 51555768.54 | S12: 51456272.72 | T12: 68569584.09 | U12: 52290261.87 | V12: 102333970.1 | W12: 121875097.1 | X12: 150828018.2 | Y12: 133286893.4 | Z12: 143695638.5 | AA12: 156728393 | AB12: 186908677.5 | AC12: 166048514.6 | AD12: 153306812.6 | AF12: -3424189.037 | AG12: -8631152.493 | AH12: -36861705.86 | AI12: -53377769.61 | AJ12: -39118999.28 | AK12: -30269697.96 | AL12: -28519576.06 | AM12: -28509503.96 | AN12: -21945013.55 | AO12: -21158500.48 | AP12: -22256400.27 | AQ12: -19697230.7 | AR12: -28392803.96 | AS12: -12529074.95 | AT12: -17933427.07 | AU12: -17769615.71 | AV12: -24656871.27 | AW12: -24953117.09 | AX12: -18695740.74 | AY12: -14066059.05 | AZ12: -33894964.27 | BA12: -31956447.5 | BB12: -29641244.03 | BC12: -23011375.96 | BD12: -38108954.67 | BE12: -27304039.39 | BG12: 2765958.23 | BH12: -2512980.34 | BI12: 432044.6015 | BJ12: -4440429.358 | BK12: 719533.0699 | BL12: -4065.927892 | BM12: 879132.9052 | BN12: 3054960.651 | BO12: 3541978.96 | BP12: 2196356.53 | BQ12: 2178368.928 | BR12: 4376807.536 | BS12: 5253964.076 | BT12: 5246328.077 | BU12: 6627072.173 | BV12: 12320974.36 | BW12: 7391050.18 | BX12: 9119336.913 | BY12: 22991658.66 | BZ12: 24834877.39 | CA12: 11922254.25 | CB12: 12824795.84 | CC12: 18163175.3 | CD12: 20253199.13 | CE12: 7353515.723 | CF12: 11995232.7 | CH12: -19897189.04 | CI12: -18710152.49 | CJ12: -33360253.65 | CK12: 345813755.3 | CL12: -31786709.07 | CM12: -21083921.56 | CN12: -27534416.74 | CO12: -18307881.32 | CP12: -23760322.21 | CQ12: -11681222.43 | CR12: -20837070.89 | CS12: -19083344.87 | CT12: -24455583.53 | CU12: -12934804 | CV12: -18888710.76 | CW12: -20070018.68 | CX12: -20676540.94 | CY12: -28397531.31 | CZ12: -21739147.91 | DA12: -18111943.2 | DB12: -28667283.94 | DC12: -29337795.71 | DD12: -24809736.37 | DE12: -33972912.15 | DF12: -33452119.37 | DG12: -25050536.44 | DI12: -8702739.832 | DJ12: -7210160.146 | DK12: -3969067.582 | DL12: 392608474.2 | DM12: -4275478.727 | DN12: -2516896.069 | DO12: -4204057.533 | DP12: -1747207.218 | DQ12: -3714461.3 | DR12: -794021.8696 | DS12: -2996448.138 | DT12: -2738043.874 | DU12: -3930789.628 | DV12: -912983.4313 | DW12: -2628425.797 | DX12: -3038164.616 | DY12: -3061144.848 | DZ12: -4704111.454 | EA12: -3612478.406 | EB12: -2602065.678 | EC12: -4678482.919 | ED12: -5022575.482 | EE12: -3525489.835 | EF12: -6824319.577 | EG12: -6150411.379 | EH12: -4134358.508 | EJ12: -6800247.909 | EK12: -5195289.09 | EL12: 757756.5582 | EM12: -2341511.446 | EN12: 459274.8471 | EO12: 592639.204 | EP12: -928605.3254 | EQ12: 2222714.841 | ER12: -942542.1743 | ES12: 1721746.207 | ET12: -364365.5643 | EU12: 307392.7717 | EV12: 1058935.027 | EW12: -69384.82925 | EX12: 251149.9078 | EY12: 964433.7922 | EZ12: 1443925.512 | FA12: 561226.552 | FB12: 2770615.906 | FC12: 3181064.302 | FD12: 1968804.035 | FE12: 2333290.303 | FF12: 3154846.337 | FG12: -861238.1635 | FH12: 450870.4873 | FI12: 1374754.931
B13: Asseco International Segment | E13: 505567376.6 | F13: 543299651.3 | G13: 505849136.6 | H13: 678183835.4 | I13: 574000000 | J13: 644300000 | K13: 586800000 | L13: 787100000 | M13: 673600000 | N13: 672600000 | O13: 686600000 | P13: 896600000 | Q13: 754600000 | R13: 749500000 | S13: 720900000 | T13: 1002100000 | U13: 818800000 | V13: 872500000 | W13: 845900000 | X13: 1107900000 | Y13: 940300000 | Z13: 1002700000 | AA13: 1048400000 | AB13: 1205400000 | AC13: 988400000 | AD13: 953800000 | AF13: 54195333.47 | AG13: 56780252.08 | AH13: 52484965.61 | AI13: 85339448.83 | AJ13: 54300000 | AK13: 69600000 | AL13: 58900000 | AM13: 91100000 | AN13: 76400000 | AO13: 74400000 | AP13: 88200000 | AQ13: 109300000 | AR13: 80900000 | AS13: 91700000 | AT13: 78800000 | AU13: 136800000 | AV13: 97600000 | AW13: 101100000 | AX13: 119400000 | AY13: 113800000 | AZ13: 95100000 | BA13: 60600000 | BB13: 98000000 | BC13: 152800000 | BD13: 97700000 | BE13: 89200000 | BG13: 56665290.94 | BH13: 58480210.02 | BI13: 54751138.63 | BJ13: 87800220.51 | BK13: 56814525.93 | BL13: 72236627.2 | BM13: 61466614.83 | BN13: 94887053.9 | BO13: 79377654.77 | BP13: 77439419.69 | BQ13: 91055961.96 | BR13: 113673580.3 | BS13: 84682806.78 | BT13: 95564083.09 | BU13: 82849680.92 | BV13: 140762730.4 | BW13: 101516598.9 | BX13: 105136469.1 | BY13: 123755599.7 | BZ13: 118385385.1 | CA13: 100989934.5 | CB13: 111772841.1 | CC13: 107813952.1 | CD13: 144782363.5 | CE13: 102121446.7 | CF13: 89253296.66 | CH13: 42492264.87 | CI13: 48385693 | CJ13: 36127999.77 | CK13: -4663144.256 | CL13: 43133755.2 | CM13: 59333215.81 | CN13: 52325999.75 | CO13: 80654000 | CP13: 60158000 | CQ13: 57530000 | CR13: 70683000 | CS13: 91242000 | CT13: 66127000 | CU13: 73777000 | CV13: 62511000 | CW13: 112111000 | CX13: 74409000 | CY13: 94631000 | CZ13: 91352000 | DA13: 86533000 | DB13: 76281000 | DC13: 76729951.98 | DD13: 87637048.02 | DE13: 112078000 | DF13: 82990000 | DG13: 75189000 | DI13: 29179751.04 | DJ13: 34293603.05 | DK13: 22818045.52 | DL13: -30627160.71 | DM13: 26347970.54 | DN13: 38140689.12 | DO13: 31806986.39 | DP13: 53254700.86 | DQ13: 38258739.01 | DR13: 36649428.24 | DS13: 45006931.67 | DT13: 55170796.33 | DU13: 42709607.83 | DV13: 46472119.03 | DW13: 36215566.03 | DX13: 70226588.21 | DY13: 45320775.29 | DZ13: 63279224.71 | EA13: 57200000 | EB13: 46100000 | EC13: 43500000 | ED13: 45420740 | EE13: 48053645.92 | EF13: 73212358.32 | EG13: 46516181.65 | EH13: 38715508.21 | EJ13: 25665995.45 | EK13: 31518280.2 | EL13: 30377365.93 | EM13: 43773525.88 | EN13: 27943842.03 | EO13: 40172958.66 | EP13: 33123653.55 | EQ13: 50123545.19 | ER13: 40129677.91 | ES13: 37927365.33 | ET13: 47944271.18 | EU13: 58076366.55 | EV13: 44888067.1 | EW13: 49158568.55 | EX13: 39403855.39 | EY13: 72266968.75 | EZ13: 48357589.81 | FA13: 51690686.26 | FB13: 59520851.36 | FC13: 57984876.72 | FD13: 47512403.2 | FE13: 56756771.75 | FF13: 48103902.13 | FG13: 60726458.37 | FH13: 44593010.97 | FI13: 37608568.88
C14: Central Europen Market | E14: 218777000 | F14: 243308000 | G14: 221064000 | H14: 321871472 | I14: 272268722.4 | J14: 306810471.4 | K14: 278464465.4 | L14: 355493822.5 | M14: 319965093.5 | N14: 315722979.1 | O14: 295402297.3 | P14: 403211812.6 | Q14: 321336321.9 | R14: 320868428.1 | S14: 302059924.1 | T14: 387960701.3 | U14: 340717464.1 | V14: 373233179.5 | W14: 360672088.2 | X14: 472865228.2 | Y14: 360385712.8 | Z14: 392566615.3 | AA14: 386869949.5 | AB14: 440855878.4 | AC14: 412950101 | AD14: 401056529.1 | AF14: 31266000 | AG14: 27516000 | AH14: 28132000 | AI14: 45617000 | AJ14: 32716872 | AK14: 39714131.25 | AL14: 35683895.47 | AM14: 52965473.62 | AN14: 44882273.15 | AO14: 44591829.69 | AP14: 48198238.28 | AQ14: 60006358.04 | AR14: 46771881.42 | AS14: 49114706.08 | AT14: 36715212.03 | AU14: 73639001.47 | AV14: 53891342.7 | AW14: 52275905.41 | AX14: 58011288.11 | AY14: 57468591.28 | AZ14: 41522580 | BA14: 51613956.67 | BB14: 45497655.83 | BC14: 63435506.01 | BD14: 40394752.7 | BE14: 27002025.94 | BG14: 31589568.03 | BH14: 27743783.11 | BI14: 28321849.6 | BJ14: 46014706.4 | BK14: 33180516.39 | BL14: 40200795.8 | BM14: 36165351.5 | BN14: 54572172.3 | BO14: 45681274.26 | BP14: 45310689.8 | BQ14: 49104832.51 | BR14: 60710351.92 | BS14: 47631086.3 | BT14: 49900938.03 | BU14: 37748302.75 | BV14: 74512451.44 | BW14: 54705824.68 | BX14: 53077536.84 | BY14: 58822639.17 | BZ14: 58083289.86 | CA14: 42140824.91 | CB14: 52226140.76 | CC14: 46135913.94 | CD14: 64084278.79 | CE14: 41095091.95 | CF14: 27683685.23 | CH14: 24550666.07 | CI14: 25136000 | CJ14: 20619533.93 | CK14: 36472800 | CL14: 24251433.6 | CM14: 30034723.65 | CN14: 28818292.01 | CO14: 49498521.03 | CP14: 35216446.06 | CQ14: 35347429.92 | CR14: 37607556.94 | CS14: 50146177.79 | CT14: 36273596.54 | CU14: 40848709.71 | CV14: 28457978.01 | CW14: 59614588.49 | CX14: 41907868.6 | CY14: 41878225.01 | CZ14: 43924531.41 | DA14: 50308349.98 | DB14: 31772324.8 | DC14: 42018219.73 | DD14: 35796662.42 | DE14: 49284649.24 | DF14: 30011421.76 | DG14: 20543172.3 | DI14: 18663344.13 | DJ14: 20131955.74 | DK14: 15459573 | DL14: 23903516.43 | DM14: 15849945.54 | DN14: 20967071.34 | DO14: 19976276.55 | DP14: 35116908.49 | DQ14: 25210862.51 | DR14: 25590339.96 | DS14: 27190610.78 | DT14: 32113971.02 | DU14: 25968872.77 | DV14: 29762533.09 | DW14: 19078212.66 | DX14: 40019629.22 | DY14: 30714883.92 | DZ14: 30430430.96 | EA14: 31616239.03 | EB14: 32055528.56 | EC14: 20793123.32 | ED14: 30597894.89 | EE14: 22892544.57 | EF14: 31755881.35 | EG14: 18211445.61 | EH14: 9546520.791 | EJ14: 19187853.96 | EK14: 16322407.79 | EL14: 15690305.07 | EM14: 24086361.35 | EN14: 16032404.27 | EO14: 21540272.06 | EP14: 20238713.94 | EQ14: 29359731.06 | ER14: 25731806.89 | ES14: 26231760.72 | ET14: 27823519.03 | EU14: 32453269.17 | EV14: 26533957.42 | EW14: 30236823.91 | EX14: 19748579.7 | EY14: 40572497.04 | EZ14: 31223641.3 | FA14: 30965036.3 | FB14: 32102095.91 | FC14: 32854500.71 | FD14: 21251542.46 | FE14: 31021233.58 | FF14: 23327208.94 | FG14: 32204339.41 | FH14: 18687958.37 | FI14: 10018453.05
B15: South Eastern Europen Market | E15: 133205000 | F15: 149616000 | G15: 127810000 | H15: 160228000 | I15: 156138451.2 | J15: 183755656.2 | K15: 173909809.4 | L15: 261490760.7 | M15: 187076182.9 | N15: 198384469.2 | O15: 228834687 | P15: 275797340.8 | Q15: 231335950 | R15: 233791721.2 | S15: 227324204 | T15: 335951306.6 | U15: 253111456 | V15: 272982089.7 | W15: 264945591.6 | X15: 357226737.7 | Y15: 312022302.4 | Z15: 348703451.7 | AA15: 420261844.9 | AB15: 485363163.3 | AC15: 380352364.4 | AD15: 376461878.8 | AF15: 12844000 | AG15: 17886000 | AH15: 13321000 | AI15: 21815000 | AJ15: 13409180 | AK15: 18823988.5 | AL15: 19447109.62 | AM15: 26719237.8 | AN15: 21364359.67 | AO15: 22562279.15 | AP15: 29345537.8 | AQ15: 34327249.76 | AR15: 27916293.55 | AS15: 35207192.7 | AT15: 36325365.14 | AU15: 43672187.08 | AV15: 37980434.7 | AW15: 41745039.05 | AX15: 46585695.18 | AY15: 52724842.14 | AZ15: 45937572 | BA15: 50769175.36 | BB15: 55471141.27 | BC15: 60857704.52 | BD15: 50271491.36 | BE15: 56372629.25 | BG15: 12844000 | BH15: 17886000 | BI15: 13901000 | BJ15: 22406632.05 | BK15: 14482315.94 | BL15: 19938634.15 | BM15: 20559389.61 | BN15: 27891700.41 | BO15: 22537320.33 | BP15: 23881732.13 | BQ15: 30130583.69 | BR15: 35599991.17 | BS15: 29226465.57 | BT15: 36634154.97 | BU15: 37705792.12 | BV15: 45084936.74 | BW15: 39400018.84 | BX15: 43156544 | BY15: 48092686.88 | BZ15: 54736128.69 | CA15: 49236548.11 | CB15: 54795964.11 | CC15: 60535055.78 | CD15: 65026027.49 | CE15: 52555133.23 | CF15: 56572811.83 | CH15: 10152000 | CI15: 15234168.4 | CJ15: 11161031.6 | CK15: 18127800 | CL15: 11557975.2 | CM15: 16113672.65 | CN15: 18805958.24 | CO15: 21352211.92 | CP15: 18348450.36 | CQ15: 18238050.73 | CR15: 24661683.6 | CS15: 27863465.66 | CT15: 23291420.98 | CU15: 27245562.77 | CV15: 30902908.67 | CW15: 34805658.63 | CX15: 31899541.7 | CY15: 34489092.12 | CZ15: 38406467.5 | DA15: 48537120.27 | DB15: 39742854.4 | DC15: 65715319.69 | DD15: 52795391.31 | DE15: 37838571.9 | DF15: 47258492.2 | DG15: 49052417.04 | DI15: 5579378.8 | DJ15: 8241858.602 | DK15: 5643834.332 | DL15: 9196096.899 | DM15: 5872741.388 | DN15: 8281768.204 | DO15: 9586954.823 | DP15: 10991226.86 | DQ15: 9169111.275 | DR15: 9098016.095 | DS15: 12520556.83 | DT15: 14260492.27 | DU15: 11909097.48 | DV15: 13625999.34 | DW15: 15770608.02 | DX15: 17488101.1 | DY15: 15932285.32 | DZ15: 16924083.6 | EA15: 19070477.66 | EB15: 23671346.87 | EC15: 19520441.22 | ED15: 32667589.07 | EE15: 25854682.84 | EF15: 17780825.13 | EG15: 23177720.94 | EH15: 23958947.24 | EJ15: 5579378.8 | EK15: 8551690.2 | EL15: 5939982.332 | EM15: 9522647.489 | EN15: 6432126.532 | EO15: 8862682.555 | EP15: 10166609.33 | EQ15: 11597289.72 | ER15: 9839457.837 | ES15: 8643000.659 | ET15: 12924768.84 | EU15: 15104052.18 | EV15: 12289246.44 | EW15: 14634385.63 | EX15: 17098407.24 | EY15: 18031536.87 | EZ15: 17276376.91 | FA15: 17779537.11 | FB15: 19586174.75 | FC15: 24212938.53 | FD15: 21767429.51 | FE15: 23890391.8 | FF15: 24649479.12 | FG15: 18789012.91 | FH15: 19708090.67 | FI15: 23557861.6
B16: Western Europen Market | E16: 146300200.6 | F16: 149689914.3 | G16: 154846208.4 | H16: 187328270 | I16: 144236434 | J16: 155543111.3 | K16: 131496770.3 | L16: 168886672.8 | M16: 163936458.3 | N16: 156649012.5 | O16: 161073405.5 | P16: 214516797 | Q16: 199581427.9 | R16: 191434405.1 | S16: 189361860.9 | T16: 276307402.5 | U16: 223978034.8 | V16: 223594129.4 | W16: 217414987.6 | X16: 277119298.6 | Y16: 265744148 | Z16: 259907861.1 | AA16: 236534708.1 | AB16: 277624313.5 | AC16: 193706232.7 | AD16: 175433305 | AF16: 13440062.4 | AG16: 12195556.53 | AH16: 10209415.45 | AI16: 16115765.61 | AJ16: 11132100.8 | AK16: 13227148.75 | AL16: 6120649.518 | AM16: 14635022.73 | AN16: 12773330.23 | AO16: 10223366.66 | AP16: 14836708.45 | AQ16: 16498255.96 | AR16: 8996959.802 | AS16: 10526775.2 | AT16: 8608496.944 | AU16: 21772529.73 | AV16: 8572687.5 | AW16: 12735335.66 | AX16: 17475600.4 | AY16: 9307591.439 | AZ16: 11106608 | BA16: -38034074.86 | BB16: 6717403.156 | BC16: 33674368.48 | BD16: 10594851.94 | BE16: 13886515.78 | BG16: 14941120.8 | BH16: 13667731.36 | BI16: 11705738.86 | BJ16: 17587198.84 | BK16: 12109846.4 | BL16: 14233465.75 | BM16: 7122528.334 | BN16: 15642915.34 | BO16: 13779023.23 | BP16: 11224473.25 | BQ16: 16001030.3 | BR16: 18872100.98 | BS16: 10610389.68 | BT16: 12177664.07 | BU16: 10244660.16 | BV16: 23449060.46 | BW16: 10255220.3 | BX16: 14558668.38 | BY16: 19512857.38 | BZ16: 11266991.44 | CA16: 13079321.46 | CB16: 8272302.689 | CC16: 10826960.23 | CD16: 21436623.44 | CE16: 12032317.55 | CF16: 13057970.57 | CH16: 6135062.4 | CI16: 8633556.533 | CJ16: 10232415.45 | CK16: -3351234.386 | CL16: 11382232 | CM16: 15062699.4 | CN16: 5953954.835 | CO16: 13403554.39 | CP16: 11053027.25 | CQ16: 8177801.134 | CR16: 13331893.06 | CS16: 12032879.7 | CT16: 11300603.55 | CU16: 8893760.198 | CV16: 6871580.186 | CW16: 19111843.88 | CX16: 6355219 | CY16: 9164260.947 | CZ16: 12141430.7 | DA16: -3889953.145 | DB16: 8227689.6 | DC16: -30791049.76 | DD16: 8058619.475 | DE16: 30266304.28 | DF16: 9020195.597 | DG16: 13671315.21 | DI16: 2813831.965 | DJ16: 6119503.069 | DK16: 7508676.626 | DL16: -7220401.893 | DM16: 8209680.37 | DN16: 11167388.33 | DO16: 3747467.25 | DP16: 10211690.13 | DQ16: 8123681.372 | DR16: 6242363.181 | DS16: 10160598.87 | DT16: 8243553.298 | DU16: 9789450.703 | DV16: 6521545.915 | DW16: 5141688.315 | DX16: 13886091.81 | DY16: 4610442.458 | DZ16: 6672156.806 | EA16: 9957935.278 | EB16: -2213919.843 | EC16: 6901214.214 | ED16: -17706320.53 | EE16: 7931560.15 | EF16: 28857684.38 | EG16: 8055539.302 | EH16: 12151548.73 | EJ16: 3606767.023 | EK16: 6896847.074 | EL16: 8298942.69 | EM16: 8874817.556 | EN16: 8745739.173 | EO16: 11725819.86 | EP16: 4290049.163 | EQ16: 11022319.81 | ER16: 8788788.328 | ES16: 6797418.581 | ET16: 11161881.21 | EU16: 9618873.259 | EV16: 10690157.82 | EW16: 7427450.469 | EX16: 6057132.21 | EY16: 14554848.69 | EZ16: 5515261.048 | FA16: 7327980.393 | FB16: 11310304.81 | FC16: 5154292.98 | FD16: 8208209.979 | FE16: 5033801.84 | FF16: 8782154.286 | FG16: 15512277.3 | FH16: 9125486.134 | FI16: 10973762.79
B17: Holding and other companies, consolidation adjustment | E17: 7285175.98 | F17: 685737.01 | G17: 2128928.25 | H17: 8756093.479 | I17: 1356392.4 | J17: -1809238.95 | K17: 2928954.91 | L17: 1228744.002 | M17: 2622265.204 | N17: 1843539.159 | O17: 1289610.209 | P17: 3074049.581 | Q17: 2346300.151 | R17: 3405445.539 | S17: 2154011.045 | T17: 1880589.575 | U17: 993045.1 | V17: 2690601.412 | W17: 2867332.533 | X17: 688735.4649 | Y17: 2147836.78 | Z17: 1522071.963 | AA17: 4733497.483 | AB17: 1556644.855 | AC17: 1391301.867 | AD17: 848287.184 | AF17: -3354728.93 | AG17: -817304.45 | AH17: 822550.16 | AI17: 1791683.22 | AJ17: -2958152.8 | AK17: -2165268.5 | AL17: -2351654.605 | AM17: -3219734.151 | AN17: -2619963.054 | AO17: -2977475.497 | AP17: -4180484.535 | AQ17: -1531863.761 | AR17: -2785134.768 | AS17: -3148673.982 | AT17: -2849074.109 | AU17: -2283718.28 | AV17: -2844464.9 | AW17: -5656280.119 | AX17: -2672583.695 | AY17: -5701024.854 | AZ17: -3466760 | BA17: -3749057.17 | BB17: -9686200.259 | BC17: -5167579.013 | BD17: -3561095.995 | BE17: -8061170.973 | BG17: -2709397.88 | BH17: -817304.45 | BI17: 822550.16 | BJ17: 1791683.22 | BK17: -2958152.8 | BL17: -2136268.5 | BM17: -2380654.605 | BN17: -3219734.151 | BO17: -2619963.054 | BP17: -2977475.497 | BQ17: -4180484.535 | BR17: -1508863.761 | BS17: -2785134.768 | BT17: -3148673.982 | BU17: -2849074.109 | BV17: -2283718.28 | BW17: -2844464.9 | BX17: -5656280.119 | BY17: -2672583.695 | BZ17: -5701024.854 | CA17: -3466760 | CB17: -3521566.501 | CC17: -9683977.839 | CD17: -5764566.219 | CE17: -3561095.995 | CF17: -8061170.973 | CH17: 1654536.393 | CI17: -618031.9333 | CJ17: -5884981.209 | CK17: -55912509.87 | CL17: -4057885.6 | CM17: -1877879.89 | CN17: -1252205.33 | CO17: -3600287.344 | CP17: -4459923.666 | CQ17: -4233281.785 | CR17: -4918133.592 | CS17: 1199476.848 | CT17: -4738621.071 | CU17: -3211032.679 | CV17: -3721466.863 | CW17: -1421091.005 | CX17: -5753629.3 | CY17: 9099421.919 | CZ17: -3120429.608 | DA17: -8422517.098 | DB17: -3461868.8 | DC17: -212537.6749 | DD17: -9013625.191 | DE17: -5311525.42 | DF17: -3300109.555 | DG17: -8077904.543 | DI17: 2123196.147 | DJ17: -199714.3598 | DK17: -5794038.433 | DL17: -56506372.15 | DM17: -3584396.751 | DN17: -2275538.759 | DO17: -1503712.234 | DP17: -3065124.616 | DQ17: -4244916.146 | DR17: -4281291.001 | DS17: -4864834.802 | DT17: 552779.7394 | DU17: -4957813.126 | DV17: -3437959.312 | DW17: -3774942.959 | DX17: -1167233.908 | DY17: -5936836.409 | DZ17: 9252553.352 | EA17: -3444651.972 | EB17: -7412955.587 | EC17: -3714778.747 | ED17: -138423.4429 | EE17: -8625141.646 | EF17: -5182032.522 | EG17: -2928524.202 | EH17: -6941508.557 | EJ17: -2708004.335 | EK17: -252664.8677 | EL17: 448135.8427 | EM17: 1289699.484 | EN17: -3266427.943 | EO17: -1955815.813 | EP17: -1571718.886 | EQ17: -1855795.396 | ER17: -4230375.151 | ES17: -3744814.637 | ET17: -3965897.9 | EU17: 900171.9431 | EV17: -4625294.585 | EW17: -3140091.457 | EX17: -3500263.749 | EY17: -891913.8597 | EZ17: -5657689.446 | FA17: -4381867.541 | FB17: -3477724.119 | FC17: -4236855.499 | FD17: -3714778.747 | FE17: -3188655.465 | FF17: -8654940.21 | FG17: -5779171.246 | FH17: -2928524.202 | FI17: -6941508.557
B18: Consolidation adjustment | C18: Consolidation adjustment | D18: Consolidation adjustment | E18: -11501757.48 | F18: -12291773.34 | G18: -4374168.98 | H18: -14032300.2 | I18: -5100000 | J18: -8400000 | K18: -4400000 | L18: -7200000 | M18: -6100000 | N18: -6200000 | O18: -6900000 | P18: -9500000 | Q18: -7400000 | R18: -7000000 | S18: -7300000 | T18: -12600000 | U18: -6400000 | V18: -10900000 | W18: -7000000 | X18: -6800000 | Y18: -7500000 | Z18: -7700000 | AA18: -5200000 | AB18: -8300000 | AC18: -13500000 | AD18: -10000000 | AF18: -1268101.906 | AG18: 527302.75 | AH18: 300374.1217 | AI18: -1359574.966 | AJ18: 400000 | AK18: -300000 | AL18: 1300000 | AM18: -300000 | AN18: -3.278255463e-07 | AO18: 1000000 | AP18: -300000 | AQ18: -200000 | AR18: -700000 | AS18: -600000 | AT18: 1000000 | AU18: -2700000 | AV18: -500000 | AW18: -2500000 | AX18: 300000 | AY18: 2600000 | AZ18: -500000 | BA18: -200000 | BB18: -1300000 | BC18: 500000 | BD18: -3900000 | BE18: 3300000 | BG18: -1259601.906 | BH18: 518802.75 | BI18: 300374.1217 | BJ18: -1359574.966 | BK18: 400000 | BL18: -300000 | BM18: 1300000 | BN18: -300000 | BO18: -3.278255463e-07 | BP18: 1000000 | BQ18: -300000 | BR18: -232000 | BS18: -700000 | BT18: -600000 | BU18: 1044874.552 | BV18: -2744874.552 | BW18: -500000 | BX18: -2500000 | BY18: 300000 | BZ18: 2600000 | CA18: -500000 | CB18: -200000 | CC18: -1300000 | CD18: 500000 | CE18: -3900000 | CF18: 3300000 | CH18: -29136569.2 | CI18: 28234121.26 | CJ18: 227873.8094 | CK18: -1303239.253 | CL18: 392579.7379 | CM18: -351579.7379 | CN18: 1398000 | CO18: -317000 | CP18: 33000 | CQ18: 1117000 | CR18: -255000 | CS18: -33000 | CT18: -565000 | CU18: -409000 | CV18: 1221000 | CW18: -2750000 | CX18: -406000 | CY18: -2440000 | CZ18: 530000 | DA18: 2549000 | DB18: -446601.4599 | DC18: -166163.7159 | DD18: -500234.8242 | DE18: 81000 | DF18: -3820396.355 | DG18: 3368396.355 | DI18: -1326295.425 | DJ18: 59319.11303 | DK18: 1154213.98 | DL18: -1496645.551 | DM18: 361182.1349 | DN18: -169988.1126 | DO18: 1470453.748 | DP18: -147797.8049 | DQ18: 113905.2298 | DR18: 1035195.181 | DS18: -217880.0745 | DT18: -129827.8369 | DU18: -528920.3551 | DV18: -309235.3467 | DW18: 926309.8955 | DX18: -2496144.113 | DY18: -420775.2892 | DZ18: -2579224.711 | EA18: 627183.2601 | EB18: 2772816.74 | EC18: -500000 | ED18: -237002.1949 | EE18: -240599.0589 | EF18: 43169.19809 | EG18: -3869790.87 | EH18: 3359837.899 | EJ18: -1326295.425 | EK18: 59319.11303 | EL18: 1154213.98 | EM18: -1496645.551 | EN18: 361182.1349 | EO18: -169988.1126 | EP18: 1470453.748 | EQ18: -147797.8049 | ER18: 69713.37019 | ES18: 1035195.181 | ET18: -217880.0745 | EU18: -85635.97731 | EV18: -528920.3551 | EW18: -309235.3467 | EX18: 956077.3593 | EY18: -2525911.577 | EZ18: -420775.2892 | FA18: -2579224.711 | FB18: 627183.2601 | FC18: 2772816.74 | FD18: -500000 | FE18: -237002.1949 | FF18: -240599.0589 | FG18: 43169.19809 | FH18: -3869790.87 | FI18: 3359837.899
B19: Asseco Group | E19: 2068300000 | F19: 2093700000 | G19: 2124246625 | H19: 2411554734 | I19: 2149000000 | J19: 2310900000 | K19: 2218400000 | L19: 2650300000 | M19: 2452200000 | N19: 2538700000 | O19: 2738400000 | P19: 2938100000 | Q19: 2920400000 | R19: 2850300000 | S19: 2938100000 | T19: 3484000000 | U19: 3339100000 | V19: 3451900000 | W19: 3502100000 | X19: 4205000000 | Y19: 4047500000 | Z19: 4202500000 | AA19: 4558900000 | AB19: 4561200000 | AC19: 4335400000 | AD19: 4180000000 | AF19: 165200000 | AG19: 144000000 | AH19: 144399154.6 | AI19: 158322219.8 | AJ19: 167300000 | AK19: 203800000 | AL19: 187600000 | AM19: 238100000 | AN19: 224700000 | AO19: 228900000 | AP19: 261100000 | AQ19: 259900000 | AR19: 249800000 | AS19: 303700000 | AT19: 299000000 | AU19: 362100000 | AV19: 322600000 | AW19: 349400000 | AX19: 372600000 | AY19: 410300000 | AZ19: 386700000 | BA19: 536500000 | BB19: 428800000 | BC19: 463200000 | BD19: 397600000 | BE19: 394900000 | BG19: 197949774.2 | BH19: 175156447.6 | BI19: 208631457.2 | BJ19: 236969648.9 | BK19: 235333201.8 | BL19: 264407987 | BM19: 246494752.6 | BN19: 302238009.8 | BO19: 280652875 | BP19: 284038461 | BQ19: 320823252.5 | BR19: 318836813.8 | BS19: 316410238.9 | BT19: 358484847.1 | BU19: 362004914.1 | BV19: 441899859.1 | BW19: 398623728 | BX19: 427361047.5 | BY19: 457077943.3 | BZ19: 499460288.9 | CA19: 480495298.7 | CB19: 483558812.9 | CC19: 511634347.5 | CD19: 552296112.9 | CE19: 494013655.8 | CF19: 488319484.3 | CH19: 97000000 | CI19: 84800000 | CJ19: 81771936.33 | CK19: 351160653.7 | CL19: 116600000 | CM19: 151400000 | CN19: 141300000 | CO19: 184400000 | CP19: 157200000 | CQ19: 169400000 | CR19: 181500000 | CS19: 194200000 | CT19: 176400000 | CU19: 211600000 | CV19: 207500000 | CW19: 271700000 | CX19: 232900000 | CY19: 269500000 | CZ19: 263700000 | DA19: 278100000 | DB19: 287100000 | DC19: 441700000 | DD19: 329600000 | DE19: 300300000 | DF19: 292500000 | DG19: 305600000 | DI19: 60900113.92 | DJ19: 52399886.08 | DK19: 45574255.88 | DL19: 307720937.1 | DM19: 68900000 | DN19: 88400000 | DO19: 78000000 | DP19: 98000000 | DQ19: 79600000 | DR19: 80100000 | DS19: 78500000 | DT19: 83700000 | DU19: 81700000 | DV19: 95100000 | DW19: 90700000 | DX19: 134100000 | DY19: 102200000 | DZ19: 139600000 | EA19: 120200000 | EB19: 105600000 | EC19: 107600000 | ED19: 140300000 | EE19: 128400000 | EF19: 126400000 | EG19: 108100000 | EH19: 122400000 | EJ19: 67527224.16 | EK19: 59201638.97 | EL19: 64410270.48 | EM19: 74168848.38 | EN19: 81170041.63 | EO19: 100121853.3 | EP19: 88291603.33 | EQ19: 101831383.4 | ER19: 89573223.7 | ES19: 90316463.23 | ET19: 90325408.63 | EU19: 96014470.82 | EV19: 94650530.83 | EW19: 106085237.4 | EX19: 102364231.7 | EY19: 151161205.5 | EZ19: 116225137.9 | FA19: 133196367.5 | FB19: 136759749 | FC19: 130141387.6 | FD19: 124660173.5 | FE19: 146695885.1 | FF19: 137646928.4 | FG19: 138337775.1 | FH19: 120362037.4 | FI19: 139180719.8

Sheet RevenuesAndCosts
A1: Przychody ze sprzedaży | B1: Sales revenues | C1: YE 2017 | D1: Q1 2018 | E1: Q2 2018 | F1: Q3 2018 | G1: Q4 2018 | H1: Q1 2019 | I1: Q2 2019 | J1: Q3 2019 | K1: Q4 2019 | L1: Q1 2020 | M1: Q2 2020 | N1: Q3 2020 | O1: Q4 2020 | P1: Q1 2021 | Q1: Q2 2021 | R1: Q3 2021 | S1: Q4 2021 | T1: Q1 2022 | U1: Q2 2022 | V1: Q3 2022 | W1: Q4 2022 | X1: Q1 2023 | Y1: Q2 2023
C2: mln PLN | D2: mln PLN | E2: mln PLN | F2: mln PLN | G2: mln PLN | H2: mln PLN | I2: mln PLN | J2: mln PLN | K2: mln PLN | L2: mln PLN | M2: mln PLN | N2: mln PLN | O2: mln PLN | P2: mln PLN | Q2: mln PLN | R2: mln PLN | S2: mln PLN | T2: mln PLN | U2: mln PLN | V2: mln PLN | W2: mln PLN | X2: mln PLN | Y2: mln PLN
A4: Przychody ze sprzedaży według rodzaju | B4: Sales revenues by type of products
A5: Oprogramowanie i usługi własne | B5: Proprietary software and services | C5: 6237.2 | D5: 1729 | E5: 1871.3 | F5: 1853.5 | G5: 2051 | H5: 1981.2 | I5: 2092.8 | J5: 2245.9 | K5: 2328 | L5: 2354.8 | M5: 2299.1 | N5: 2330.7 | O5: 2652.3 | P5: 2602.8 | Q5: 2729.2 | R5: 2770.9 | S5: 3206.1 | T5: 3161.3 | U5: 3280.3 | V5: 3472.7 | W5: 3500 | X5: 3421.5 | Y5: 3298.7
A6: Oprogramowanie i usługi obce | B6: Third-party software and services | C6: 627.3 | D6: 145.6 | E6: 169.1 | F6: 127.4 | G6: 235.3 | H6: 174.9 | I6: 183.4 | J6: 193.4 | K6: 230.4 | L6: 186.8 | M6: 207.1 | N6: 183.8 | O6: 276.7 | P6: 281.5 | Q6: 305.1 | R6: 337.6 | S6: 569.6 | T6: 398.7 | U6: 428.7 | V6: 471.3 | W6: 422.8 | X6: 368.2 | Y6: 403.5
A7: Sprzęt i infrastruktura | B7: Hardware and infrastructure | C7: 964.8 | D7: 274.4 | E7: 270.5 | F7: 237.5 | G7: 364 | H7: 296.1 | I7: 262.5 | J7: 299.1 | K7: 379.7 | L7: 378.8 | M7: 344.1 | N7: 423.6 | O7: 555 | P7: 454.8 | Q7: 417.6 | R7: 393.6 | S7: 429.3 | T7: 487.5 | U7: 493.5 | V7: 553.1 | W7: 638.4 | X7: 545.7 | Y7: 477.8
A8: Razem | B8: Total | C8: =SUM(C5:C7) -> 7829.3 | D8: =SUM(D5:D7) -> 2149 | E8: 2310.9 | F8: 2218.4 | G8: 2650.3 | H8: =SUM(H5:H7) -> 2452.2 | I8: =SUM(I5:I7) -> 2538.7 | J8: 2738.4 | K8: 2938.1 | L8: 2920.4 | M8: 2850.3 | N8: 2938.1 | O8: 3484 | P8: 3339.1 | Q8: 3451.9 | R8: 3502.1 | S8: 4205 | T8: =SUM(T5:T7) -> 4047.5 | U8: 4202.5 | V8: =SUM(V5:V7) -> 4497.1 | W8: 4561.2 | X8: =SUM(X5:X7) -> 4335.4 | Y8: 4180
A10: Przychody ze sprzedaży według sektorów | B10: Sales revenues by sectors
A11: Bankowość i finanse | B11: Banking and finance | C11: 3039.7 | D11: 820 | E11: 901.6 | F11: 930.6 | G11: 1041 | H11: 957.3 | I11: 1023.4 | J11: 1004.4 | K11: 1076.5 | L11: 1062.2 | M11: 1068.6 | N11: 1066.4 | O11: 1210.7 | P11: 1146.4 | Q11: 1200.6 | R11: 1229.5 | S11: 1479.8 | T11: 1341.6 | U11: 1442.6 | V11: 1587.9 | W11: 1406 | X11: 1437.9 | Y11: 1420.8
A12: Przedsiębiorstwa | B12: General business | C12: 3121.9 | D12: 860.5 | E12: 934.6 | F12: 806.9 | G12: 947.3 | H12: 921 | I12: 921.8 | J12: 1093.9 | K12: 1127.9 | L12: 1153.6 | M12: 1118.2 | N12: 1064.7 | O12: 1404.6 | P12: 1354.4 | Q12: 1415.5 | R12: 1423.7 | S12: 1678.2 | T12: 1786.7 | U12: 1725.1 | V12: 1796.5 | W12: 1947.3 | X12: 1883.6 | Y12: 1710.6
A13: Instytucje Publiczne | B13: Public Institutions | C13: 1667.7 | D13: 468.5 | E13: 474.7 | F13: 480.9 | G13: 662 | H13: 573.9 | I13: 593.5 | J13: 640.1 | K13: 733.7 | L13: 704.6 | M13: 663.5 | N13: 807 | O13: 868.7 | P13: 838.3 | Q13: 835.8 | R13: 848.9 | S13: 1047 | T13: 919.2 | U13: 1034.8 | V13: 1112.7 | W13: 1207.9 | X13: 1013.9 | Y13: 1048.6
A14: Razem | B14: Total | C14: =SUM(C11:C13) -> 7829.3 | D14: =SUM(D11:D13) -> 2149 | E14: 2310.9 | F14: 2218.4 | G14: 2650.3 | H14: =SUM(H11:H13) -> 2452.2 | I14: =SUM(I11:I13) -> 2538.7 | J14: 2738.4 | K14: 2938.1 | L14: 2920.4 | M14: 2850.3 | N14: 2938.1 | O14: 3484 | P14: 3339.1 | Q14: 3451.9 | R14: 3502.1 | S14: 4205 | T14: =SUM(T11:T13) -> 4047.5 | U14: 4202.5 | V14: =SUM(V11:V13) -> 4497.1 | W14: 4561.2 | X14: =SUM(X11:X13) -> 4335.4 | Y14: 4180
A16: Struktura kosztów operacyjnych | B16: Operating costs
A17: Wartość odsprzedanych towarów, materiałów i usług obcych (COGS) | B17: Cost of goods, materials and third-party services sold | C17: -1372.2 | D17: -362.5 | E17: -365.3 | F17: -319.1 | G17: -478.2 | H17: -400.7 | I17: -363.6 | J17: -425.8 | K17: -505.1 | L17: -476.8 | M17: -461 | N17: -503.1 | O17: -699.3 | P17: -628.5 | Q17: -588.9 | R17: -610.7 | S17: -913.3 | T17: -729.2 | U17: -771.4 | V17: -861.4 | W17: -816 | X17: -766.5 | Y17: -721.5
A18: Świadczenia na rzecz pracowników | B18: Employee benefits | C18: -3871.2 | D18: -1081 | E18: -1132.5 | F18: -1111 | G18: -1246.8 | H18: -1226.1 | I18: -1309.9 | J18: -1337.8 | K18: -1386.9 | L18: -1473 | M18: -1395.6 | N18: -1433.7 | O18: -1649 | P18: -1638.3 | Q18: -1689.1 | R18: -1714.5 | S18: -1895.3 | T18: -2012.6 | U18: -2061.2 | V18: -2180.8 | W18: -2174.2 | X18: -2153 | Y18: -2074.6
A19: Amortyzacja | B19: Depreciation and amortization | C19: -331.5 | D19: -115.1 | E19: -110.9 | F19: -111 | G19: -114.1 | H19: -142.2 | I19: -156.5 | J19: -162.7 | K19: -167.4 | L19: -168 | M19: -171.1 | N19: -176.2 | O19: -185 | P19: -174.8 | Q19: -185.8 | R19: -189.9 | S19: -238 | T19: -213.9 | U19: -214.5 | V19: -235.9 | W19: -227.9 | X19: -224.5 | Y19: -216.8
A20: Usługi obce | B20: External services | C20: -1038.6 | D20: -276.2 | E20: -315.5 | F20: -312.7 | G20: -362.6 | H20: -320.3 | I20: -333.5 | J20: -390.3 | K20: -436.2 | L20: -391.1 | M20: -375.3 | N20: -383.7 | O20: -453.5 | P20: -436 | Q20: -477.4 | R20: -460 | S20: -526.1 | T20: -520.1 | U20: -551.7 | V20: -574.7 | W20: -659.3 | X20: -579.4 | Y20: -550.2
A21: Pozostałe | B21: Other | C21: -615.7 | D21: -143.1 | E21: -180.9 | F21: -176.6 | G21: -204.3 | H21: -133.2 | I21: -143.8 | J21: -160.7 | K21: -178.8 | L21: -157.1 | M21: -140 | N21: -140.5 | O21: -128.1 | P21: -136 | Q21: -158.5 | R21: -154.4 | S21: -215.5 | T21: -175.5 | U21: -242.6 | V21: -240.2 | W21: -233 | X21: -215.3 | Y21: -218.4
A22: Razem | B22: Total | C22: =SUM(C17:C21) -> -7229.2 | D22: =SUM(D17:D21) -> -1977.9 | E22: -2105.1 | F22: -2030.4 | G22: -2406 | H22: =SUM(H17:H21) -> -2222.5 | I22: =SUM(I17:I21) -> -2307.3 | J22: -2477.3 | K22: -2674.4 | L22: -2666 | M22: -2543 | N22: -2637.2 | O22: -3114.9 | P22: -3013.6 | Q22: -3099.7 | R22: -3129.5 | S22: -3788.2 | T22: =SUM(T17:T21) -> -3651.3 | U22: -3841.4 | V22: =SUM(V17:V21) -> -4093 | W22: -4110.4 | X22: =SUM(X17:X21) -> -3938.7 | Y22: -3781.5

Sheet Exchange Rates
A1: Kursy walut | B1: Exchange rates
A3: Waluta | B3: Currency | C3: EUR/PLN | D3: USD/PLN | E3: NIS/PLN
A5: Kurs średni 2014 | B5: Average exchange rate 2014 | C5: 4.1893 | D5: 3.1784 | E5: 0.8846
A6: Kurs otwarcia 2014 | B6: Opening exchange rate 2014 | C6: 4.1472 | D6: 3.012 | E6: 0.8678
A7: Kurs zamknięcia 2014 | B7: Closing exchange rate 2014 | C7: 4.2623 | D7: 3.5072 | E7: 0.9018
A9: Kurs otwarcia 2015 | B9: Opening exchange rate 2015 | C9: 4.2623 | D9: 3.5072 | E9: 0.9018
A10: Kurs średni Q1 2015 | B10: Average exchange rate Q1 2015 | C10: 4.1489 | D10: 3.7436 | E10: 0.9462
A11: Kurs zamknięcia Q1 2015 | B11: Closing exchange rate Q1 2015 | C11: 4.089 | D11: 3.8125 | E11: 0.9579
A13: Kurs średni Q1-Q2 2015 | B13: Average exchange rate Q1-2 2015 | C13: 4.1341333 | D13: 3.7268667 | E13: 0.9566667
A14: Kurs zamknięcia Q2 2015 | B14: Closing exchange rate Q2 2015 | C14: 4.1944 | D14: 3.7645 | E14: 0.9985
A16: Kurs średni Q1-Q3 2015 | B16: Average exchange rate Q1-Q3 2015 | C16: 4.1585111 | D16: 3.7452778 | E16: 0.9628556
A17: Kurs zamknięcia Q3 2015 | B17: Closing exchange rate Q3 2015 | C17: 4.2386 | D17: 3.7754 | E17: 0.9619
A19: Kurs średni Q1-Q4 2015 | B19: Average exchange rate Q1-Q4 2015 | C19: 4.1847667 | D19: 3.7928167 | E19: 0.9757415
A20: Kurs zamknięcia Q4 2015 | B20: Closing exchange rate Q4 2015 | C20: 4.2615 | D20: 3.9011 | E20: 0.9997693
A22: Kurs średni Q1 2016 | B22: Average exchange rate Q1 2016 | C22: 4.3559333 | D22: 3.9416 | E22: =1.0167 -> 1.0167
A23: Kurs zamknięcia Q1 2016 | B23: Closing exchange rate Q1 2016 | C23: 4.2684 | D23: 3.759 | E23: 0.9981
A25: Kurs średni Q1-Q2 2016 | B25: Average exchange rate Q1-Q2 2016 | C25: 4.3805167 | D25: 3.9359667 | E25: 1.0229468
A26: Kurs zamknięcia Q2 2016 | B26: Closing exchange rate Q2 2016 | C26: 4.4255 | D26: 3.9803 | E26: 1.0349194
A28: Kurs średni Q1-Q3 2016 | B28: Average exchange rate Q1-Q3 2016 | C28: 4.3687778 | D28: 3.9240222 | E28: 1.0249222
A29: Kurs zamknięcia Q3 2016 | B29: Closing exchange rate Q3 2016 | C29: 4.312 | D29: 3.8558 | E29: 1.0260245
A31: Kurs średni Q1-Q4 2016 | B31: Average exchange rate Q1-Q4 2016 | C31: 4.375675 | D31: 3.9680333 | E31: 1.0353283
A32: Kurs zamknięcia Q4 2016 | B32: Closing exchange rate Q4 2016 | C32: 4.424 | D32: 4.1793 | E32: 1.0869441
A34: Kurs średni Q1 2017 | B34: Average exchange rate Q1 2017 | C34: 4.2890667 | D34: 4.0223667 | E34: 1.0912259
A35: Kurs zamknięcia Q1 2017 | B35: Closing exchange rate Q1 2017 | C35: 4.2198 | D35: 3.9455 | E35: 1.0863161
A37: Kurs średni Q1-Q2 2017 | B37: Average exchange rate Q1-Q2 2017 | C37: 4.2474 | D37: 3.8963833 | E37: 1.0753374
A38: Kurs zamknięcia Q2 2017 | B38: Closing exchange rate Q2 2017 | C38: 4.2265 | D38: 3.7062 | E38: 1.0601259
A40: Kurs średni Q1-Q3 2017 | B40: Average exchange rate Q1-Q3 2017 | C40: 4.2566444 | D40: 3.8043111 | E40: 1.0558041
A41: Kurs zamknięcia Q3 2017 | B41: Closing exchange rate Q3 2017 | C41: 4.3091 | D41: 3.6519 | E41: 1.0348257
A43: Kurs średni Q1-Q4 2017 | B43: Average exchange rate Q1-Q4 2017 | C43: 4.2446 | D43: 3.7439 | E43: 1.0466
A44: Kurs zamknięcia Q4 2017 | B44: Closing exchange rate Q4 2017 | C44: 4.1709 | D44: 3.4813 | E44: 1.0041
A46: Kurs średni Q1 2018 | B46: Average exchange rate Q1 2018 | C46: 4.1784 | D46: 3.3881 | E46: 0.977
A47: Kurs zamknięcia Q1 2018 | B47: Closing exchange rate Q1 2018 | C47: 4.2085 | D47: 3.4139 | E47: 0.9715
A49: Kurs średni Q1-Q2 2018 | B49: Average exchange rate Q1-Q2 2018 | C49: 4.23945 | D49: 3.5192167 | E49: 0.9952924
A50: Kurs zamknięcia Q2 2018 | B50: Closing exchange rate Q2 2018 | C50: 4.3616 | D50: 3.744 | E50: 1.0257534
A52: Kurs średni Q1-Q3 2018 | B52: Average exchange rate Q1-Q3 2018 | C52: 4.2534778 | D52: 3.5688444 | E52: 1.0002299
A53: Kurs zamknięcia Q3 2018 | B53: Closing exchange rate Q3 2018 | C53: 4.2714 | D53: 3.6754 | E53: 1.0133444
A55: Kurs średni Q1-Q4 2018 | B55: Average exchange rate Q1-Q4 2018 | C55: 4.2669167 | D55: 3.622725 | E55: 1.0042799
A56: Kurs zamknięcia Q4 2018 | B56: Closing exchange rate Q4 2018 | C56: 4.3 | D56: 3.7597 | E56: 1.0031217
A58: Kurs średni Q1 2019 | B58: Average exchange rate Q1 2019 | C58: 4.2978333 | D58: 3.7829667 | E58: 1.0433255
A59: Kurs zamknięcia Q1 2019 | B59: Closing exchange rate Q1 2019 | C59: 4.3013 | D59: 3.8365 | E59: 1.0563051
A61: Kurs średni Q1-Q2 2019 | B61: Average exchange rate Q1-Q2 2019 | C61: 4.2880333 | D61: 3.7935667 | E61: 1.0496067
A62: Kurs zamknięcia Q2 2019 | B62: Closing exchange rate Q2 2019 | C62: 4.252 | D62: 3.7336 | E62: 1.0469994
A64: Kurs średni Q1-Q3 2019 | B64: Average exchange rate Q1-Q3 2019 | C64: 4.3085889 | D64: 3.8426111 | E64: 1.0744856
A65: Kurs zamknięcia Q3 2019 | B65: Closing exchange rate Q3 2019 | C65: 4.3736 | D65: 4 | E65: 1.1487651
A67: Kurs średni Q1-Q4 2019 | B67: Average exchange rate Q1-Q4 2019 | C67: 4.3018 | D67: 3.844 | E67: 1.0818
A68: Kurs zamknięcia Q4 2019 | B68: Closing exchange rate Q4 2019 | C68: 4.2585 | D68: 3.7977 | E68: 1.0989
A70: Kurs średni Q1 2020 | B70: Average exchange rate Q1 2020 | C70: 4.3963 | D70: 3.9907 | E70: 1.1422
A71: Kurs zamknięcia Q1 2020 | B71: Closing exchange rate Q1 2020 | C71: 4.5523 | D71: 4.1466 | E71: 1.1631
A73: Kurs średni Q1-Q2 2020 | B73: Average exchange rate Q1-Q2 2020 | C73: 4.44125 | D73: 4.02143 | E73: 1.1517113
A74: Kurs zamknięcia Q2 2020 | B74: Closing exchange rate Q2 2020 | C74: 4.466 | D74: 3.9806 | E74: 1.14847
A76: Kurs średni Q1-Q3 2020 | B76: Average exchange rate Q1-Q3 2020 | C76: 4.4429 | D76: 3.9344 | E76: 1.1235
A77: Kurs zamknięcia Q3 2020 | B77: Closing exchange rate Q3 2020 | C77: 4.5268 | D77: 3.8658 | E77: 1.136
A79: Kurs średni Q1-Q4 2020 | B79: Average exchange rate Q1-Q4 2020 | C79: 4.4742 | D79: 3.9045 | E79: 1.1398
A80: Kurs zamknięcia Q4 2020 | B80: Closing exchange rate Q4 2020 | C80: 4.6148 | D80: 3.7584 | E80: 1.169
A82: Kurs średni Q1 2021 | B82: Average exchange rate Q1 2021 | C82: 4.5721 | D82: 3.8127667 | E82: 1.1546257
A83: Kurs zamknięcia Q1 2021 | B83: Closing exchange rate Q1 2021 | C83: 4.6603 | D83: 3.9676 | E83: 1.190042
A85: Kurs średni Q1-Q2 2021 | B85: Average exchange rate Q1-Q2 2021 | C85: 4.5471667 | D85: 3.7814667 | E85: 1.1536684
A86: Kurs zamknięcia Q2 2021 | B86: Closing exchange rate Q2 2021 | C86: 4.5208 | D86: 3.8035 | E86: 1.1667178
A88: Kurs średni Q1-Q3 2021 | B88: Average exchange rate Q1-Q3 2021 | C88: 4.5584889 | D88: 3.8178778 | E88: 1.1714962
A89: Kurs zamknięcia Q3 2021 | B89: Closing exchange rate Q3 2021 | C89: 4.6329 | D89: 3.9925 | E89: 1.2364509
A91: Kurs średni Q1-Q4 2021 | B91: Average exchange rate Q1-Q4 2021 | C91: 4.5775 | D91: 3.875725 | E91: 1.2006944
A92: Kurs zamknięcia Q4 2021 | B92: Closing exchange rate Q4 2021 | C92: 4.5994 | D92: 4.06 | E92: 1.3054662
A94: Kurs średni Q1 2022 | B94: Average exchange rate Q1 2022 | C94: 4.6472 | D94: 4.1637667 | E94: 1.3000082
A95: Kurs zamknięcia Q1 2022 | B95: Closing exchange rate Q1 2022 | C95: 4.6525 | D95: 4.1801 | E95: 1.3161524
A97: Kurs średni Q1-Q2 2022 | B97: Average exchange rate Q1-Q2 2022 | C97: 4.6426667 | D97: 4.27435 | E97: 1.2978584
A98: Kurs zamknięcia Q2 2022 | B98: Closing exchange rate Q2 2022 | C98: 4.6806 | D98: 4.4825 | E98: 1.2807143
A100: Kurs średni Q1-Q3 2022 | B100: Average exchange rate Q1-Q3 2022 | C100: 4.6880222 | D100: 4.4413222 | E100: 1.3300043
A101: Kurs zamknięcia Q3 2022 | B101: Closing exchange rate Q3 2022 | C101: 4.8698 | D101: 4.9533 | E101: 1.3980525
A103: Kurs średni Q1-Q4 2022 | B103: Average exchange rate Q1-Q4 2022 | C103: 4.6882833 | D103: 4.4678583 | E103: 1.3226383
A104: Kurs zamknięcia Q4 2022 | B104: Closing exchange rate Q4 2022 | C104: 4.6899 | D104: 4.4018 | E104: 1.2508667
A106: Kurs średni Q1 2023 | B106: Average exchange rate Q1 2023 | C106: 4.7004667 | D106: 4.3629667 | E106: 1.217133
A107: Kurs zamknięcia Q1 2023 | B107: Closing exchange rate Q1 2023 | C107: 4.6755 | D107: 4.2934 | E107: 1.1876625
A109: Kurs średni Q1-Q2 2023 | C109: 4.6130333 | D109: 4.2711167 | E109: 1.1756059
A110: Kurs zamknięcia Q2 2023 | C110: 4.4503 | D110: 4.1066 | E110: 1.1098919
